Authority,Department,Spending Area,Expense Type,Posting Date,Reference,Amount,Supplier
OXFORDSHIRE CC,"CHILDRENS, YOUNG PEOPLE AND FAMILIES",KINGFISHER,HIRE OF ACCOMMODATION AND FACILITIES,07/02/2018,6988808799,"-1,435.83",PAYPAL  TRIPADVISOR
OXFORDSHIRE CC,"CHILDRENS, YOUNG PEOPLE AND FAMILIES","	ASSESS TEAM CITY",HIRE OF ACCOMMODATION AND FACILITIES,27/09/2017,6524049525,-906,BRITANNIA
OXFORDSHIRE CC,"CHILDRENS, YOUNG PEOPLE AND FAMILIES","	LOOKED AFTER CITY 2",CLIENT LODGINGS AND ACCOMMODATION,30/01/2018,6958137963,-728,WWW.SHORTLETSPACE.
OXFORDSHIRE CC,"CHILDRENS, YOUNG PEOPLE AND FAMILIES","	ASSESS TEAM CITY",HIRE OF ACCOMMODATION AND FACILITIES,27/09/2017,6524049523,-681.63,THE ALLESLEY HOTEL
OXFORDSHIRE CC,"CHILDRENS, YOUNG PEOPLE AND FAMILIES","	RESIDENTIAL STRATEGY",PAYMENTS TO TRANSPORT OPERATORS,05/09/2017,6444776601,-550,TRIPADVISOR FLIPKEY
OXFORDSHIRE CC,"CHILDRENS, YOUNG PEOPLE AND FAMILIES",NRPF & HOMELESSNESS,HIRE OF ACCOMMODATION AND FACILITIES,12/10/2017,6580526625,-545,CITRUS HOTEL COVENTRY
OXFORDSHIRE CC,"CHILDRENS, YOUNG PEOPLE AND FAMILIES","	LOOKED AFTER CITY 2",CLIENT LODGINGS AND ACCOMMODATION,18/01/2018,6913211001,-542,PREMIER INN
OXFORDSHIRE CC,"CHILDRENS, YOUNG PEOPLE AND FAMILIES",NRPF & HOMELESSNESS,HIRE OF ACCOMMODATION AND FACILITIES,30/06/2017,6228979009,-505,PREMIER INN
OXFORDSHIRE CC,"CHILDRENS, YOUNG PEOPLE AND FAMILIES","	RESIDENTIAL STRATEGY",HIRE OF ACCOMMODATION AND FACILITIES,21/08/2017,6392318233,-500,PAYPAL  TRIPADVISOR HO
OXFORDSHIRE CC,CORPORATE CORE,HR CPD,PROFESSIONAL SUBSCRIPTIONS,12/03/2018,7113437245,-478.8,BLACK  WHITE TRADING
OXFORDSHIRE CC,"CHILDRENS, YOUNG PEOPLE AND FAMILIES","	LEAVING CARE CITY 2",CLIENT LODGINGS AND ACCOMMODATION,05/01/2018,6871379837,-467,TRAVELODGE
OXFORDSHIRE CC,"CHILDRENS, YOUNG PEOPLE AND FAMILIES",CNTL EARLY HELP-BRTN,ENTERTAINMENT EXPENSES,08/08/2017,6352414587,-432,WWW.NENEWHITEWATERCENT
OXFORDSHIRE CC,ENVIRONMENT AND ECONOMY,"	SAMUELSON HOUSE","SUPPLIES, STATIONERY AND MATERIALS",08/12/2017,6792587195,-408.24,LYRECO UK LTD
OXFORDSHIRE CC,ENVIRONMENT AND ECONOMY,"	FM RECHARGES",PROFESSIONAL SUBSCRIPTIONS,18/09/2017,6487235893,-396,RICS COM GBP CYBS
OXFORDSHIRE CC,"CHILDRENS, YOUNG PEOPLE AND FAMILIES","	LEAVING CARE CITY 1",HIRE OF ACCOMMODATION AND FACILITIES,23/10/2017,6618249911,-364,YHA CENTRAL REGION
OXFORDSHIRE CC,SOCIAL AND COMMUNITY SERVICES,ADULTS AT RISK,MATERIALS,25/10/2017,6628964527,-359.98,CURRYS ONLINE
OXFORDSHIRE CC,"CHILDRENS, YOUNG PEOPLE AND FAMILIES",ICS ADMIN,HIRE OF ACCOMMODATION AND FACILITIES,06/11/2017,6670252181,-320,FAIRLAWNS GUEST HOUSE
OXFORDSHIRE CC,"CHILDRENS, YOUNG PEOPLE AND FAMILIES","	MALTFIELD HOUSE",FURNITURE,23/08/2017,6401242189,-313.2,TOPPS TILES OXFORD
OXFORDSHIRE CC,ENVIRONMENT AND ECONOMY,"	WASTE MNGMNT GEN",CLOTHING AND UNIFORMS,18/01/2018,6913210927,-306.99,PATROLSTORE.COM
OXFORDSHIRE CC,"CHILDRENS, YOUNG PEOPLE AND FAMILIES",CNTL EARLY HELP-BRTN,FURNITURE,29/01/2018,6950843583,-304.99,ONLINE FURNITURE UK
OXFORDSHIRE CC,"CHILDRENS, YOUNG PEOPLE AND FAMILIES",NRPF & HOMELESSNESS,HIRE OF ACCOMMODATION AND FACILITIES,07/04/2017,5938245433,-299.25,TRAVELODGE
OXFORDSHIRE CC,SOCIAL AND COMMUNITY SERVICES,CSS - ABINGDON,MATERIALS,19/02/2018,7030642265,-294.99,CURRYS ONLINE
OXFORDSHIRE CC,"CHILDRENS, YOUNG PEOPLE AND FAMILIES","	LOOKED AFTER CITY 1",MATERIALS,11/08/2017,6363975129,-289.99,ARGOS DIRECT
OXFORDSHIRE CC,ENVIRONMENT AND ECONOMY,"	NETWORK & ASSET MGT",IT SOFTWARE,13/11/2017,6697421849,-285,KNOWDATA LIMITED
OXFORDSHIRE CC,"CHILDRENS, YOUNG PEOPLE AND FAMILIES",CNTL ERLY HELP-BBLEY,"BOOKS, DVDS AND CDS",10/11/2017,6690742301,-280.99,BOOKDEPOSITORY.COM
OXFORDSHIRE CC,"CHILDRENS, YOUNG PEOPLE AND FAMILIES",EYNSHAM,MATERIALS,18/01/2018,6913211523,-279,CURRYS ONLINE
OXFORDSHIRE CC,SOCIAL AND COMMUNITY SERVICES,ADULTS AT RISK,MATERIALS,30/10/2017,6644531405,-274.99,CURRYS ONLINE
OXFORDSHIRE CC,"CHILDRENS, YOUNG PEOPLE AND FAMILIES","	ALTERNATIVES TO CARE",HIRE OF ACCOMMODATION AND FACILITIES,08/01/2018,6876279847,-272.59,AGODA RESERVATION
OXFORDSHIRE CC,"CHILDRENS, YOUNG PEOPLE AND FAMILIES","	RIVERSIDE CENTRE",SOLID FUEL,12/04/2017,5953971049,-262.49,ALLSTAR BUSINESS SOLUT
OXFORDSHIRE CC,"CHILDRENS, YOUNG PEOPLE AND FAMILIES","	RIVERSIDE CENTRE",SOLID FUEL,12/04/2017,5953971047,-262.49,ALLSTAR BUSINESS SOLUT
OXFORDSHIRE CC,"CHILDRENS, YOUNG PEOPLE AND FAMILIES","	HEARING IMPAIRMENT","SUPPLIES, STATIONERY AND MATERIALS",14/12/2017,6816074651,-256.85,AMAZONLOCAL
OXFORDSHIRE CC,"CHILDRENS, YOUNG PEOPLE AND FAMILIES","	RESIDENTIAL STRATEGY",OTHER PREMISES RELATED COSTS,06/10/2017,6560150701,-250,SHORT LET SPACE
OXFORDSHIRE CC,"CHILDRENS, YOUNG PEOPLE AND FAMILIES",KINGFISHER,HIRE OF ACCOMMODATION AND FACILITIES,05/02/2018,6977912817,-250,PAYPAL  TRIPADVISOR
OXFORDSHIRE CC,"CHILDRENS, YOUNG PEOPLE AND FAMILIES","	ALTERNATIVES TO CARE",HIRE OF ACCOMMODATION AND FACILITIES,09/01/2018,6881430573,-249,TRAVELODGE
OXFORDSHIRE CC,"CHILDRENS, YOUNG PEOPLE AND FAMILIES","	ALTERNATIVES TO CARE",HIRE OF ACCOMMODATION AND FACILITIES,09/01/2018,6881430567,-249,TRAVELODGE
OXFORDSHIRE CC,"CHILDRENS, YOUNG PEOPLE AND FAMILIES","	MALTFIELD HOUSE",HIRE OF ACCOMMODATION AND FACILITIES,17/08/2017,6382291017,-246.56,AIRBNB
OXFORDSHIRE CC,"CHILDRENS, YOUNG PEOPLE AND FAMILIES","	NCS",MATERIALS,25/07/2017,6305705591,-239.97,CURRYS.DIGITAL
OXFORDSHIRE CC,"CHILDRENS, YOUNG PEOPLE AND FAMILIES",CNTL ERLY HELP-BBLEY,FURNITURE,16/02/2018,7024736649,-239,WWW.BEDS.CO.UK
OXFORDSHIRE CC,ENVIRONMENT AND ECONOMY,"	SAMUELSON HOUSE","SUPPLIES, STATIONERY AND MATERIALS",07/12/2017,6787494971,-236.88,LYRECO UK LTD
OXFORDSHIRE CC,"CHILDRENS, YOUNG PEOPLE AND FAMILIES","	FAMILY SUPPORT CITY3",PAYMENTS TO TRANSPORT OPERATORS,20/10/2017,6612055721,-230.2,TRAINLINE
OXFORDSHIRE CC,"CHILDRENS, YOUNG PEOPLE AND FAMILIES","	LEAVING CARE SOUTH",OTHER EXPENSES,07/07/2017,6247617681,-229.9,WWW.DRIVEJOHNSONS.CO.U
OXFORDSHIRE CC,"CHILDRENS, YOUNG PEOPLE AND FAMILIES","	RIVERSIDE CENTRE",SOLID FUEL,12/04/2017,5953971051,-227.75,ALLSTAR BUSINESS SOLUT
OXFORDSHIRE CC,"CHILDRENS, YOUNG PEOPLE AND FAMILIES",CNTL EARLY HELP-RHIL,MATERIALS,15/03/2018,7129042243,-224.98,WWW.ARGOS.CO.UK
OXFORDSHIRE CC,"CHILDRENS, YOUNG PEOPLE AND FAMILIES","	HEARING IMPAIRMENT",OTHER SERVICES,25/05/2017,6103291067,-220,EVENTBRITE
OXFORDSHIRE CC,"CHILDRENS, YOUNG PEOPLE AND FAMILIES","	LEAVING CARE CITY 2",CLIENT LODGINGS AND ACCOMMODATION,05/01/2018,6871379835,-220,LINTON LODGE
OXFORDSHIRE CC,SOCIAL AND COMMUNITY SERVICES,ADULTS AT RISK,HIRE OF ACCOMMODATION AND FACILITIES,09/06/2017,6152782091,-219,TRAVELODGE
OXFORDSHIRE CC,"CHILDRENS, YOUNG PEOPLE AND FAMILIES","	FPT CITY",MATERIALS,30/10/2017,6644531391,-215.95,WWW.ARGOS.CO.UK
OXFORDSHIRE CC,"CHILDRENS, YOUNG PEOPLE AND FAMILIES",CNTL ERLY HELP-BBLEY,"BOOKS, DVDS AND CDS",22/02/2018,7044893415,-213.72,AMAZON SVCS EU-UK AMAZ
OXFORDSHIRE CC,"CHILDRENS, YOUNG PEOPLE AND FAMILIES","	FPT CITY",MATERIALS,03/11/2017,6663948997,-209.99,WWW.ARGOS.CO.UK
OXFORDSHIRE CC,"CHILDRENS, YOUNG PEOPLE AND FAMILIES","	NCS",PRINTING,25/08/2017,6409745895,-204,VISTAPR VISTAPRINT.COM
OXFORDSHIRE CC,"CHILDRENS, YOUNG PEOPLE AND FAMILIES",UASC 16&17,OTHER EXPENSES,02/02/2018,6971813031,-200.95,AMZ AMAZON.CO.UK
OXFORDSHIRE CC,"CHILDRENS, YOUNG PEOPLE AND FAMILIES","	MUSIC UNALLOCABLE",CAR LEASING - PRIVATE RENTALS,31/07/2017,6323064737,-200,ENTERPRISE RENT-A-CAR
OXFORDSHIRE CC,"CHILDRENS, YOUNG PEOPLE AND FAMILIES","	40 THE MOORS",CAR LEASING - PRIVATE RENTALS,15/08/2017,6375221825,-200,ENTERPRISE RENT-A-CAR
OXFORDSHIRE CC,"CHILDRENS, YOUNG PEOPLE AND FAMILIES","	MALTFIELD HOUSE",HIRE OF ACCOMMODATION AND FACILITIES,18/08/2017,6386810147,-200,WWW.BLUECHIPHOLIDAYS.C
OXFORDSHIRE CC,"CHILDRENS, YOUNG PEOPLE AND FAMILIES","	LEAVING CARE CITY 2",MATERIALS,09/10/2017,6565677105,-199.99,ARGOS DIRECT
OXFORDSHIRE CC,"CHILDRENS, YOUNG PEOPLE AND FAMILIES","	THRIVING FAMILIES",OTHER EXPENSES,11/12/2017,6801277673,-199.99,WWW.ARGOS.CO.UK
OXFORDSHIRE CC,"CHILDRENS, YOUNG PEOPLE AND FAMILIES","	FAM SUPP SOUTH",,02/06/2017,6263213667,-199.94,
OXFORDSHIRE CC,ENVIRONMENT AND ECONOMY,"	SAMUELSON HOUSE","SUPPLIES, STATIONERY AND MATERIALS",12/10/2017,6580526605,-199.56,LYRECO UK LTD
OXFORDSHIRE CC,ENVIRONMENT AND ECONOMY,"	BUSINESS SYST STAFF",HIRE OF ACCOMMODATION AND FACILITIES,18/10/2017,6602235685,-198,PREMIER INN
OXFORDSHIRE CC,"CHILDRENS, YOUNG PEOPLE AND FAMILIES","	40 THE MOORS",CONTRACT CLEANING,19/09/2017,6493550539,-193.96,JG PEST CONTROL
OXFORDSHIRE CC,ENVIRONMENT AND ECONOMY,"	SAMUELSON HOUSE","SUPPLIES, STATIONERY AND MATERIALS",28/02/2018,7067705163,-190.39,LYRECO UK LTD
OXFORDSHIRE CC,"CHILDRENS, YOUNG PEOPLE AND FAMILIES","	RESIDENTIAL STRATEGY",MATERIALS,22/08/2017,6398417083,-187.98,GAME RETAIL LTD COWLEY
OXFORDSHIRE CC,"CHILDRENS, YOUNG PEOPLE AND FAMILIES","	FAM SUPP SOUTH",,02/06/2017,6263213669,-187.02,
OXFORDSHIRE CC,"CHILDRENS, YOUNG PEOPLE AND FAMILIES",PLACEMENTS-FRELEVANT,HIRE OF ACCOMMODATION AND FACILITIES,15/01/2018,6929958837,-182,PREMIER INN
OXFORDSHIRE CC,"CHILDRENS, YOUNG PEOPLE AND FAMILIES","	FAM SUPP SOUTH",,02/06/2017,6263213665,-181.42,
OXFORDSHIRE CC,"CHILDRENS, YOUNG PEOPLE AND FAMILIES","	LOOKED AFTER SOUTH",CAR LEASING - PRIVATE RENTALS,22/11/2017,6736518193,-180.5,ENTERPRISE RENT-A-CAR
OXFORDSHIRE CC,"CHILDRENS, YOUNG PEOPLE AND FAMILIES","	LOOKED AFTER CITY 2",HIRE OF ACCOMMODATION AND FACILITIES,01/01/2018,6860358831,-176,PREMIER INN
OXFORDSHIRE CC,SOCIAL AND COMMUNITY SERVICES,CITY INT LOC TEAM,MATERIALS,09/08/2017,6355707609,-175,FOREST-AV.CO.UK
OXFORDSHIRE CC,"CHILDRENS, YOUNG PEOPLE AND FAMILIES","	LOOKED AFTER NORTH",MATERIALS,23/10/2017,6618249975,-169.99,ARGOS DIRECT
OXFORDSHIRE CC,"CHILDRENS, YOUNG PEOPLE AND FAMILIES",NRPF & HOMELESSNESS,HIRE OF ACCOMMODATION AND FACILITIES,01/08/2017,6329391805,-166,BRITANNIA
OXFORDSHIRE CC,"CHILDRENS, YOUNG PEOPLE AND FAMILIES","	MALTFIELD HOUSE",CATERING,26/06/2017,6208905825,-165.15,SAINSBURYS TO YOU 0600
OXFORDSHIRE CC,"CHILDRENS, YOUNG PEOPLE AND FAMILIES",CNTL EARLY HELP-BRTN,MATERIALS,21/09/2017,6501548411,-165,AMZ BADGES LTD
OXFORDSHIRE CC,SOCIAL AND COMMUNITY SERVICES,"	EMERGENCY DUTY TEAM",HIRE OF ACCOMMODATION AND FACILITIES,12/09/2017,6467310019,-163,TRAVELODGE
OXFORDSHIRE CC,"CHILDRENS, YOUNG PEOPLE AND FAMILIES",PLACEMENTS- RELEVANT,HIRE OF ACCOMMODATION AND FACILITIES,24/01/2018,6934985323,-162.75,TRAVELODGE
OXFORDSHIRE CC,"CHILDRENS, YOUNG PEOPLE AND FAMILIES","	LEAVING CARE CITY 2",CLIENT LODGINGS AND ACCOMMODATION,10/01/2018,6886908107,-161,TRAVELODGE
OXFORDSHIRE CC,SOCIAL AND COMMUNITY SERVICES,"	MUSEUMS COLLECTIONS",OTHER SERVICES,07/06/2017,6143585057,-159.99,VAX LTD
OXFORDSHIRE CC,ENVIRONMENT AND ECONOMY,"	FM RECHARGES",CAR LEASING - PRIVATE RENTALS,04/08/2017,6342374363,-153.63,ENTERPRISE RENT-A-CAR
OXFORDSHIRE CC,SOCIAL AND COMMUNITY SERVICES,"	WALLINGFORD / HENLEY",MATERIALS,04/08/2017,6342374443,-149.99,ARGOS LTD
OXFORDSHIRE CC,"CHILDRENS, YOUNG PEOPLE AND FAMILIES",THAME E&A HOME,CATERING PROVISIONS,15/12/2017,6821195153,-144.15,SAINSBURYS TO YOU 0600
OXFORDSHIRE CC,"CHILDRENS, YOUNG PEOPLE AND FAMILIES","	LOOKED AFTER CITY 2",CLIENT LODGINGS AND ACCOMMODATION,18/01/2018,6913211005,-142,PREMIER INN
OXFORDSHIRE CC,"CHILDRENS, YOUNG PEOPLE AND FAMILIES","	LOOKED AFTER CITY 2",PAYMENTS TO TRANSPORT OPERATORS,21/07/2017,6293518195,-137.1,TRAINLINE
OXFORDSHIRE CC,"CHILDRENS, YOUNG PEOPLE AND FAMILIES","	40 THE MOORS",MATERIALS,21/12/2017,6841928641,-133.99,FOOTPATROL.COM
OXFORDSHIRE CC,ENVIRONMENT AND ECONOMY,"	SAMUELSON HOUSE","SUPPLIES, STATIONERY AND MATERIALS",13/11/2017,6697422035,-132.89,LYRECO UK LTD
OXFORDSHIRE CC,"CHILDRENS, YOUNG PEOPLE AND FAMILIES","	LOOKED AFTER NORTH",HIRE OF ACCOMMODATION AND FACILITIES,06/07/2017,6288218413,-131,PREMIER INN
OXFORDSHIRE CC,ENVIRONMENT AND ECONOMY,"	NAT TRAILS GENERAL",HARDWARE AND CROCKERY,28/11/2017,6752187237,-129.99,SCREWFIX DIRECT
OXFORDSHIRE CC,"CHILDRENS, YOUNG PEOPLE AND FAMILIES","	THRIVING FAMILIES",OTHER EXPENSES,04/12/2017,6775093981,-127.98,ARGOS RETAIL GROUP
OXFORDSHIRE CC,"CHILDRENS, YOUNG PEOPLE AND FAMILIES",LEADING THE EYFS,PRINTING,12/09/2017,6467310309,-126.98,WWW.FORUMBUSINESSMEDIA
OXFORDSHIRE CC,SOCIAL AND COMMUNITY SERVICES,"	KINGFISHER",HIRE OF ACCOMMODATION AND FACILITIES,15/06/2017,6172489035,-126,GREAT VICTORIA
OXFORDSHIRE CC,ENVIRONMENT AND ECONOMY,"	SAMUELSON HOUSE","SUPPLIES, STATIONERY AND MATERIALS",09/08/2017,6355707679,-124.31,LYRECO UK LTD
OXFORDSHIRE CC,"CHILDRENS, YOUNG PEOPLE AND FAMILIES","	LOOKED AFTER SOUTH",PAYMENTS TO TRANSPORT OPERATORS,25/10/2017,6628964583,-122.6,CROSS COUNTRY
OXFORDSHIRE CC,"CHILDRENS, YOUNG PEOPLE AND FAMILIES","	LOOKED AFTER CITY 1",FURNITURE,18/08/2017,6386810167,-120.3,IKEA ONLINE
OXFORDSHIRE CC,"CHILDRENS, YOUNG PEOPLE AND FAMILIES","	SM QUALITY ASSURANCE",PAYMENTS TO TRANSPORT OPERATORS,24/01/2018,6934985313,-109,TRAINLINE
OXFORDSHIRE CC,ENVIRONMENT AND ECONOMY,"	SAMUELSON HOUSE",CAR LEASING - PRIVATE RENTALS,01/03/2018,7072775037,-105.9,ENTERPRISE RENT-A-CAR
OXFORDSHIRE CC,ENVIRONMENT AND ECONOMY,MUSEUMS COLLECTIONS,PAYMENTS TO TRANSPORT OPERATORS,04/12/2017,6775092581,-105.2,GWR WEBSALES
OXFORDSHIRE CC,"CHILDRENS, YOUNG PEOPLE AND FAMILIES","	MALTFIELD HOUSE",FURNITURE,25/05/2017,6103291693,-105,DUNELM LTD
OXFORDSHIRE CC,"CHILDRENS, YOUNG PEOPLE AND FAMILIES","	LOOKED AFTER CITY 2",OTHER EXPENSES,07/12/2017,6787494917,-104.59,PAYPAL  KLARHEITTEC
OXFORDSHIRE CC,"CHILDRENS, YOUNG PEOPLE AND FAMILIES",CNTL ERLY HELP-BBLEY,PAYMENTS TO TRANSPORT OPERATORS,16/05/2017,6068452509,-104.04,TRAINLINE
OXFORDSHIRE CC,"CHILDRENS, YOUNG PEOPLE AND FAMILIES","	LEAVING CARE NORTH",HIRE OF ACCOMMODATION AND FACILITIES,24/07/2017,6298965109,-104,PREMIER INN
OXFORDSHIRE CC,ENVIRONMENT AND ECONOMY,"	SAMUELSON HOUSE","SUPPLIES, STATIONERY AND MATERIALS",08/03/2018,7101044949,-102.8,LYRECO UK LTD
OXFORDSHIRE CC,CORPORATE CORE,"	PROCUREMENT",OTHER MISC INC,07/03/2018,7096170993,-102,OXFORDSHIRE CC MOTO1
OXFORDSHIRE CC,"CHILDRENS, YOUNG PEOPLE AND FAMILIES",CNTL ERLY HELP-BBLEY,PAYMENTS TO TRANSPORT OPERATORS,22/05/2017,6089657219,-100.5,TRAINLINE
OXFORDSHIRE CC,"CHILDRENS, YOUNG PEOPLE AND FAMILIES","	LEAVING CARE NORTH",HIRE OF ACCOMMODATION AND FACILITIES,24/08/2017,6405399855,-100.5,PREMIER INN
OXFORDSHIRE CC,"CHILDRENS, YOUNG PEOPLE AND FAMILIES","	ADOPTION",OTHER EXPENSES,17/04/2017,5965992155,-100,PAYPAL  TRIPADVISOR TR
OXFORDSHIRE CC,"CHILDRENS, YOUNG PEOPLE AND FAMILIES","	ADOPTION",OTHER EXPENSES,21/04/2017,5982536751,-100,SHORT LET SPACE
OXFORDSHIRE CC,"CHILDRENS, YOUNG PEOPLE AND FAMILIES","	ADOPTION",OTHER EXPENSES,16/06/2017,6177857709,-100,TRIPADV HLETS HTRIP
OXFORDSHIRE CC,"CHILDRENS, YOUNG PEOPLE AND FAMILIES","	MALTFIELD HOUSE",FURNITURE,31/07/2017,6323064601,-100,DUNELM LTD
OXFORDSHIRE CC,"CHILDRENS, YOUNG PEOPLE AND FAMILIES","	MALTFIELD HOUSE",OTHER EXPENSES,22/08/2017,6398417073,-100,HELPFUL HOLIDAYS L
OXFORDSHIRE CC,ENVIRONMENT AND ECONOMY,"	COUNTY PRINT FINSHRS",,07/03/2018,7096170839,-100,
OXFORDSHIRE CC,"CHILDRENS, YOUNG PEOPLE AND FAMILIES","	LEAVING CARE SOUTH",FURNITURE,23/10/2017,6618250069,-99.95,PAYPAL  BEDS.CO.UK
OXFORDSHIRE CC,"CHILDRENS, YOUNG PEOPLE AND FAMILIES",LEADERSHIP TEAM,TRAINING RELATED EXPENDITURE,18/01/2018,6913211261,-99.8,WWW.ADASS.ORG.UK
OXFORDSHIRE CC,ENVIRONMENT AND ECONOMY,"	SAMUELSON HOUSE","SUPPLIES, STATIONERY AND MATERIALS",08/03/2018,7101044947,-98.66,LYRECO UK LTD
OXFORDSHIRE CC,"CHILDRENS, YOUNG PEOPLE AND FAMILIES",C&I BASE ST ANDREWS,MATERIALS,13/12/2017,6810764181,-98.34,WWW.ROMPALTD.COM
OXFORDSHIRE CC,"CHILDRENS, YOUNG PEOPLE AND FAMILIES","	40 THE MOORS",FURNITURE,19/03/2018,7149317461,-97.5,DUNELM ONLINE ORDER
OXFORDSHIRE CC,"CHILDRENS, YOUNG PEOPLE AND FAMILIES",FAMILY SUPPORT 2,PAYMENTS TO TRANSPORT OPERATORS,07/06/2017,6143585483,-97.2,TRAINLINE
OXFORDSHIRE CC,"CHILDRENS, YOUNG PEOPLE AND FAMILIES","	FPT CITY",PAYMENTS TO TRANSPORT OPERATORS,04/12/2017,6775093587,-96.4,TRAINLINE
OXFORDSHIRE CC,"CHILDRENS, YOUNG PEOPLE AND FAMILIES",CNTL ERLY HELP-BBLEY,MATERIALS,21/02/2018,7040464957,-90,CURRYS ONLINE
OXFORDSHIRE CC,"CHILDRENS, YOUNG PEOPLE AND FAMILIES","	LOOKED AFTER SOUTH",HIRE OF ACCOMMODATION AND FACILITIES,05/03/2018,7084680311,-88.99,PREMIER INN
OXFORDSHIRE CC,"CHILDRENS, YOUNG PEOPLE AND FAMILIES","	FPT CITY",PAYMENTS TO TRANSPORT OPERATORS,04/12/2017,6775093591,-86.5,TRAINLINE
OXFORDSHIRE CC,"CHILDRENS, YOUNG PEOPLE AND FAMILIES","	MALTFIELD HOUSE",ENTERTAINMENT EXPENSES,14/12/2017,6816074897,-86,TICKETMASTER UK
OXFORDSHIRE CC,"CHILDRENS, YOUNG PEOPLE AND FAMILIES","	SM QUALITY ASSURANCE",PAYMENTS TO TRANSPORT OPERATORS,17/11/2017,6719335979,-85.7,TRAINLINE
OXFORDSHIRE CC,"CHILDRENS, YOUNG PEOPLE AND FAMILIES","	DIRECTOR'S OFFICE",PAYMENTS TO TRANSPORT OPERATORS,28/03/2018,7179677945,-85,TRAINLINE
OXFORDSHIRE CC,ENVIRONMENT AND ECONOMY,"	SAMUELSON HOUSE","SUPPLIES, STATIONERY AND MATERIALS",15/01/2018,6929958911,-84.96,LYRECO UK LTD
OXFORDSHIRE CC,ENVIRONMENT AND ECONOMY,"	SAMUELSON HOUSE","SUPPLIES, STATIONERY AND MATERIALS",28/02/2018,7067705161,-83.14,LYRECO UK LTD
OXFORDSHIRE CC,"CHILDRENS, YOUNG PEOPLE AND FAMILIES",NRPF & HOMELESSNESS,OTHER TRANSPORT ARRANGEMENTS,15/01/2018,6929958749,-83,STAGECOACH SERVICE
OXFORDSHIRE CC,"CHILDRENS, YOUNG PEOPLE AND FAMILIES","	FPT NORTH",PAYMENTS TO TRANSPORT OPERATORS,26/12/2017,6849845539,-82,TRAINLINE
OXFORDSHIRE CC,"CHILDRENS, YOUNG PEOPLE AND FAMILIES","	LEAVING CARE SOUTH",OTHER TRANSPORT ARRANGEMENTS,31/05/2017,6120679099,-81,STAGECOACH SERVICE
OXFORDSHIRE CC,"CHILDRENS, YOUNG PEOPLE AND FAMILIES","	FAM SUPP CITY 1",FURNITURE,04/07/2017,6239107019,-80,BEDS TO U
OXFORDSHIRE CC,"CHILDRENS, YOUNG PEOPLE AND FAMILIES",DIDCOT MOVE-ON HOME,CATERING PROVISIONS,25/09/2017,6514655153,-80,SAINSBURYS 0632
OXFORDSHIRE CC,SOCIAL AND COMMUNITY SERVICES,"	OPERATIONAL COSTS",PAYMENTS TO TRANSPORT OPERATORS,16/03/2018,7134190987,-80,TRAINLINE
OXFORDSHIRE CC,"CHILDRENS, YOUNG PEOPLE AND FAMILIES","	ASSESS TEAM CITY",HIRE OF ACCOMMODATION AND FACILITIES,16/02/2018,7024736675,-77.75,TRAVELODGE
OXFORDSHIRE CC,"CHILDRENS, YOUNG PEOPLE AND FAMILIES","	YOS NORTH TEAM",OTHER SERVICES,17/10/2017,6598747687,-74.25,
OXFORDSHIRE CC,ENVIRONMENT AND ECONOMY,"	SAMUELSON HOUSE",CAR LEASING - PRIVATE RENTALS,01/03/2018,7072775035,-73.9,ENTERPRISE RENT-A-CAR
OXFORDSHIRE CC,SOCIAL AND COMMUNITY SERVICES,"	WESTGATE SITE",MATERIALS,05/09/2017,6444776661,-71.94,ARGOS DIRECT
OXFORDSHIRE CC,CORPORATE CORE,ICT OPERATIONS & MAI,PAYMENTS TO TRANSPORT OPERATORS,08/09/2017,6455466943,-70.5,GWR CORP WEBBTSECOM
OXFORDSHIRE CC,CORPORATE CORE,ICT OPERATIONS & MAI,PAYMENTS TO TRANSPORT OPERATORS,08/09/2017,6455466939,-70.5,GWR CORP WEBBTSECOM
OXFORDSHIRE CC,"CHILDRENS, YOUNG PEOPLE AND FAMILIES","	ADOPTION",OTHER EXPENSES,08/05/2017,6075348973,-69,WYNVR.CO.UK HOL ACCOM
OXFORDSHIRE CC,"CHILDRENS, YOUNG PEOPLE AND FAMILIES",MEMBERS SERVICES,STAFF USE OF PUBLIC TRANSPORT,06/11/2017,6670251885,-68.9,GWR OXFORD TO
OXFORDSHIRE CC,ENVIRONMENT AND ECONOMY,"	NAT TRAILS GENERAL",MATERIALS,29/12/2017,6858295039,-68.37,AMZ AMAZON.CO.UK
OXFORDSHIRE CC,"CHILDRENS, YOUNG PEOPLE AND FAMILIES","	MALTFIELD HOUSE",OTHER EXPENSES,15/01/2018,6929958887,-67,SAINSBURY'S
OXFORDSHIRE CC,ENVIRONMENT AND ECONOMY,"	SAMUELSON HOUSE","SUPPLIES, STATIONERY AND MATERIALS",02/08/2017,6332634269,-66.96,LYRECO UK LTD
OXFORDSHIRE CC,"CHILDRENS, YOUNG PEOPLE AND FAMILIES",FAMILY SUPPORT 2,PAYMENTS TO TRANSPORT OPERATORS,24/04/2017,5989078439,-66.9,TRAINLINE
OXFORDSHIRE CC,CORPORATE CORE,"	ORGANISATIONAL DEV'T",PAYMENTS TO TRANSPORT OPERATORS,13/09/2017,6471426569,-66.6,GWR WEBSALES
OXFORDSHIRE CC,CORPORATE CORE,HR CPD,OTHER TRAINING COURSES AND QUALIFICATION,12/01/2018,6893891421,-66,WWW.BFI.CO.UK
OXFORDSHIRE CC,CORPORATE CORE,ICT OPERATIONS & MAI,PAYMENTS TO TRANSPORT OPERATORS,08/09/2017,6455466937,-65.9,GWR CORP WEBBTSECOM
OXFORDSHIRE CC,SOCIAL AND COMMUNITY SERVICES,LEAVING CARE NORTH,MATERIALS,25/09/2017,6514654409,-65,J D SPORTS 681
OXFORDSHIRE CC,"CHILDRENS, YOUNG PEOPLE AND FAMILIES",CNTL EARLY HELP-BRTN,OTHER EXPENSES,06/02/2018,6984829595,-64.79,LYCO DIRECT LTD
OXFORDSHIRE CC,ENVIRONMENT AND ECONOMY,"	COUNTY PRINT FINSHRS",,07/03/2018,7096170835,-63.9,
OXFORDSHIRE CC,ENVIRONMENT AND ECONOMY,"	NAT TRAILS GENERAL",HARDWARE AND CROCKERY,12/06/2017,6159013559,-61.44,SCREWFIX DIRECT
OXFORDSHIRE CC,"CHILDRENS, YOUNG PEOPLE AND FAMILIES","	DIRECTOR'S OFFICE",PAYMENTS TO TRANSPORT OPERATORS,10/11/2017,6690742297,-61.3,TRAINLINE
OXFORDSHIRE CC,CORPORATE CORE,"	CORPORATE FINANCE",PAYMENTS TO TRANSPORT OPERATORS,13/03/2018,7120341119,-61.3,GWR WEBSALES
OXFORDSHIRE CC,SOCIAL AND COMMUNITY SERVICES,"	PUBLIC HEALTH GENERA",PAYMENTS TO TRANSPORT OPERATORS,21/03/2018,7151240229,-61.3,GWR CORP WEBBTSECOM
OXFORDSHIRE CC,"CHILDRENS, YOUNG PEOPLE AND FAMILIES","	LEAVING CARE CITY 1",PAYMENTS TO TRANSPORT OPERATORS,26/05/2017,6108897577,-58.9,TRAINLINE
OXFORDSHIRE CC,CORPORATE CORE,SNR LEADERSHIP TEAM,PAYMENTS TO TRANSPORT OPERATORS,13/10/2017,6585342413,-58.9,GWR OXFORD TO
OXFORDSHIRE CC,CORPORATE CORE,SNR LEADERSHIP TEAM,PAYMENTS TO TRANSPORT OPERATORS,15/12/2017,6821195383,-58.9,GWR OXFORD TO
OXFORDSHIRE CC,SOCIAL AND COMMUNITY SERVICES,"	PUBLIC HEALTH GENERA",PAYMENTS TO TRANSPORT OPERATORS,28/12/2017,6856582843,-58.9,GWR CORP WEBBTSECOM
OXFORDSHIRE CC,"CHILDRENS, YOUNG PEOPLE AND FAMILIES",C&F - TF CONTRIB,OTHER TRANSPORT ARRANGEMENTS,15/02/2018,7019988043,-58.75,OXFORD BUS COMPANY
OXFORDSHIRE CC,"CHILDRENS, YOUNG PEOPLE AND FAMILIES","	LOOKED AFTER NORTH",HIRE OF ACCOMMODATION AND FACILITIES,05/01/2018,6871379925,-58,TRAVELODGE
OXFORDSHIRE CC,"CHILDRENS, YOUNG PEOPLE AND FAMILIES","	SM QUALITY ASSURANCE",PAYMENTS TO TRANSPORT OPERATORS,15/02/2018,7019987945,-57.2,TRAINLINE
OXFORDSHIRE CC,"CHILDRENS, YOUNG PEOPLE AND FAMILIES","	SM QUALITY ASSURANCE",PAYMENTS TO TRANSPORT OPERATORS,15/02/2018,7019987941,-57.2,TRAINLINE
OXFORDSHIRE CC,CORPORATE CORE,"	LEGAL SERVICES",SUBSCRIPTIONS,10/10/2017,6572732389,-57.1,DISCLOSURE.CO.UK
OXFORDSHIRE CC,CORPORATE CORE,ICT OPERATIONS & MAI,PAYMENTS TO TRANSPORT OPERATORS,08/09/2017,6455466941,-55.9,GWR CORP WEBBTSECOM
OXFORDSHIRE CC,"CHILDRENS, YOUNG PEOPLE AND FAMILIES","	NCS","PUBLICITY, PROMOTIONS AND ADVERTISEMENT",13/03/2018,7120341575,-55.2,PAYPAL  COLOURBANNE
OXFORDSHIRE CC,CORPORATE CORE,ICT OPERATIONS & MAI,MATERIALS,03/05/2017,6024142521,-55.13,KEPLE LTD
OXFORDSHIRE CC,"CHILDRENS, YOUNG PEOPLE AND FAMILIES","	MALTFIELD HOUSE",OTHER EXPENSES,19/03/2018,7149316627,-54.99,SAINSBURYS 0631
OXFORDSHIRE CC,"CHILDRENS, YOUNG PEOPLE AND FAMILIES","	HEARING IMPAIRMENT","BOOKS, DVDS AND CDS",18/10/2017,6602235253,-54.97,AMZ BESMALL
OXFORDSHIRE CC,ENVIRONMENT AND ECONOMY,"	NAT TRAILS GENERAL",MATERIALS,10/10/2017,6572732231,-54.85,PAYPAL  NORFOLKSAWS
OXFORDSHIRE CC,CORPORATE CORE,"	PROCUREMENT",OTHER MISC INC,07/03/2018,7096170989,-54,OXFORDSHIRE CC MOTO1
OXFORDSHIRE CC,"CHILDRENS, YOUNG PEOPLE AND FAMILIES","	LOOKED AFTER CITY 1",PAYMENTS TO TRANSPORT OPERATORS,23/08/2017,6401242237,-52.9,GWR OXFORD TO
OXFORDSHIRE CC,ENVIRONMENT AND ECONOMY,"	COUNTY PRINT FINSHRS",,07/03/2018,7096170833,-52.1,
OXFORDSHIRE CC,"CHILDRENS, YOUNG PEOPLE AND FAMILIES","	MUSIC UNALLOCABLE","BOOKS, DVDS AND CDS",16/10/2017,6591417271,-51.8,AMZ SOBUY-SHOP AMAZON.
OXFORDSHIRE CC,"CHILDRENS, YOUNG PEOPLE AND FAMILIES",PLACEMENTS-FRELEVANT,HIRE OF ACCOMMODATION AND FACILITIES,08/12/2017,6792587047,-51,PREMIER INN
OXFORDSHIRE CC,ENVIRONMENT AND ECONOMY,"	NAT TRAILS GENERAL",STATIONERY,11/08/2017,6363974865,-50.97,WWW.VIKING-DIRECT.CO.U
OXFORDSHIRE CC,ENVIRONMENT AND ECONOMY,"	SAMUELSON HOUSE",CAR LEASING - PRIVATE RENTALS,01/03/2018,7072775033,-50.45,ENTERPRISE RENT-A-CAR
OXFORDSHIRE CC,"CHILDRENS, YOUNG PEOPLE AND FAMILIES","	MALTFIELD HOUSE",OTHER EXPENSES,25/05/2017,6103291255,-50,DUNELM LTD
OXFORDSHIRE CC,"CHILDRENS, YOUNG PEOPLE AND FAMILIES",LEADERSHIP TEAM,HIRE OF ACCOMMODATION AND FACILITIES,14/07/2017,6269435737,-50,MALMAISON OXFORD
OXFORDSHIRE CC,ENVIRONMENT AND ECONOMY,"	COUNTY PRINT FINSHRS",,07/03/2018,7096170831,-50,
OXFORDSHIRE CC,ENVIRONMENT AND ECONOMY,"	COUNTY PRINT FINSHRS",,07/03/2018,7096170837,-50,
OXFORDSHIRE CC,ENVIRONMENT AND ECONOMY,"	SAMUELSON HOUSE","SUPPLIES, STATIONERY AND MATERIALS",11/09/2017,6461145399,-49.82,LYRECO UK LTD
OXFORDSHIRE CC,SOCIAL AND COMMUNITY SERVICES,"	PUBLIC HEALTH GENERA",PAYMENTS TO TRANSPORT OPERATORS,06/07/2017,6288218543,-48.2,GWR CORP WEBBTSECOM
OXFORDSHIRE CC,CORPORATE CORE,HOLTON SITE,CLOTHING AND UNIFORMS,04/05/2017,6075197491,-47.88,ALEXANDRA WEBSITE
OXFORDSHIRE CC,SOCIAL AND COMMUNITY SERVICES,"	DAAT STAFFING",PAYMENTS TO TRANSPORT OPERATORS,15/03/2018,7129042403,-47.1,TRAINLINE
OXFORDSHIRE CC,ENVIRONMENT AND ECONOMY,"	BUSINESS SYST STAFF",PAYMENTS TO TRANSPORT OPERATORS,17/10/2017,6598747901,-46.9,TRAINLINE
OXFORDSHIRE CC,"CHILDRENS, YOUNG PEOPLE AND FAMILIES","	LEAVING CARE NORTH",MATERIALS,16/02/2018,7024736601,-45,JD SPORTS INTERNET
OXFORDSHIRE CC,SOCIAL AND COMMUNITY SERVICES,"	WANTAGE DC",CATERING PROVISIONS,11/09/2017,6461145085,-44.18,ALDI 99 775        S
OXFORDSHIRE CC,"CHILDRENS, YOUNG PEOPLE AND FAMILIES",CNTL ERLY HELP-BBLEY,PAYMENTS TO TRANSPORT OPERATORS,04/01/2018,6868259987,-43.35,TRAINLINE
OXFORDSHIRE CC,"CHILDRENS, YOUNG PEOPLE AND FAMILIES",EYNSHAM,MATERIALS,09/11/2017,6685497333,-42.94,WWW.ARGOS.CO.UK
OXFORDSHIRE CC,"CHILDRENS, YOUNG PEOPLE AND FAMILIES","	MUSIC UNALLOCABLE",CAR LEASING - PRIVATE RENTALS,12/12/2017,6807305973,-42.3,EURODRIVE
OXFORDSHIRE CC,SOCIAL AND COMMUNITY SERVICES,BOX GRANT PROJECTS,POSTAGE AND DELIVERY,02/11/2017,6659144175,-42.2,SPEEDSHIFT LOGISTICS L
OXFORDSHIRE CC,"CHILDRENS, YOUNG PEOPLE AND FAMILIES",FPT SOUTH/VALE,OTHER SERVICES,29/05/2017,6113158953,-42,PAYPAL  AUTISM OXFD
OXFORDSHIRE CC,SOCIAL AND COMMUNITY SERVICES,"	DAAT STAFFING",PAYMENTS TO TRANSPORT OPERATORS,08/06/2017,6147837801,-41.4,GWR CORP WEBBTSECOM
OXFORDSHIRE CC,CORPORATE CORE,"	CORPORATE FINANCE",PAYMENTS TO TRANSPORT OPERATORS,30/06/2017,6228978387,-40.4,GWR WEBSALES
OXFORDSHIRE CC,CORPORATE CORE,DEPUTY DIRECTOR &MAN,HIRE OF ACCOMMODATION AND FACILITIES,05/05/2017,6032327521,-40,MACDONALD BURLINGTON
OXFORDSHIRE CC,CORPORATE CORE,REGISTRAR,HIRE OF ACCOMMODATION AND FACILITIES,02/11/2017,6659144463,-40,THE VINCENT HOTEL SOUT
OXFORDSHIRE CC,"CHILDRENS, YOUNG PEOPLE AND FAMILIES",WITNEY,MATERIALS,01/02/2018,6966441683,-40,THE POTTERY PLACE
OXFORDSHIRE CC,"CHILDRENS, YOUNG PEOPLE AND FAMILIES","	40 THE MOORS",MATERIALS,12/03/2018,7113438505,-40,JD SPORTS INTERNET
OXFORDSHIRE CC,"CHILDRENS, YOUNG PEOPLE AND FAMILIES",CNTL EARLY HELP-BRTN,MATERIALS,21/09/2017,6501548403,-39.99,AMZ AMAZON.CO.UK
OXFORDSHIRE CC,CORPORATE CORE,"	COMMUNICATIONS",PHOTOCOPYING,06/04/2017,5933827345,-38.4,STK SHUTTERSTOCK.COM
OXFORDSHIRE CC,"CHILDRENS, YOUNG PEOPLE AND FAMILIES","	LOOKED AFTER CITY 1",OTHER SERVICES,14/07/2017,6269436117,-38.4,HEATHROW AIRPORT
OXFORDSHIRE CC,ENVIRONMENT AND ECONOMY,"	SAMUELSON HOUSE","SUPPLIES, STATIONERY AND MATERIALS",01/03/2018,7072774997,-38.18,LYRECO UK LTD
OXFORDSHIRE CC,"CHILDRENS, YOUNG PEOPLE AND FAMILIES","	LEAVING CARE CITY 1",PAYMENTS TO TRANSPORT OPERATORS,08/12/2017,6792586909,-38.1,TRAINLINE
OXFORDSHIRE CC,SOCIAL AND COMMUNITY SERVICES,"	DAAT STAFFING",PAYMENTS TO TRANSPORT OPERATORS,08/06/2017,6147837805,-37.3,GWR CORP WEBBTSECOM
OXFORDSHIRE CC,ENVIRONMENT AND ECONOMY,"	MUSEUM RETAIL","BOOKS, DVDS AND CDS",06/11/2017,6670251785,-36,BOOK NETWORK INTER
OXFORDSHIRE CC,ENVIRONMENT AND ECONOMY,"	SAMUELSON HOUSE","SUPPLIES, STATIONERY AND MATERIALS",28/02/2018,7067705159,-36,LYRECO UK LTD
OXFORDSHIRE CC,"CHILDRENS, YOUNG PEOPLE AND FAMILIES",SI EQUIPMENT,"BOOKS, DVDS AND CDS",18/10/2017,6602235249,-35.98,AMZ BESMALL
OXFORDSHIRE CC,"CHILDRENS, YOUNG PEOPLE AND FAMILIES","	LOOKED AFTER CITY 1",HIRE OF ACCOMMODATION AND FACILITIES,10/11/2017,6690742083,-35.96,PREMIER INN
OXFORDSHIRE CC,CORPORATE CORE,"	CC TRAINING",PAYMENTS TO TRANSPORT OPERATORS,09/06/2017,6152781609,-35.5,GWR WEBSALES
OXFORDSHIRE CC,"CHILDRENS, YOUNG PEOPLE AND FAMILIES","	NCS",OTHER SERVICES,16/02/2018,7024736693,-35,OXFORDSHIRE COUNTY COU
OXFORDSHIRE CC,ENVIRONMENT AND ECONOMY,"	LEP",STAFF USE OF PUBLIC TRANSPORT,07/06/2017,6143585061,-34.8,TRAINLINE
OXFORDSHIRE CC,"CHILDRENS, YOUNG PEOPLE AND FAMILIES","	MALTFIELD HOUSE",CLOTHING AND UNIFORMS,05/09/2017,6444776739,-34,BLUE INC UK LIMITED
OXFORDSHIRE CC,SOCIAL AND COMMUNITY SERVICES,COMMENTS&INFORMATION,MATERIALS,28/03/2018,7179677947,-33.94,AMZ AMAZON.CO.UK
OXFORDSHIRE CC,"CHILDRENS, YOUNG PEOPLE AND FAMILIES","	LOOKED AFTER CITY 1",CLOTHING AND UNIFORMS,15/05/2017,6063427029,-33.43,SPORTSWEAR INT. LTD
OXFORDSHIRE CC,SOCIAL AND COMMUNITY SERVICES,"	OPERATIONAL COSTS",PAYMENTS TO TRANSPORT OPERATORS,21/04/2017,5982536709,-32.8,GWR WEBSALES
OXFORDSHIRE CC,"CHILDRENS, YOUNG PEOPLE AND FAMILIES",EYNSHAM,CATERING PROVISIONS,03/04/2017,5923481649,-32.4,ASDA HOME SHOPPING
OXFORDSHIRE CC,"CHILDRENS, YOUNG PEOPLE AND FAMILIES","	SM QUALITY ASSURANCE",PAYMENTS TO TRANSPORT OPERATORS,12/02/2018,7004716739,-31.1,SOUTHERN RAILWAY WEB
OXFORDSHIRE CC,"CHILDRENS, YOUNG PEOPLE AND FAMILIES","	LOOKED AFTER CITY 2",CLIENT LODGINGS AND ACCOMMODATION,16/01/2018,6906020025,-31,TRAVELODGE
OXFORDSHIRE CC,ENVIRONMENT AND ECONOMY,"	BUSINESS SYST STAFF","BOOKS, DVDS AND CDS",29/09/2017,6533412581,-30.99,AMZ KAIDIM +44 207 084
OXFORDSHIRE CC,"CHILDRENS, YOUNG PEOPLE AND FAMILIES","	DISABILITIES TEAM-C",PAYMENTS TO TRANSPORT OPERATORS,08/11/2017,6681187709,-30.9,TRAINLINE
OXFORDSHIRE CC,ENVIRONMENT AND ECONOMY,"	SAMUELSON HOUSE","SUPPLIES, STATIONERY AND MATERIALS",20/11/2017,6726202349,-30.56,LYRECO UK LTD
OXFORDSHIRE CC,"CHILDRENS, YOUNG PEOPLE AND FAMILIES",DIDCOT MOVE-ON HOME,CATERING PROVISIONS,07/04/2017,5938245559,-30.44,ASDA HOME SHOPPING
OXFORDSHIRE CC,"CHILDRENS, YOUNG PEOPLE AND FAMILIES",EYNSHAM,CATERING PROVISIONS,13/09/2017,6471427157,-30.41,ASDA HOME SHOPPING
OXFORDSHIRE CC,"CHILDRENS, YOUNG PEOPLE AND FAMILIES","	LOOKED AFTER CITY 2",SUBSCRIPTIONS,07/08/2017,6346492457,-30,NCS TRUST
OXFORDSHIRE CC,"CHILDRENS, YOUNG PEOPLE AND FAMILIES","	LOOKED AFTER SOUTH",OTHER SERVICES,08/11/2017,6681187983,-30,OCC REGISTRARS (M)
OXFORDSHIRE CC,"CHILDRENS, YOUNG PEOPLE AND FAMILIES","	MALTFIELD HOUSE",MATERIALS,09/01/2018,6881430927,-29.99,ARGOS LTD
OXFORDSHIRE CC,"CHILDRENS, YOUNG PEOPLE AND FAMILIES","	MALTFIELD HOUSE",MATERIALS,13/04/2017,5958205457,-29.98,ARGOS LTD
OXFORDSHIRE CC,"CHILDRENS, YOUNG PEOPLE AND FAMILIES","	MALTFIELD HOUSE",OTHER EXPENSES,18/12/2017,6828695519,-29.98,TOYS R US
OXFORDSHIRE CC,"CHILDRENS, YOUNG PEOPLE AND FAMILIES",CNTL EARLY HELP-BRTN,OTHER EXPENSES,05/02/2018,6977913045,-29.96,WWW.PLUMBWORLD.CO.UK
OXFORDSHIRE CC,"CHILDRENS, YOUNG PEOPLE AND FAMILIES","	FAM SUPP SOUTH",CATERING PROVISIONS,19/05/2017,6083368329,-29.88,ASDA HOME SHOPPING
OXFORDSHIRE CC,"CHILDRENS, YOUNG PEOPLE AND FAMILIES",CNTL ERLY HELP-BBLEY,CLOTHING AND UNIFORMS,11/12/2017,6801277391,-29.5,PAYPAL  BOROBRIDGE
OXFORDSHIRE CC,"CHILDRENS, YOUNG PEOPLE AND FAMILIES","	MUSIC UNALLOCABLE",OTHER SERVICES,06/06/2017,6139822063,-29.49,WWW.WEDEALMEETANDGREET
OXFORDSHIRE CC,"CHILDRENS, YOUNG PEOPLE AND FAMILIES",THAME E&A HOME,MATERIALS,03/01/2018,6865608875,-28.9,AMAZON EU AMAZON.CO.UK
OXFORDSHIRE CC,SOCIAL AND COMMUNITY SERVICES,"	FAMILY SUPPORT N'TH2",HIRE OF EQUIPMENT,15/05/2017,6063427545,-28.73,WWW.MISCO.CO.UK
OXFORDSHIRE CC,ENVIRONMENT AND ECONOMY,"	NAT TRAILS GENERAL",MATERIALS,08/01/2018,6876279883,-28.47,AMZ AMAZON.CO.UK
OXFORDSHIRE CC,CORPORATE CORE,REGISTRAR,MATERIALS,17/10/2017,6598747841,-27.96,AMZ VISIBEE
OXFORDSHIRE CC,"CHILDRENS, YOUNG PEOPLE AND FAMILIES",EYNSHAM,CATERING PROVISIONS,30/05/2017,6118916317,-27.68,ASDA HOME SHOPPING
OXFORDSHIRE CC,"CHILDRENS, YOUNG PEOPLE AND FAMILIES","	YOUNG CARERS WORKER",CATERING,01/06/2017,6146642409,-27.25,PIZZA EXPRESS
OXFORDSHIRE CC,ENVIRONMENT AND ECONOMY,"	TVERC",OTHER SERVICES,01/05/2017,6012635405,-27.14,EVENTBRITE
OXFORDSHIRE CC,"CHILDRENS, YOUNG PEOPLE AND FAMILIES","	MALTFIELD HOUSE",MATERIALS,15/08/2017,6375221787,-27.11,AMZ AMAZON.CO.UK
OXFORDSHIRE CC,"CHILDRENS, YOUNG PEOPLE AND FAMILIES",CNTL EARLY HELP-BRTN,OTHER EXPENSES,29/01/2018,6950843581,-26.99,TESCO DIRECT
OXFORDSHIRE CC,"CHILDRENS, YOUNG PEOPLE AND FAMILIES","	40 THE MOORS",CATERING PROVISIONS,25/09/2017,6514655071,-26.82,ASDA HOME SHOPPING
OXFORDSHIRE CC,"CHILDRENS, YOUNG PEOPLE AND FAMILIES",FAMILY SUPPORT 2,PAYMENTS TO TRANSPORT OPERATORS,19/04/2017,5974259329,-26.3,TRAINLINE
OXFORDSHIRE CC,"CHILDRENS, YOUNG PEOPLE AND FAMILIES",THAME E&A HOME,ENTERTAINMENT EXPENSES,28/12/2017,6856582801,-25.98,RED KANGAROO
OXFORDSHIRE CC,SHARED SERVICES,CENTRAL TEAM OCS,PAYMENTS TO TRANSPORT OPERATORS,24/11/2017,6743064165,-25.3,GWR CORP WEBBTSECOM
OXFORDSHIRE CC,CORPORATE CORE,ICT OPERATIONS & MAI,"BOOKS, DVDS AND CDS",17/07/2017,6279911517,-25,BLACKWELL S
OXFORDSHIRE CC,"CHILDRENS, YOUNG PEOPLE AND FAMILIES",C&F - TF CONTRIB,"BOOKS, DVDS AND CDS",14/12/2017,6816074975,-24.99,WATERSTONES.COM
OXFORDSHIRE CC,"CHILDRENS, YOUNG PEOPLE AND FAMILIES","	MALTFIELD HOUSE",PAYMENTS TO TRANSPORT OPERATORS,30/01/2018,6958138363,-24.23,BRITISH A
OXFORDSHIRE CC,ENVIRONMENT AND ECONOMY,"	NAT TRAILS GENERAL",MATERIALS,29/12/2017,6858295037,-23.99,AMZ AMAZON.CO.UK
OXFORDSHIRE CC,CORPORATE CORE,HOLTON SITE,CLOTHING AND UNIFORMS,04/05/2017,6075197487,-23.94,ALEXANDRA WEBSITE
OXFORDSHIRE CC,ENVIRONMENT AND ECONOMY,THE RIDGEWAY,MATERIALS,14/02/2018,7015357719,-23.58,WWW.IRONMONGERYDIRECT.
OXFORDSHIRE CC,"CHILDRENS, YOUNG PEOPLE AND FAMILIES","	LOOKED AFTER CITY 1",PAYMENT TO GOVERNMENT DEPARTMENTS,12/07/2017,6260484165,-23.4,GRO HM PASSPORT OFFICE
OXFORDSHIRE CC,"CHILDRENS, YOUNG PEOPLE AND FAMILIES",FAMILY SUPPORT 2,PAYMENT TO GOVERNMENT DEPARTMENTS,14/09/2017,6475189485,-23.4,GRO HM PASSPORT OFFICE
OXFORDSHIRE CC,"CHILDRENS, YOUNG PEOPLE AND FAMILIES","	LEAVING CARE NORTH",PAYMENT TO GOVERNMENT DEPARTMENTS,10/11/2017,6690742279,-23.4,GRO HM PASSPORT OFFICE
OXFORDSHIRE CC,"CHILDRENS, YOUNG PEOPLE AND FAMILIES","	MALTFIELD HOUSE",CATERING,12/02/2018,7004716829,-23.28,SAINSBURYS TO YOU 0600
OXFORDSHIRE CC,"CHILDRENS, YOUNG PEOPLE AND FAMILIES","	MALTFIELD HOUSE","SUPPLIES, STATIONERY AND MATERIALS",24/08/2017,6405399879,-23.09,WWW.STAPLES.CO.UK
OXFORDSHIRE CC,ENVIRONMENT AND ECONOMY,"	MUSEUM DEV OFFICER",PAYMENTS TO TRANSPORT OPERATORS,30/10/2017,6644531369,-23,WEST COAST TRAINS
OXFORDSHIRE CC,"CHILDRENS, YOUNG PEOPLE AND FAMILIES","	40 THE MOORS",MATERIALS,02/08/2017,6332634207,-22.73,AMZ SOURCEWORLD
OXFORDSHIRE CC,"CHILDRENS, YOUNG PEOPLE AND FAMILIES","	SM QUALITY ASSURANCE",PAYMENTS TO TRANSPORT OPERATORS,09/11/2017,6685497361,-22.6,TRAINLINE
OXFORDSHIRE CC,CORPORATE CORE,"	CORPORATE FINANCE",PAYMENTS TO TRANSPORT OPERATORS,22/11/2017,6736517999,-22.2,WWW.GWR.COM
OXFORDSHIRE CC,CORPORATE CORE,LIBRARY COLLECTIONS,"BOOKS, DVDS AND CDS",22/01/2018,6923957507,-21.5,PAYPAL  EUREKAPARTN
OXFORDSHIRE CC,"CHILDRENS, YOUNG PEOPLE AND FAMILIES","	FAM SUPP CITY 1","SUPPLIES, STATIONERY AND MATERIALS",05/09/2017,6444776761,-21.49,WWW.RYMAN.CO.UK
OXFORDSHIRE CC,SOCIAL AND COMMUNITY SERVICES,"	WALLINGFORD DC",CLOTHING AND UNIFORMS,14/06/2017,6168399637,-21.42,ALEXANDRA WEBSITE
OXFORDSHIRE CC,"CHILDRENS, YOUNG PEOPLE AND FAMILIES",EYNSHAM,CATERING PROVISIONS,08/01/2018,6876281585,-20.66,ASDA HOME SHOPPING
OXFORDSHIRE CC,"CHILDRENS, YOUNG PEOPLE AND FAMILIES",EYNSHAM,CATERING PROVISIONS,18/12/2017,6828696725,-20.44,ASDA HOME SHOPPING
OXFORDSHIRE CC,"CHILDRENS, YOUNG PEOPLE AND FAMILIES",EYNSHAM,CATERING PROVISIONS,27/11/2017,6748323007,-20.43,ASDA HOME SHOPPING
OXFORDSHIRE CC,"CHILDRENS, YOUNG PEOPLE AND FAMILIES",FAMILY SUPPORT 2,PAYMENTS TO TRANSPORT OPERATORS,25/04/2017,5994935615,-20.05,TRAINLINE
OXFORDSHIRE CC,CORPORATE CORE,"	LEGAL SERVICES",STAFF SUBSISTENCE,29/05/2017,6113158407,-20,GWR CORP WEBBTSECOM
OXFORDSHIRE CC,"CHILDRENS, YOUNG PEOPLE AND FAMILIES",NTH EARLY HELP-BNRBY,OTHER SERVICES,18/08/2017,6386810061,-20,OXFORDSHIRE COUNTY COU
OXFORDSHIRE CC,"CHILDRENS, YOUNG PEOPLE AND FAMILIES","	40 THE MOORS",MATERIALS,31/03/2017,5914890237,-19.99,AMZ BLINDS & CURTAINS
OXFORDSHIRE CC,"CHILDRENS, YOUNG PEOPLE AND FAMILIES","	MALTFIELD HOUSE",CLOTHING AND UNIFORMS,26/06/2017,6208907009,-19.99,NEW LOOK INTERNET
OXFORDSHIRE CC,"CHILDRENS, YOUNG PEOPLE AND FAMILIES","	40 THE MOORS",MATERIALS,18/12/2017,6828696525,-19.99,AMZ TOYWAREHOUSEUK
OXFORDSHIRE CC,"CHILDRENS, YOUNG PEOPLE AND FAMILIES","	LOOKED AFTER NORTH",OTHER EXPENSES,23/05/2017,6095486777,-19.48,WH SMITH
OXFORDSHIRE CC,SOCIAL AND COMMUNITY SERVICES,CSS - OXFORD,CATERING PROVISIONS,28/02/2018,7067704915,-19.2,TESCO STORE 2994
OXFORDSHIRE CC,"CHILDRENS, YOUNG PEOPLE AND FAMILIES",ADOPTION SUPPORT,OTHER EXPENSES,16/10/2017,6591417583,-18.94,PGL TRAVEL LIMITED
OXFORDSHIRE CC,"CHILDRENS, YOUNG PEOPLE AND FAMILIES",EYNSHAM,CATERING PROVISIONS,06/06/2017,6139822097,-18.93,ASDA HOME SHOPPING
OXFORDSHIRE CC,"CHILDRENS, YOUNG PEOPLE AND FAMILIES",CNTL EARLY HELP-BRTN,PAYMENTS TO VOLUNTARY BODIES,29/06/2017,6222938879,-18.6,WWW.CORAM.ORG.UK
OXFORDSHIRE CC,"CHILDRENS, YOUNG PEOPLE AND FAMILIES",CNTL EARLY HELP-BRTN,CATERING PROVISIONS,21/06/2017,6192745889,-18.5,ASDA HOME SHOPPING
OXFORDSHIRE CC,"CHILDRENS, YOUNG PEOPLE AND FAMILIES",SI EQUIPMENT,"BOOKS, DVDS AND CDS",19/10/2017,6606799675,-17.99,AMZ BESMALL +44 207 08
OXFORDSHIRE CC,"CHILDRENS, YOUNG PEOPLE AND FAMILIES",UASC UNDER 16,CLOTHING AND UNIFORMS,23/10/2017,6618249917,-17.5,WWW.MILLETS.CO.UK
OXFORDSHIRE CC,"CHILDRENS, YOUNG PEOPLE AND FAMILIES","	DISABILITIES TEAM-C",MATERIALS,08/03/2018,7101044869,-17.5,WWW.ARGOS.CO.UK
OXFORDSHIRE CC,"CHILDRENS, YOUNG PEOPLE AND FAMILIES",EYNSHAM,CATERING PROVISIONS,01/08/2017,6329391713,-17.48,ASDA HOME SHOPPING
OXFORDSHIRE CC,"CHILDRENS, YOUNG PEOPLE AND FAMILIES","	40 THE MOORS",CATERING PROVISIONS,22/05/2017,6089657675,-16.78,ASDA HOME SHOPPING
OXFORDSHIRE CC,"CHILDRENS, YOUNG PEOPLE AND FAMILIES","	MALTFIELD HOUSE",CATERING,28/12/2017,6856582821,-16.7,MAYFLOWER RESTAURANT
OXFORDSHIRE CC,ENVIRONMENT AND ECONOMY,"	SAMUELSON HOUSE","SUPPLIES, STATIONERY AND MATERIALS",07/11/2017,6677195201,-16.56,LYRECO UK LTD
OXFORDSHIRE CC,"CHILDRENS, YOUNG PEOPLE AND FAMILIES","	40 THE MOORS",OTHER TRANSPORT ARRANGEMENTS,14/08/2017,6369352333,-16.5,HOVERTRAVEL LTD
OXFORDSHIRE CC,"CHILDRENS, YOUNG PEOPLE AND FAMILIES",NTH FAM SUPRT-BCSTR,ENTERTAINMENT EXPENSES,14/02/2018,7015357595,-16.5,WWW.WATERBABIES.CO.UK
OXFORDSHIRE CC,"CHILDRENS, YOUNG PEOPLE AND FAMILIES",DIDCOT MOVE-ON HOME,MATERIALS,18/09/2017,6487236973,-16,AMZ AMAZON.CO.UK
OXFORDSHIRE CC,"CHILDRENS, YOUNG PEOPLE AND FAMILIES",CNTL EARLY HELP-BRTN,OTHER EXPENSES,29/01/2018,6950843579,-15.99,TESCO DIRECT
OXFORDSHIRE CC,"CHILDRENS, YOUNG PEOPLE AND FAMILIES",TRANSPORT GENERAL,MATERIALS,14/03/2018,7124470011,-15.74,AMZ H&S ALLIANCE UK LT
OXFORDSHIRE CC,"CHILDRENS, YOUNG PEOPLE AND FAMILIES","	ASSESS TEAM CITY",CATERING PROVISIONS,21/06/2017,6192745999,-15,EMMAUS
OXFORDSHIRE CC,"CHILDRENS, YOUNG PEOPLE AND FAMILIES","	LOOKED AFTER CITY 1",MATERIALS,29/11/2017,6755444803,-15,WLY COMPLETESAVE.CO.UK
OXFORDSHIRE CC,"CHILDRENS, YOUNG PEOPLE AND FAMILIES","	LEAVING CARE SOUTH",FURNITURE,20/12/2017,6837336569,-15,PAYPAL  BEDS.CO.UK
OXFORDSHIRE CC,"CHILDRENS, YOUNG PEOPLE AND FAMILIES","	40 THE MOORS",MATERIALS,02/02/2018,6971813049,-15,ARGOS RETAIL GROUP
OXFORDSHIRE CC,"CHILDRENS, YOUNG PEOPLE AND FAMILIES",DIDCOT MOVE-ON HOME,MATERIALS,29/11/2017,6755445401,-14.98,ARGOS LTD
OXFORDSHIRE CC,"CHILDRENS, YOUNG PEOPLE AND FAMILIES",EYNSHAM,CATERING PROVISIONS,04/12/2017,6775094271,-14.36,ASDA HOME SHOPPING
OXFORDSHIRE CC,SOCIAL AND COMMUNITY SERVICES,"	WALLINGFORD DC",CLOTHING AND UNIFORMS,14/06/2017,6168399635,-14.28,ALEXANDRA WEBSITE
OXFORDSHIRE CC,"CHILDRENS, YOUNG PEOPLE AND FAMILIES","	MALTFIELD HOUSE",CATERING PROVISIONS,26/12/2017,6849845497,-13.95,SAINSBURYS TO YOU 0600
OXFORDSHIRE CC,"CHILDRENS, YOUNG PEOPLE AND FAMILIES",KINGFISHER,PAYMENTS TO TRANSPORT OPERATORS,21/08/2017,6392318581,-13.9,BICESTER T/O
OXFORDSHIRE CC,"CHILDRENS, YOUNG PEOPLE AND FAMILIES","	40 THE MOORS",CATERING PROVISIONS,10/04/2017,5945581039,-13.34,ASDA HOME SHOPPING
OXFORDSHIRE CC,"CHILDRENS, YOUNG PEOPLE AND FAMILIES","	40 THE MOORS",CATERING PROVISIONS,15/08/2017,6375221897,-13.16,ASDA HOME SHOPPING
OXFORDSHIRE CC,"CHILDRENS, YOUNG PEOPLE AND FAMILIES",EYNSHAM,CATERING PROVISIONS,05/09/2017,6444776859,-13,ASDA HOME SHOPPING
OXFORDSHIRE CC,"CHILDRENS, YOUNG PEOPLE AND FAMILIES",THAME E&A HOME,"SUPPLIES, STATIONERY AND MATERIALS",05/03/2018,7084680301,-12.96,SAFE.CO.UK
OXFORDSHIRE CC,"CHILDRENS, YOUNG PEOPLE AND FAMILIES","	MANAGEMENT & ADMIN",MATERIALS,22/05/2017,6089656913,-12.9,AMZ DISTRIBUTION 365E
OXFORDSHIRE CC,CORPORATE CORE,ICT OPERATIONS & MAI,PAYMENTS TO TRANSPORT OPERATORS,23/10/2017,6618249935,-12.6,GWR CORP WEBBTSECOM
OXFORDSHIRE CC,ENVIRONMENT AND ECONOMY,"	KNIGHTS COURT",EQUIPMENT,02/08/2017,6332634235,-12.34,AMZ VICTECH
OXFORDSHIRE CC,"CHILDRENS, YOUNG PEOPLE AND FAMILIES",EYNSHAM,CATERING PROVISIONS,24/10/2017,6625217127,-12.1,ASDA HOME SHOPPING
OXFORDSHIRE CC,"CHILDRENS, YOUNG PEOPLE AND FAMILIES","	40 THE MOORS",CATERING PROVISIONS,30/06/2017,6228978957,-12,ASDA HOME SHOPPING
OXFORDSHIRE CC,"CHILDRENS, YOUNG PEOPLE AND FAMILIES",CNTL EARLY HELP-BRTN,MATERIALS,17/01/2018,6908846113,-11.88,AMZ VISIOSOUND
OXFORDSHIRE CC,"CHILDRENS, YOUNG PEOPLE AND FAMILIES","	40 THE MOORS",MATERIALS,20/04/2017,5978709207,-11.72,AMZ AMAZON.CO.UK +44 2
OXFORDSHIRE CC,"CHILDRENS, YOUNG PEOPLE AND FAMILIES","	FAMILY SUPPORT S'TH2",STATIONERY,18/01/2018,6913211595,-11.7,SP  CHARFLEET BOOKS
OXFORDSHIRE CC,"CHILDRENS, YOUNG PEOPLE AND FAMILIES","	40 THE MOORS",CATERING PROVISIONS,13/09/2017,6471427229,-11.65,ASDA HOME SHOPPING
OXFORDSHIRE CC,"CHILDRENS, YOUNG PEOPLE AND FAMILIES",EYNSHAM,CATERING PROVISIONS,02/05/2017,6020755739,-11.58,ASDA HOME SHOPPING
OXFORDSHIRE CC,"CHILDRENS, YOUNG PEOPLE AND FAMILIES",DIDCOT MOVE-ON HOME,CATERING PROVISIONS,15/08/2017,6375221915,-11.53,ASDA HOME SHOPPING
OXFORDSHIRE CC,"CHILDRENS, YOUNG PEOPLE AND FAMILIES",EYNSHAM,CATERING PROVISIONS,25/07/2017,6305705577,-11.52,ASDA HOME SHOPPING
OXFORDSHIRE CC,"CHILDRENS, YOUNG PEOPLE AND FAMILIES",EYNSHAM,CATERING PROVISIONS,03/01/2018,6865608997,-11.15,ASDA HOME SHOPPING
OXFORDSHIRE CC,"CHILDRENS, YOUNG PEOPLE AND FAMILIES","	MUSIC UNALLOCABLE",POSTAGE AND DELIVERY,19/01/2018,6917833401,-11.04,PARCELFORCE WORLDWIDE
OXFORDSHIRE CC,"CHILDRENS, YOUNG PEOPLE AND FAMILIES",THAME E&A HOME,ENTERTAINMENT EXPENSES,28/12/2017,6856582803,-10.99,RED KANGAROO
OXFORDSHIRE CC,"CHILDRENS, YOUNG PEOPLE AND FAMILIES","	40 THE MOORS",CATERING PROVISIONS,26/02/2018,7056510559,-10.97,ASDA HOME SHOPPING
OXFORDSHIRE CC,"CHILDRENS, YOUNG PEOPLE AND FAMILIES",EYNSHAM,CATERING PROVISIONS,19/09/2017,6493550467,-10.95,ASDA HOME SHOPPING
OXFORDSHIRE CC,CORPORATE CORE,"	PROCUREMENT",OTHER MISC INC,07/03/2018,7096170997,-10.8,OXFORDSHIRE CC MOTO1
OXFORDSHIRE CC,"CHILDRENS, YOUNG PEOPLE AND FAMILIES","	40 THE MOORS",CATERING PROVISIONS,30/08/2017,6424871109,-10.46,ASDA HOME SHOPPING
OXFORDSHIRE CC,"CHILDRENS, YOUNG PEOPLE AND FAMILIES","	MALTFIELD HOUSE",CATERING,19/02/2018,7030642365,-10.18,SAINSBURYS TO YOU 0600
OXFORDSHIRE CC,"CHILDRENS, YOUNG PEOPLE AND FAMILIES",FAMILY SUPPORT 2,PAYMENTS TO TRANSPORT OPERATORS,04/07/2017,6239107429,-10.1,TRAINLINE
OXFORDSHIRE CC,"CHILDRENS, YOUNG PEOPLE AND FAMILIES",FAMILY SUPPORT 2,PAYMENTS TO TRANSPORT OPERATORS,20/09/2017,6497065021,-10.1,TRAINLINE
OXFORDSHIRE CC,"CHILDRENS, YOUNG PEOPLE AND FAMILIES",FAMILY SUPPORT 2,PAYMENTS TO TRANSPORT OPERATORS,24/10/2017,6625217135,-10.1,TRAINLINE
OXFORDSHIRE CC,"CHILDRENS, YOUNG PEOPLE AND FAMILIES","	NCS",IT SOFTWARE,02/11/2017,6659144643,-10.1,N2 GROUP
OXFORDSHIRE CC,"CHILDRENS, YOUNG PEOPLE AND FAMILIES","	LOOKED AFTER CITY 1",OTHER SERVICES,14/04/2017,5961357453,-10,OCC REGISTRARS (M)
OXFORDSHIRE CC,"CHILDRENS, YOUNG PEOPLE AND FAMILIES","	LOOKED AFTER SOUTH",REGISTRATION AND INSPECTION FEES,09/05/2017,6075718027,-10,OCC REGISTRARS (M)
OXFORDSHIRE CC,CORPORATE CORE,INCOME TEAM,OTHER SERVICES,25/05/2017,6103292475,-10,OCC REGISTRARS (M)
OXFORDSHIRE CC,CORPORATE CORE,INCOME TEAM,OTHER SERVICES,25/05/2017,6103292463,-10,OCC REGISTRARS (M)
OXFORDSHIRE CC,"CHILDRENS, YOUNG PEOPLE AND FAMILIES","	LOOKED AFTER CITY 1",OTHER SERVICES,10/07/2017,6251927637,-10,OCC REGISTRARS (M)
OXFORDSHIRE CC,"CHILDRENS, YOUNG PEOPLE AND FAMILIES","	LEAVING CARE NORTH",OTHER SERVICES,11/07/2017,6257152101,-10,OCC REGISTRARS (M)
OXFORDSHIRE CC,"CHILDRENS, YOUNG PEOPLE AND FAMILIES","	LEAVING CARE NORTH",OTHER SERVICES,11/07/2017,6257152095,-10,OCC REGISTRARS (M)
OXFORDSHIRE CC,"CHILDRENS, YOUNG PEOPLE AND FAMILIES","	LOOKED AFTER CITY 1",OTHER SERVICES,08/08/2017,6352414641,-10,OCC REGISTRARS (M)
OXFORDSHIRE CC,"CHILDRENS, YOUNG PEOPLE AND FAMILIES","	LOOKED AFTER CITY 1",OTHER SERVICES,10/08/2017,6359614265,-10,OXFORDSHIRE COUNTY COU
OXFORDSHIRE CC,"CHILDRENS, YOUNG PEOPLE AND FAMILIES","	LOOKED AFTER CITY 2",OTHER SERVICES,18/08/2017,6386810141,-10,OCC REGISTRARS (M)
OXFORDSHIRE CC,"CHILDRENS, YOUNG PEOPLE AND FAMILIES",STH EARLY HELP-DDCOT,OTHER SERVICES,29/09/2017,6533412537,-10,OCC REGISTRARS (M)
OXFORDSHIRE CC,"CHILDRENS, YOUNG PEOPLE AND FAMILIES","	DISABILITIES TEAM-C",OTHER SERVICES,12/10/2017,6580526507,-10,OCC REGISTRARS (M)
OXFORDSHIRE CC,"CHILDRENS, YOUNG PEOPLE AND FAMILIES","	DISABILITIES TEAM-C",OTHER SERVICES,12/10/2017,6580526505,-10,OCC REGISTRARS (M)
OXFORDSHIRE CC,"CHILDRENS, YOUNG PEOPLE AND FAMILIES","	ADOPTION",FURNITURE,11/12/2017,6801277241,-10,AMAZON DIGITAL DWNLDS
OXFORDSHIRE CC,CORPORATE CORE,INCOME TEAM,PAYMENT TO GOVERNMENT DEPARTMENTS,08/02/2018,6993291661,-10,OCC REGISTRARS (M)
OXFORDSHIRE CC,"CHILDRENS, YOUNG PEOPLE AND FAMILIES","	LOOKED AFTER CITY 1",OTHER EXPENSES,09/02/2018,6998575073,-10,OCC REGISTRARS (M)
OXFORDSHIRE CC,CORPORATE CORE,"	LEGAL SERVICES",LEGAL COSTS,14/02/2018,7015357647,-10,OCC REGISTRARS (M)
OXFORDSHIRE CC,"CHILDRENS, YOUNG PEOPLE AND FAMILIES","	LOOKED AFTER NORTH",REGISTRATION AND INSPECTION FEES,26/03/2018,7167994163,-10,OCC REGISTRARS (M)
OXFORDSHIRE CC,"CHILDRENS, YOUNG PEOPLE AND FAMILIES",EYNSHAM,CATERING PROVISIONS,05/12/2017,6778869985,-9.58,ASDA HOME SHOPPING
OXFORDSHIRE CC,ENVIRONMENT AND ECONOMY,"	NAT TRAILS GENERAL",MATERIALS,29/12/2017,6858295041,-9.49,AMZ AMAZON.CO.UK
OXFORDSHIRE CC,ENVIRONMENT AND ECONOMY,"	NAT TRAILS GENERAL",MATERIALS,08/01/2018,6876279879,-9.49,AMZ AMAZON.CO.UK
OXFORDSHIRE CC,ENVIRONMENT AND ECONOMY,"	NAT TRAILS GENERAL",MATERIALS,08/01/2018,6876279869,-9.49,AMZ AMAZON.CO.UK
OXFORDSHIRE CC,"CHILDRENS, YOUNG PEOPLE AND FAMILIES","	40 THE MOORS",CATERING PROVISIONS,01/01/2018,6860358845,-9.46,ASDA HOME SHOPPING
OXFORDSHIRE CC,SOCIAL AND COMMUNITY SERVICES,"	EMERGENCY DUTY TEAM",PAYMENT TO GOVERNMENT DEPARTMENTS,12/04/2017,5953971061,-9.25,GRO HM PASSPORT OFFICE
OXFORDSHIRE CC,"CHILDRENS, YOUNG PEOPLE AND FAMILIES","	LOOKED AFTER SOUTH",REGISTRATION AND INSPECTION FEES,10/05/2017,6046622693,-9.25,GRO HM PASSPORT OFFICE
OXFORDSHIRE CC,SOCIAL AND COMMUNITY SERVICES,"	HOSPITAL TEAMS",PAYMENT TO GOVERNMENT DEPARTMENTS,12/05/2017,6056117057,-9.25,GRO HM PASSPORT OFFICE
OXFORDSHIRE CC,"CHILDRENS, YOUNG PEOPLE AND FAMILIES","	LOOKED AFTER SOUTH",PAYMENT TO GOVERNMENT DEPARTMENTS,15/05/2017,6063427105,-9.25,GRO HM PASSPORT OFFICE
OXFORDSHIRE CC,"CHILDRENS, YOUNG PEOPLE AND FAMILIES",NTH EARLY HELP-WITNY,PAYMENT TO GOVERNMENT DEPARTMENTS,15/05/2017,6063426557,-9.25,GRO HM PASSPORT OFFICE
OXFORDSHIRE CC,"CHILDRENS, YOUNG PEOPLE AND FAMILIES","	LOOKED AFTER SOUTH",REGISTRATION AND INSPECTION FEES,16/05/2017,6068452441,-9.25,GRO HM PASSPORT OFFICE
OXFORDSHIRE CC,"CHILDRENS, YOUNG PEOPLE AND FAMILIES","	LOOKED AFTER SOUTH",REGISTRATION AND INSPECTION FEES,29/05/2017,6113158753,-9.25,GRO HM PASSPORT OFFICE
OXFORDSHIRE CC,SOCIAL AND COMMUNITY SERVICES,"	HOSPITAL TEAMS",PAYMENT TO GOVERNMENT DEPARTMENTS,07/06/2017,6143585173,-9.25,GRO HM PASSPORT OFFICE
OXFORDSHIRE CC,"CHILDRENS, YOUNG PEOPLE AND FAMILIES","	LOOKED AFTER NORTH",REGISTRATION AND INSPECTION FEES,31/07/2017,6323064741,-9.25,GRO HM PASSPORT OFFICE
OXFORDSHIRE CC,"CHILDRENS, YOUNG PEOPLE AND FAMILIES",NORTH FSS- BANBURY,PAYMENT TO GOVERNMENT DEPARTMENTS,25/09/2017,6514654351,-9.25,GRO HM PASSPORT OFFICE
OXFORDSHIRE CC,"CHILDRENS, YOUNG PEOPLE AND FAMILIES","	FAM SUPP CITY 1",PAYMENT TO GOVERNMENT DEPARTMENTS,10/11/2017,6690742239,-9.25,GRO HM PASSPORT OFFICE
OXFORDSHIRE CC,"CHILDRENS, YOUNG PEOPLE AND FAMILIES","	LOOKED AFTER CITY 1",PAYMENT TO GOVERNMENT DEPARTMENTS,05/02/2018,6977913087,-9.25,GRO HM PASSPORT OFFICE
OXFORDSHIRE CC,ENVIRONMENT AND ECONOMY,MUSEUM CAFE,CLOTHING AND UNIFORMS,10/04/2017,5945580367,-9.01,UNIVERSAL TEXTILES
OXFORDSHIRE CC,"CHILDRENS, YOUNG PEOPLE AND FAMILIES",EYNSHAM,CATERING PROVISIONS,17/10/2017,6598747939,-9,ASDA HOME SHOPPING
OXFORDSHIRE CC,"CHILDRENS, YOUNG PEOPLE AND FAMILIES","	40 THE MOORS",CATERING PROVISIONS,05/04/2017,5929548439,-8.94,ASDA HOME SHOPPING
OXFORDSHIRE CC,"CHILDRENS, YOUNG PEOPLE AND FAMILIES",EYNSHAM,CATERING PROVISIONS,16/05/2017,6068452553,-8.71,ASDA HOME SHOPPING
OXFORDSHIRE CC,ENVIRONMENT AND ECONOMY,"	OXFORDSHIRE MUSEUM",PAYMENTS TO TRANSPORT OPERATORS,19/03/2018,7149316361,-8.5,SOUTHERN RAILWAY WEB
OXFORDSHIRE CC,"CHILDRENS, YOUNG PEOPLE AND FAMILIES",EYNSHAM,CATERING PROVISIONS,20/06/2017,6189493681,-8.24,ASDA HOME SHOPPING
OXFORDSHIRE CC,"CHILDRENS, YOUNG PEOPLE AND FAMILIES","	LOOKED AFTER CITY 1",OTHER TRANSPORT ARRANGEMENTS,27/03/2018,7175429607,-8.2,GWR OXFORD TO
OXFORDSHIRE CC,"CHILDRENS, YOUNG PEOPLE AND FAMILIES","	40 THE MOORS",CATERING PROVISIONS,09/06/2017,6152782275,-8,ASDA HOME SHOPPING
OXFORDSHIRE CC,"CHILDRENS, YOUNG PEOPLE AND FAMILIES","	40 THE MOORS",CATERING PROVISIONS,27/06/2017,6214535581,-8,ASDA HOME SHOPPING
OXFORDSHIRE CC,"CHILDRENS, YOUNG PEOPLE AND FAMILIES",EYNSHAM,CATERING PROVISIONS,12/12/2017,6807306171,-8,ASDA HOME SHOPPING
OXFORDSHIRE CC,SOCIAL AND COMMUNITY SERVICES,"	VISUAL IMP. TEAM",MATERIALS,03/04/2017,5923480701,-7.99,AMAZON PRIME
OXFORDSHIRE CC,"CHILDRENS, YOUNG PEOPLE AND FAMILIES","	LOOKED AFTER CITY 1",MATERIALS,09/05/2017,6075718187,-7.99,AMAZON PRIME
OXFORDSHIRE CC,"CHILDRENS, YOUNG PEOPLE AND FAMILIES","	LOOKED AFTER CITY 1",MATERIALS,24/11/2017,6743064535,-7.99,AMAZON UK PRIME AMZN.C
OXFORDSHIRE CC,"CHILDRENS, YOUNG PEOPLE AND FAMILIES",CNTL EARLY HELP-RHIL,MATERIALS,07/12/2017,6787495035,-7.99,AMAZON PRIME
OXFORDSHIRE CC,"CHILDRENS, YOUNG PEOPLE AND FAMILIES","	LEAVING CARE SOUTH",MATERIALS,12/12/2017,6807306097,-7.99,AMAZON PRIME
OXFORDSHIRE CC,"CHILDRENS, YOUNG PEOPLE AND FAMILIES",EYNSHAM,CATERING PROVISIONS,07/02/2018,6988809261,-7.9,ASDA HOME SHOPPING
OXFORDSHIRE CC,ENVIRONMENT AND ECONOMY,"	ROAD ASSET MGT STAFF","SUPPLIES, STATIONERY AND MATERIALS",31/07/2017,6323064579,-7.5,SUK RETAIL LTD
OXFORDSHIRE CC,"CHILDRENS, YOUNG PEOPLE AND FAMILIES",EYNSHAM,CATERING PROVISIONS,29/08/2017,6421871741,-7.5,ASDA HOME SHOPPING
OXFORDSHIRE CC,"CHILDRENS, YOUNG PEOPLE AND FAMILIES",THAME E&A HOME,CATERING PROVISIONS,14/03/2018,7124469745,-7.5,SAINSBURYS TO YOU 0600
OXFORDSHIRE CC,"CHILDRENS, YOUNG PEOPLE AND FAMILIES",EYNSHAM,CATERING PROVISIONS,19/09/2017,6493550465,-7.39,ASDA HOME SHOPPING
OXFORDSHIRE CC,"CHILDRENS, YOUNG PEOPLE AND FAMILIES",EYNSHAM,CATERING PROVISIONS,14/11/2017,6704682465,-7.3,ASDA HOME SHOPPING
OXFORDSHIRE CC,"CHILDRENS, YOUNG PEOPLE AND FAMILIES","	40 THE MOORS",CATERING PROVISIONS,01/08/2017,6329391789,-7.29,OXFORD PEARTREE KFC
OXFORDSHIRE CC,"CHILDRENS, YOUNG PEOPLE AND FAMILIES","	40 THE MOORS",CATERING PROVISIONS,10/11/2017,6690742257,-7.27,ASDA HOME SHOPPING
OXFORDSHIRE CC,SOCIAL AND COMMUNITY SERVICES,"	WALLINGFORD DC",CLOTHING AND UNIFORMS,14/06/2017,6168399633,-7.14,ALEXANDRA WEBSITE
OXFORDSHIRE CC,"CHILDRENS, YOUNG PEOPLE AND FAMILIES",DIDCOT MOVE-ON HOME,CATERING PROVISIONS,11/04/2017,5950650941,-7.05,ASDA HOME SHOPPING
OXFORDSHIRE CC,"CHILDRENS, YOUNG PEOPLE AND FAMILIES",DIDCOT MOVE-ON HOME,CATERING PROVISIONS,23/05/2017,6095486981,-7.05,ASDA HOME SHOPPING
OXFORDSHIRE CC,ENVIRONMENT AND ECONOMY,"	COUNTY HALL",MATERIALS,13/04/2017,5958205429,-7,EXTRA ELECTRICAL AND H
OXFORDSHIRE CC,"CHILDRENS, YOUNG PEOPLE AND FAMILIES","	MALTFIELD HOUSE",OTHER EXPENSES,26/10/2017,6633624207,-6.95,WALLPAPERDIRECT.CO
OXFORDSHIRE CC,"CHILDRENS, YOUNG PEOPLE AND FAMILIES","	FPT CITY",MATERIALS,03/11/2017,6663948999,-6.95,WWW.ARGOS.CO.UK
OXFORDSHIRE CC,CORPORATE CORE,HISTORY SERVICE,MATERIALS,26/02/2018,7056509641,-6.78,AMZ MUSICMAGPIE
OXFORDSHIRE CC,"CHILDRENS, YOUNG PEOPLE AND FAMILIES","	40 THE MOORS",CATERING PROVISIONS,19/07/2017,6284350401,-6.67,ASDA HOME SHOPPING
OXFORDSHIRE CC,ENVIRONMENT AND ECONOMY,"	SAMUELSON HOUSE","SUPPLIES, STATIONERY AND MATERIALS",27/09/2017,6524049489,-6.67,LYRECO UK LTD
OXFORDSHIRE CC,"CHILDRENS, YOUNG PEOPLE AND FAMILIES",EYNSHAM,CATERING PROVISIONS,01/01/2018,6860358959,-6.65,ASDA HOME SHOPPING
OXFORDSHIRE CC,"CHILDRENS, YOUNG PEOPLE AND FAMILIES",C&I BASE WARRINER,MATERIALS,06/07/2017,6288218431,-6.59,AMZ PATOX +44 207 084
OXFORDSHIRE CC,"CHILDRENS, YOUNG PEOPLE AND FAMILIES","	LOOKED AFTER CITY 1",OTHER TRANSPORT ARRANGEMENTS,27/03/2018,7175429601,-6.5,GWR OXFORD TO
OXFORDSHIRE CC,"CHILDRENS, YOUNG PEOPLE AND FAMILIES",THAME E&A HOME,MATERIALS,29/12/2017,6858295067,-6.47,AMAZON PRIME
OXFORDSHIRE CC,"CHILDRENS, YOUNG PEOPLE AND FAMILIES",EYNSHAM,CATERING PROVISIONS,15/01/2018,6929959021,-6.4,ASDA HOME SHOPPING
OXFORDSHIRE CC,"CHILDRENS, YOUNG PEOPLE AND FAMILIES",EYNSHAM,CATERING PROVISIONS,16/02/2018,7024736705,-6.08,ASDA HOME SHOPPING
OXFORDSHIRE CC,"CHILDRENS, YOUNG PEOPLE AND FAMILIES","	LOOKED AFTER CITY 2",REGISTRATION AND INSPECTION FEES,29/09/2017,6533412383,-6,OCC REGISTRARS (M)
OXFORDSHIRE CC,CORPORATE CORE,"	PROCUREMENT",OTHER MISC INC,07/03/2018,7096170995,-6,OXFORDSHIRE CC MOTO1
OXFORDSHIRE CC,"CHILDRENS, YOUNG PEOPLE AND FAMILIES","	RESIDENTIAL STRATEGY",MATERIALS,28/07/2017,6317793879,-5.99,AMZ AMAZON.CO.UK +44 2
OXFORDSHIRE CC,"CHILDRENS, YOUNG PEOPLE AND FAMILIES",STH EARLY HELP-DDCOT,HARDWARE AND CROCKERY,22/02/2018,7044893265,-5.99,SCREWFIX
OXFORDSHIRE CC,"CHILDRENS, YOUNG PEOPLE AND FAMILIES",DIDCOT MOVE-ON HOME,CATERING PROVISIONS,18/07/2017,6281346429,-5.88,ASDA HOME SHOPPING
OXFORDSHIRE CC,"CHILDRENS, YOUNG PEOPLE AND FAMILIES",DIDCOT MOVE-ON HOME,CATERING PROVISIONS,07/04/2017,5938245557,-5.5,ASDA HOME SHOPPING
OXFORDSHIRE CC,SOCIAL AND COMMUNITY SERVICES,CSS WANTAGE,CATERING PROVISIONS,01/12/2017,6765599253,-5.5,ASDA HOME SHOPPING
OXFORDSHIRE CC,"CHILDRENS, YOUNG PEOPLE AND FAMILIES",EYNSHAM,CATERING PROVISIONS,11/07/2017,6257152231,-5.32,ASDA HOME SHOPPING
OXFORDSHIRE CC,"CHILDRENS, YOUNG PEOPLE AND FAMILIES","	LOOKED AFTER CITY 1",PAYMENTS TO TRANSPORT OPERATORS,04/12/2017,6775094193,-5.2,GWR DIDCOT PKW SST
OXFORDSHIRE CC,"CHILDRENS, YOUNG PEOPLE AND FAMILIES","	LOOKED AFTER CITY 1",PAYMENTS TO TRANSPORT OPERATORS,04/12/2017,6775094191,-5.2,GWR DIDCOT PKW SST
OXFORDSHIRE CC,"CHILDRENS, YOUNG PEOPLE AND FAMILIES",EYNSHAM,ENTERTAINMENT EXPENSES,17/04/2017,5965992223,-5,SPICEBALL LEISURE CENT
OXFORDSHIRE CC,"CHILDRENS, YOUNG PEOPLE AND FAMILIES",EYNSHAM,ENTERTAINMENT EXPENSES,01/05/2017,6012635463,-5,SPICEBALL LEISURE CENT
OXFORDSHIRE CC,"CHILDRENS, YOUNG PEOPLE AND FAMILIES","	MALTFIELD HOUSE",CATERING,02/05/2017,6020755673,-5,SAINSBURYS TO YOU 0600
OXFORDSHIRE CC,"CHILDRENS, YOUNG PEOPLE AND FAMILIES","	MALTFIELD HOUSE",CLOTHING AND UNIFORMS,06/09/2017,6447377681,-5,BLUE INC UK LIMITED
OXFORDSHIRE CC,"CHILDRENS, YOUNG PEOPLE AND FAMILIES","	MALTFIELD HOUSE",MATERIALS,18/12/2017,6828695847,-5,J D SPORTS FASHION
OXFORDSHIRE CC,"CHILDRENS, YOUNG PEOPLE AND FAMILIES","	FAMILY SUPPORT CITY3",MATERIALS,13/11/2017,6697421867,-4.99,ARGOS RETAIL GROUP
OXFORDSHIRE CC,"CHILDRENS, YOUNG PEOPLE AND FAMILIES","	40 THE MOORS",MATERIALS,08/03/2018,7101044941,-4.99,JD SPORTS INTERNET
OXFORDSHIRE CC,"CHILDRENS, YOUNG PEOPLE AND FAMILIES",EYNSHAM,CATERING PROVISIONS,26/12/2017,6849845641,-4.98,ASDA HOME SHOPPING
OXFORDSHIRE CC,"CHILDRENS, YOUNG PEOPLE AND FAMILIES","	NCS","BOOKS, DVDS AND CDS",08/01/2018,6876280163,-4.95,AMAZON SVCS EU-UK AMAZ
OXFORDSHIRE CC,"CHILDRENS, YOUNG PEOPLE AND FAMILIES",THAME E&A HOME,MATERIALS,27/03/2018,7175429491,-4.86,AMZ AMAZON.CO.UK
OXFORDSHIRE CC,"CHILDRENS, YOUNG PEOPLE AND FAMILIES",CNTL EARLY HELP-BRTN,MATERIALS,21/09/2017,6501548415,-4.75,AMZ BADGES LTD
OXFORDSHIRE CC,"CHILDRENS, YOUNG PEOPLE AND FAMILIES",CNTL EARLY HELP-BRTN,MATERIALS,21/09/2017,6501548409,-4.75,AMZ AMAZON.CO.UK
OXFORDSHIRE CC,"CHILDRENS, YOUNG PEOPLE AND FAMILIES",UASC 16&17,OTHER EXPENSES,05/02/2018,6977913233,-4.75,AMZ AMAZON.CO.UK
OXFORDSHIRE CC,SOCIAL AND COMMUNITY SERVICES,"	WANTAGE DC",CATERING PROVISIONS,11/09/2017,6461145087,-4.65,ALDI 99 775        S
OXFORDSHIRE CC,"CHILDRENS, YOUNG PEOPLE AND FAMILIES",EYNSHAM,CATERING PROVISIONS,23/01/2018,6931298703,-4.57,ASDA HOME SHOPPING
OXFORDSHIRE CC,CORPORATE CORE,HISTORY SERVICE,"BOOKS, DVDS AND CDS",29/01/2018,6950843427,-4.5,PAYPAL  LEANDERCLUB
OXFORDSHIRE CC,"CHILDRENS, YOUNG PEOPLE AND FAMILIES",EYNSHAM,CATERING PROVISIONS,18/04/2017,5971646303,-4.33,ASDA HOME SHOPPING
OXFORDSHIRE CC,"CHILDRENS, YOUNG PEOPLE AND FAMILIES",EYNSHAM,CATERING PROVISIONS,07/11/2017,6677195269,-4.27,ASDA HOME SHOPPING
OXFORDSHIRE CC,"CHILDRENS, YOUNG PEOPLE AND FAMILIES","	40 THE MOORS",CATERING PROVISIONS,17/04/2017,5965992287,-4.26,ASDA HOME SHOPPING
OXFORDSHIRE CC,"CHILDRENS, YOUNG PEOPLE AND FAMILIES","	MALTFIELD HOUSE",CATERING,20/06/2017,6189493471,-4.2,SAINSBURYS TO YOU 0600
OXFORDSHIRE CC,"CHILDRENS, YOUNG PEOPLE AND FAMILIES",DIDCOT MOVE-ON HOME,CATERING PROVISIONS,13/06/2017,6165027689,-4,ASDA HOME SHOPPING
OXFORDSHIRE CC,"CHILDRENS, YOUNG PEOPLE AND FAMILIES",EYNSHAM,CATERING PROVISIONS,13/09/2017,6471427153,-4,ASDA HOME SHOPPING
OXFORDSHIRE CC,CORPORATE CORE,PROPERTY,PROP IF BUILD DAMAGE,13/11/2017,6697422023,-4,WWW.MIB.ORG.UK
OXFORDSHIRE CC,"CHILDRENS, YOUNG PEOPLE AND FAMILIES",EYNSHAM,CATERING PROVISIONS,31/01/2018,6961644449,-4,ASDA HOME SHOPPING
OXFORDSHIRE CC,"CHILDRENS, YOUNG PEOPLE AND FAMILIES","	40 THE MOORS",MATERIALS,26/03/2018,7167994217,-4,J D SPORTS
OXFORDSHIRE CC,"CHILDRENS, YOUNG PEOPLE AND FAMILIES","	SERVICE MANAGER PLAC",NON-STAFF SUBSISTENCE AND EXPENSES,16/06/2017,6177857717,-3.98,B&M RETAIL
OXFORDSHIRE CC,"CHILDRENS, YOUNG PEOPLE AND FAMILIES",EYNSHAM,CATERING PROVISIONS,09/01/2018,6881431339,-3.69,ASDA HOME SHOPPING
OXFORDSHIRE CC,"CHILDRENS, YOUNG PEOPLE AND FAMILIES","	40 THE MOORS",CATERING PROVISIONS,16/10/2017,6591417671,-3.58,ASDA HOME SHOPPING
OXFORDSHIRE CC,"CHILDRENS, YOUNG PEOPLE AND FAMILIES","	40 THE MOORS",CATERING PROVISIONS,28/12/2017,6856582849,-3.46,ASDA HOME SHOPPING
OXFORDSHIRE CC,"CHILDRENS, YOUNG PEOPLE AND FAMILIES",EYNSHAM,CATERING PROVISIONS,08/08/2017,6352414615,-3.39,ASDA HOME SHOPPING
OXFORDSHIRE CC,"CHILDRENS, YOUNG PEOPLE AND FAMILIES",DIDCOT MOVE-ON HOME,CATERING PROVISIONS,26/09/2017,6519995867,-3.35,ASDA HOME SHOPPING
OXFORDSHIRE CC,"CHILDRENS, YOUNG PEOPLE AND FAMILIES",EYNSHAM,CATERING PROVISIONS,18/01/2018,6913211691,-3.3,ASDA HOME SHOPPING
OXFORDSHIRE CC,"CHILDRENS, YOUNG PEOPLE AND FAMILIES",EYNSHAM,CATERING PROVISIONS,05/02/2018,6977913325,-3.19,ASDA HOME SHOPPING
OXFORDSHIRE CC,"CHILDRENS, YOUNG PEOPLE AND FAMILIES",DIDCOT MOVE-ON HOME,CATERING PROVISIONS,04/07/2017,6239107415,-3.05,ASDA HOME SHOPPING
OXFORDSHIRE CC,"CHILDRENS, YOUNG PEOPLE AND FAMILIES","	40 THE MOORS",CATERING PROVISIONS,15/05/2017,6063427565,-3,ASDA HOME SHOPPING
OXFORDSHIRE CC,CORPORATE CORE,"	LEGAL SERVICES",LEGAL COSTS,15/05/2017,6063426595,-3,OCC REGISTRARS (M)
OXFORDSHIRE CC,CORPORATE CORE,"	LEGAL SERVICES",LEGAL COSTS,15/05/2017,6063426589,-3,OCC REGISTRARS (M)
OXFORDSHIRE CC,"CHILDRENS, YOUNG PEOPLE AND FAMILIES","	40 THE MOORS",CATERING PROVISIONS,05/10/2017,6554878191,-3,ASDA HOME SHOPPING
OXFORDSHIRE CC,CORPORATE CORE,"	LEGAL SERVICES",LEGAL COSTS,13/10/2017,6585342133,-3,OCC REGISTRARS (M)
OXFORDSHIRE CC,CORPORATE CORE,INCOME TEAM,PAYMENT TO GOVERNMENT DEPARTMENTS,16/11/2017,6713926953,-3,OCC REGISTRARS (M)
OXFORDSHIRE CC,"CHILDRENS, YOUNG PEOPLE AND FAMILIES",EYNSHAM,CATERING PROVISIONS,19/12/2017,6834158915,-3,ASDA HOME SHOPPING
OXFORDSHIRE CC,CORPORATE CORE,INCOME TEAM,PAYMENT TO GOVERNMENT DEPARTMENTS,26/01/2018,6944305965,-3,OCC REGISTRARS (M)
OXFORDSHIRE CC,CORPORATE CORE,INCOME TEAM,PAYMENT TO GOVERNMENT DEPARTMENTS,26/01/2018,6944305963,-3,OCC REGISTRARS (M)
OXFORDSHIRE CC,SOCIAL AND COMMUNITY SERVICES,CSS WANTAGE,CATERING PROVISIONS,26/01/2018,6944305781,-3,ASDA HOME SHOPPING
OXFORDSHIRE CC,CORPORATE CORE,INCOME TEAM,PAYMENT TO GOVERNMENT DEPARTMENTS,29/01/2018,6950843827,-3,OCC REGISTRARS (M)
OXFORDSHIRE CC,CORPORATE CORE,INCOME TEAM,PAYMENT TO GOVERNMENT DEPARTMENTS,29/01/2018,6950843833,-3,OCC REGISTRARS (M)
OXFORDSHIRE CC,CORPORATE CORE,INCOME TEAM,PAYMENT TO GOVERNMENT DEPARTMENTS,29/01/2018,6950843831,-3,OCC REGISTRARS (M)
OXFORDSHIRE CC,CORPORATE CORE,INCOME TEAM,PAYMENT TO GOVERNMENT DEPARTMENTS,29/01/2018,6950843829,-3,OCC REGISTRARS (M)
OXFORDSHIRE CC,CORPORATE CORE,INCOME TEAM,PAYMENT TO GOVERNMENT DEPARTMENTS,08/02/2018,6993291663,-3,OCC REGISTRARS (M)
OXFORDSHIRE CC,"CHILDRENS, YOUNG PEOPLE AND FAMILIES","	LOOKED AFTER NORTH",REGISTRATION AND INSPECTION FEES,21/03/2018,7151240215,-3,OCC REGISTRARS (M)
OXFORDSHIRE CC,CORPORATE CORE,INCOME TEAM,PAYMENT TO GOVERNMENT DEPARTMENTS,21/03/2018,7151240425,-3,OCC REGISTRARS (M)
OXFORDSHIRE CC,CORPORATE CORE,INCOME TEAM,PAYMENT TO GOVERNMENT DEPARTMENTS,21/03/2018,7151240423,-3,OCC REGISTRARS (M)
OXFORDSHIRE CC,"CHILDRENS, YOUNG PEOPLE AND FAMILIES",THAME E&A HOME,MATERIALS,14/07/2017,6269436023,-2.99,AMZ YAGEXUN
OXFORDSHIRE CC,"CHILDRENS, YOUNG PEOPLE AND FAMILIES",EYNSHAM,HARDWARE AND CROCKERY,18/12/2017,6828696259,-2.85,YARNTON NURSERIES
OXFORDSHIRE CC,"CHILDRENS, YOUNG PEOPLE AND FAMILIES",EYNSHAM,CATERING PROVISIONS,09/05/2017,6075717737,-2.81,ASDA HOME SHOPPING
OXFORDSHIRE CC,"CHILDRENS, YOUNG PEOPLE AND FAMILIES",EYNSHAM,CATERING PROVISIONS,13/11/2017,6697422181,-2.75,ASDA HOME SHOPPING
OXFORDSHIRE CC,"CHILDRENS, YOUNG PEOPLE AND FAMILIES",EYNSHAM,CATERING PROVISIONS,17/10/2017,6598747941,-2.68,ASDA HOME SHOPPING
OXFORDSHIRE CC,"CHILDRENS, YOUNG PEOPLE AND FAMILIES","	40 THE MOORS",CATERING PROVISIONS,03/08/2017,6337100257,-2.65,ASDA HOME SHOPPING
OXFORDSHIRE CC,"CHILDRENS, YOUNG PEOPLE AND FAMILIES",EYNSHAM,CATERING PROVISIONS,03/01/2018,6865608999,-2.65,ASDA HOME SHOPPING
OXFORDSHIRE CC,"CHILDRENS, YOUNG PEOPLE AND FAMILIES",EYNSHAM,CATERING PROVISIONS,08/01/2018,6876281577,-2.65,ASDA HOME SHOPPING
OXFORDSHIRE CC,"CHILDRENS, YOUNG PEOPLE AND FAMILIES","	40 THE MOORS",CATERING PROVISIONS,01/12/2017,6765599447,-2.54,ASDA HOME SHOPPING
OXFORDSHIRE CC,"CHILDRENS, YOUNG PEOPLE AND FAMILIES","	40 THE MOORS",ENTERTAINMENT EXPENSES,12/06/2017,6159014615,-2.5,VUE BSL LTD
OXFORDSHIRE CC,"CHILDRENS, YOUNG PEOPLE AND FAMILIES","	40 THE MOORS",CATERING PROVISIONS,22/11/2017,6736518185,-2.5,ASDA HOME SHOPPING
OXFORDSHIRE CC,"CHILDRENS, YOUNG PEOPLE AND FAMILIES",THAME E&A HOME,CATERING PROVISIONS,05/02/2018,6977913181,-2.5,SAINSBURYS TO YOU 0600
OXFORDSHIRE CC,"CHILDRENS, YOUNG PEOPLE AND FAMILIES","	40 THE MOORS",CATERING PROVISIONS,25/10/2017,6628964561,-2.26,ASDA HOME SHOPPING
OXFORDSHIRE CC,"CHILDRENS, YOUNG PEOPLE AND FAMILIES",CNTL EARLY HELP-BRTN,STATIONERY,25/01/2018,6939452689,-2.25,PAYPAL  BEEDIFFEREN
OXFORDSHIRE CC,"CHILDRENS, YOUNG PEOPLE AND FAMILIES",EYNSHAM,CATERING PROVISIONS,01/01/2018,6860358961,-2.18,ASDA HOME SHOPPING
OXFORDSHIRE CC,SOCIAL AND COMMUNITY SERVICES,CSS - OXFORD,CATERING PROVISIONS,29/11/2017,6755443845,-2.17,TESCO STORE 2994
OXFORDSHIRE CC,"CHILDRENS, YOUNG PEOPLE AND FAMILIES",EYNSHAM,CATERING PROVISIONS,05/05/2017,6032328081,-2.11,ASDA HOME SHOPPING
OXFORDSHIRE CC,"CHILDRENS, YOUNG PEOPLE AND FAMILIES","	MALTFIELD HOUSE",OTHER EXPENSES,06/11/2017,6670251845,-2.05,SAINSBURYS TO YOU 0600
OXFORDSHIRE CC,"CHILDRENS, YOUNG PEOPLE AND FAMILIES",DIDCOT MOVE-ON HOME,CATERING PROVISIONS,11/04/2017,5950650939,-2,ASDA HOME SHOPPING
OXFORDSHIRE CC,"CHILDRENS, YOUNG PEOPLE AND FAMILIES","	40 THE MOORS",CATERING PROVISIONS,18/04/2017,5971646309,-2,ASDA HOME SHOPPING
OXFORDSHIRE CC,"CHILDRENS, YOUNG PEOPLE AND FAMILIES",DIDCOT MOVE-ON HOME,CATERING PROVISIONS,25/04/2017,5994935629,-2,ASDA HOME SHOPPING
OXFORDSHIRE CC,"CHILDRENS, YOUNG PEOPLE AND FAMILIES","	40 THE MOORS",CATERING PROVISIONS,03/08/2017,6337100255,-2,ASDA HOME SHOPPING
OXFORDSHIRE CC,"CHILDRENS, YOUNG PEOPLE AND FAMILIES","	40 THE MOORS",CATERING PROVISIONS,21/08/2017,6392318667,-2,ASDA HOME SHOPPING
OXFORDSHIRE CC,"CHILDRENS, YOUNG PEOPLE AND FAMILIES",EYNSHAM,CATERING PROVISIONS,10/10/2017,6572733035,-2,ASDA HOME SHOPPING
OXFORDSHIRE CC,"CHILDRENS, YOUNG PEOPLE AND FAMILIES","	MALTFIELD HOUSE",CATERING PROVISIONS,08/05/2017,6075348217,-1.95,SAINSBURYS TO YOU 0600
OXFORDSHIRE CC,"CHILDRENS, YOUNG PEOPLE AND FAMILIES","	40 THE MOORS",CATERING PROVISIONS,07/09/2017,6450244921,-1.8,ASDA HOME SHOPPING
OXFORDSHIRE CC,"CHILDRENS, YOUNG PEOPLE AND FAMILIES","	40 THE MOORS",CATERING PROVISIONS,19/06/2017,6183762809,-1.79,ASDA HOME SHOPPING
OXFORDSHIRE CC,"CHILDRENS, YOUNG PEOPLE AND FAMILIES","	40 THE MOORS",CATERING PROVISIONS,26/04/2017,5998338077,-1.75,ASDA HOME SHOPPING
OXFORDSHIRE CC,"CHILDRENS, YOUNG PEOPLE AND FAMILIES","	40 THE MOORS",CATERING PROVISIONS,07/12/2017,6787494993,-1.75,ASDA HOME SHOPPING
OXFORDSHIRE CC,"CHILDRENS, YOUNG PEOPLE AND FAMILIES",THAME E&A HOME,MATERIALS,27/03/2018,7175429497,-1.63,AMZ AMAZON.CO.UK
OXFORDSHIRE CC,"CHILDRENS, YOUNG PEOPLE AND FAMILIES",STH EARLY HELP-DDCOT,CATERING PROVISIONS,18/10/2017,6602235997,-1.6,SAINSBURYS TO YOU 2067
OXFORDSHIRE CC,CORPORATE CORE,"	LEGAL SERVICES",LEGAL COSTS,29/03/2017,5904585593,-1.5,OCC REGISTRARS (M)
OXFORDSHIRE CC,"CHILDRENS, YOUNG PEOPLE AND FAMILIES","	LOOKED AFTER CITY 1",OTHER SERVICES,14/04/2017,5961357451,-1.5,OCC REGISTRARS (M)
OXFORDSHIRE CC,"CHILDRENS, YOUNG PEOPLE AND FAMILIES",NTH FAM SUPRT-BCSTR,OTHER SERVICES,15/05/2017,6063426679,-1.5,OCC REGISTRARS (M)
OXFORDSHIRE CC,"CHILDRENS, YOUNG PEOPLE AND FAMILIES","	LOOKED AFTER CITY 1",OTHER SERVICES,03/07/2017,6234459403,-1.5,OCC REGISTRARS (M)
OXFORDSHIRE CC,"CHILDRENS, YOUNG PEOPLE AND FAMILIES","	LEAVING CARE NORTH",OTHER SERVICES,11/07/2017,6257152093,-1.5,OCC REGISTRARS (M)
OXFORDSHIRE CC,CORPORATE CORE,"	LEGAL SERVICES",LEGAL COSTS,09/10/2017,6565677119,-1.5,OCC REGISTRARS (M)
OXFORDSHIRE CC,"CHILDRENS, YOUNG PEOPLE AND FAMILIES","	FAM SUPP CITY 1",OTHER SERVICES,19/10/2017,6606799883,-1.5,OCC REGISTRARS (M)
OXFORDSHIRE CC,"CHILDRENS, YOUNG PEOPLE AND FAMILIES",DIDCOT MOVE-ON HOME,CATERING PROVISIONS,26/09/2017,6519995865,-1.49,ASDA HOME SHOPPING
OXFORDSHIRE CC,"CHILDRENS, YOUNG PEOPLE AND FAMILIES","	40 THE MOORS",CATERING PROVISIONS,29/05/2017,6113158621,-1.45,ASDA HOME SHOPPING
OXFORDSHIRE CC,"CHILDRENS, YOUNG PEOPLE AND FAMILIES","	FAM SUPP SOUTH",CATERING PROVISIONS,22/05/2017,6089656249,-1.31,ASDA HOME SHOPPING
OXFORDSHIRE CC,"CHILDRENS, YOUNG PEOPLE AND FAMILIES","	40 THE MOORS",CATERING PROVISIONS,08/05/2017,6075349383,-1.26,ASDA HOME SHOPPING
OXFORDSHIRE CC,"CHILDRENS, YOUNG PEOPLE AND FAMILIES",DIDCOT MOVE-ON HOME,CATERING PROVISIONS,10/07/2017,6251928117,-1.2,ASDA HOME SHOPPING
OXFORDSHIRE CC,"CHILDRENS, YOUNG PEOPLE AND FAMILIES","	40 THE MOORS",CATERING PROVISIONS,19/02/2018,7030642551,-1.2,ASDA HOME SHOPPING
OXFORDSHIRE CC,"CHILDRENS, YOUNG PEOPLE AND FAMILIES","	40 THE MOORS",CATERING PROVISIONS,30/03/2017,5908847967,-1.17,ASDA HOME SHOPPING
OXFORDSHIRE CC,"CHILDRENS, YOUNG PEOPLE AND FAMILIES",EYNSHAM,CATERING PROVISIONS,23/01/2018,6931298701,-1.13,ASDA HOME SHOPPING
OXFORDSHIRE CC,"CHILDRENS, YOUNG PEOPLE AND FAMILIES",THAME E&A HOME,CATERING PROVISIONS,20/02/2018,7037086947,-1.05,SAINSBURYS TO YOU 0600
OXFORDSHIRE CC,"CHILDRENS, YOUNG PEOPLE AND FAMILIES","	40 THE MOORS",CATERING PROVISIONS,24/05/2017,6099310131,-1.01,ASDA HOME SHOPPING
OXFORDSHIRE CC,"CHILDRENS, YOUNG PEOPLE AND FAMILIES","	40 THE MOORS",CATERING PROVISIONS,23/06/2017,6202735527,-1,ASDA HOME SHOPPING
OXFORDSHIRE CC,"CHILDRENS, YOUNG PEOPLE AND FAMILIES","	40 THE MOORS",CATERING PROVISIONS,10/08/2017,6359614287,-1,ASDA HOME SHOPPING
OXFORDSHIRE CC,"CHILDRENS, YOUNG PEOPLE AND FAMILIES","	40 THE MOORS",CATERING PROVISIONS,20/10/2017,6612055887,-1,ASDA HOME SHOPPING
OXFORDSHIRE CC,SOCIAL AND COMMUNITY SERVICES,CSS WANTAGE,CATERING PROVISIONS,05/01/2018,6871379913,-1,ASDA HOME SHOPPING
OXFORDSHIRE CC,"CHILDRENS, YOUNG PEOPLE AND FAMILIES","	40 THE MOORS",CATERING PROVISIONS,08/01/2018,6876281155,-1,ASDA HOME SHOPPING
OXFORDSHIRE CC,"CHILDRENS, YOUNG PEOPLE AND FAMILIES","	MALTFIELD HOUSE",CATERING PROVISIONS,16/01/2018,6906020251,-1,SAINSBURYS TO YOU 0600
OXFORDSHIRE CC,CORPORATE CORE,"	PROCUREMENT",OTHER MISC INC,19/02/2018,7030642287,-1,OXFORDSHIRE CC MOTO1
OXFORDSHIRE CC,CORPORATE CORE,"	PROCUREMENT",OTHER MISC INC,19/02/2018,7030642285,-1,OXFORDSHIRE CC MOTO1
OXFORDSHIRE CC,CORPORATE CORE,"	PROCUREMENT",OTHER MISC INC,20/02/2018,7037086895,-1,OXFORDSHIRE CC MOTO1
OXFORDSHIRE CC,CORPORATE CORE,"	PROCUREMENT",OTHER MISC INC,20/02/2018,7037086893,-1,OXFORDSHIRE CC MOTO1
OXFORDSHIRE CC,CORPORATE CORE,"	PROCUREMENT",OTHER MISC INC,22/02/2018,7044893083,-1,OXFORDSHIRE CC MOTO1
OXFORDSHIRE CC,CORPORATE CORE,"	PROCUREMENT",OTHER MISC INC,22/02/2018,7044893081,-1,OXFORDSHIRE CC MOTO1
OXFORDSHIRE CC,CORPORATE CORE,"	PROCUREMENT",OTHER MISC INC,28/02/2018,7067704917,-1,OXFORDSHIRE CC MOTO1
OXFORDSHIRE CC,"CHILDRENS, YOUNG PEOPLE AND FAMILIES",EYNSHAM,CATERING PROVISIONS,26/03/2018,7167994317,-1,ASDA GROCERIES ONLINE
OXFORDSHIRE CC,"CHILDRENS, YOUNG PEOPLE AND FAMILIES","	40 THE MOORS",CATERING PROVISIONS,05/06/2017,6133707851,-0.93,ASDA HOME SHOPPING
OXFORDSHIRE CC,"CHILDRENS, YOUNG PEOPLE AND FAMILIES","	MALTFIELD HOUSE",CATERING,29/05/2017,6113158519,-0.9,SAINSBURYS TO YOU 0600
OXFORDSHIRE CC,"CHILDRENS, YOUNG PEOPLE AND FAMILIES","	40 THE MOORS",CATERING PROVISIONS,23/08/2017,6401242217,-0.8,ASDA HOME SHOPPING
OXFORDSHIRE CC,"CHILDRENS, YOUNG PEOPLE AND FAMILIES","	MALTFIELD HOUSE",CATERING,31/10/2017,6651662979,-0.8,SAINSBURYS TO YOU 0600
OXFORDSHIRE CC,"CHILDRENS, YOUNG PEOPLE AND FAMILIES","	MALTFIELD HOUSE",CATERING PROVISIONS,28/12/2017,6856582823,-0.8,SAINSBURYS TO YOU 0600
OXFORDSHIRE CC,"CHILDRENS, YOUNG PEOPLE AND FAMILIES","	40 THE MOORS",CATERING PROVISIONS,18/12/2017,6828696519,-0.73,ASDA HOME SHOPPING
OXFORDSHIRE CC,"CHILDRENS, YOUNG PEOPLE AND FAMILIES","	40 THE MOORS",CATERING PROVISIONS,04/09/2017,6440788269,-0.64,ASDA HOME SHOPPING
OXFORDSHIRE CC,"CHILDRENS, YOUNG PEOPLE AND FAMILIES",EYNSHAM,CATERING PROVISIONS,12/02/2018,7004717183,-0.64,ASDA HOME SHOPPING
OXFORDSHIRE CC,"CHILDRENS, YOUNG PEOPLE AND FAMILIES","	DIRECTOR'S OFFICE",CATERING PROVISIONS,01/02/2018,6966441591,-0.6,MARKS&SPENCER PLC
OXFORDSHIRE CC,"CHILDRENS, YOUNG PEOPLE AND FAMILIES",THAME E&A HOME,CATERING PROVISIONS,27/03/2018,7175428887,-0.6,SAINSBURYS TO YOU 0600
OXFORDSHIRE CC,"CHILDRENS, YOUNG PEOPLE AND FAMILIES","	40 THE MOORS",CATERING PROVISIONS,09/10/2017,6565677411,-0.57,ASDA HOME SHOPPING
OXFORDSHIRE CC,"CHILDRENS, YOUNG PEOPLE AND FAMILIES","	40 THE MOORS",CATERING PROVISIONS,20/10/2017,6612055885,-0.52,ASDA HOME SHOPPING
OXFORDSHIRE CC,"CHILDRENS, YOUNG PEOPLE AND FAMILIES","	40 THE MOORS",CATERING PROVISIONS,12/04/2017,5953971075,-0.5,ASDA HOME SHOPPING
OXFORDSHIRE CC,"CHILDRENS, YOUNG PEOPLE AND FAMILIES",EYNSHAM,CATERING PROVISIONS,15/01/2018,6929959019,-0.46,ASDA HOME SHOPPING
OXFORDSHIRE CC,SOCIAL AND COMMUNITY SERVICES,CSS WANTAGE,CATERING PROVISIONS,07/02/2018,6988809033,-0.43,TESCO STORE 3230
OXFORDSHIRE CC,"CHILDRENS, YOUNG PEOPLE AND FAMILIES",EYNSHAM,CATERING PROVISIONS,22/11/2017,6736518191,-0.27,ASDA HOME SHOPPING
OXFORDSHIRE CC,"CHILDRENS, YOUNG PEOPLE AND FAMILIES",EYNSHAM,CATERING PROVISIONS,29/01/2018,6950843871,-0.26,ASDA HOME SHOPPING
OXFORDSHIRE CC,"CHILDRENS, YOUNG PEOPLE AND FAMILIES","	40 THE MOORS",CATERING PROVISIONS,07/12/2017,6787494997,-0.25,ASDA HOME SHOPPING
OXFORDSHIRE CC,"CHILDRENS, YOUNG PEOPLE AND FAMILIES","	40 THE MOORS",CATERING PROVISIONS,24/01/2018,6934985173,-0.25,ASDA HOME SHOPPING
OXFORDSHIRE CC,"CHILDRENS, YOUNG PEOPLE AND FAMILIES","	40 THE MOORS",CATERING PROVISIONS,12/10/2017,6580526613,-0.2,ASDA HOME SHOPPING
OXFORDSHIRE CC,"CHILDRENS, YOUNG PEOPLE AND FAMILIES","	40 THE MOORS",CATERING PROVISIONS,19/03/2018,7149317511,-0.15,ASDA GROCERIES ONLINE
OXFORDSHIRE CC,"CHILDRENS, YOUNG PEOPLE AND FAMILIES",EYNSHAM,CATERING PROVISIONS,07/02/2018,6988809259,-0.09,ASDA HOME SHOPPING
OXFORDSHIRE CC,"CHILDRENS, YOUNG PEOPLE AND FAMILIES",EYNSHAM,CATERING PROVISIONS,26/03/2018,7167994315,-0.04,ASDA GROCERIES ONLINE
OXFORDSHIRE CC,"CHILDRENS, YOUNG PEOPLE AND FAMILIES",WITNEY,VEHICLE FUEL,01/05/2017,6012635537,0.05,TESCO PFS 3418
OXFORDSHIRE CC,ENVIRONMENT AND ECONOMY,"	LEP",MATERIALS,05/06/2017,6133707689,0.1,GOOGLE  SVCSAPPS_OXFOR
OXFORDSHIRE CC,"CHILDRENS, YOUNG PEOPLE AND FAMILIES",EYNSHAM,CATERING PROVISIONS,12/02/2018,7004717181,0.15,ASDA HOME SHOPPING
OXFORDSHIRE CC,"CHILDRENS, YOUNG PEOPLE AND FAMILIES","	40 THE MOORS",CATERING PROVISIONS,09/06/2017,6152782269,0.33,ASDA HOME SHOPPING
OXFORDSHIRE CC,"CHILDRENS, YOUNG PEOPLE AND FAMILIES",EYNSHAM,CATERING PROVISIONS,24/07/2017,6298965371,0.39,CO-OPERATIVE FOOD
OXFORDSHIRE CC,SOCIAL AND COMMUNITY SERVICES,"	ABINGDON DC",OTHER SERVICES,26/04/2017,5998337359,0.4,THE MCPS-PRS ALLIANCE
OXFORDSHIRE CC,"CHILDRENS, YOUNG PEOPLE AND FAMILIES",EYNSHAM,CATERING PROVISIONS,03/10/2017,6546740817,0.43,ASDA HOME SHOPPING
OXFORDSHIRE CC,"CHILDRENS, YOUNG PEOPLE AND FAMILIES","	MALTFIELD HOUSE",CATERING,08/01/2018,6876280491,0.5,CO-OPERATIVE FOOD
OXFORDSHIRE CC,"CHILDRENS, YOUNG PEOPLE AND FAMILIES","	40 THE MOORS",CATERING PROVISIONS,06/11/2017,6670252047,0.58,ASDA HOME SHOPPING
OXFORDSHIRE CC,SOCIAL AND COMMUNITY SERVICES,LEAVING CARE NORTH,MATERIALS,29/01/2018,6950843459,0.59,CARD FACTORY
OXFORDSHIRE CC,"CHILDRENS, YOUNG PEOPLE AND FAMILIES",EYNSHAM,CATERING PROVISIONS,17/05/2017,6071896005,0.6,LLOYDS AT SAINSBURYS
OXFORDSHIRE CC,"CHILDRENS, YOUNG PEOPLE AND FAMILIES","	LEAVING CARE NORTH",OTHER SERVICES,27/11/2017,6748322091,0.6,CHERWELL DC CAR PARK
OXFORDSHIRE CC,"CHILDRENS, YOUNG PEOPLE AND FAMILIES",DIDCOT MOVE-ON HOME,CATERING PROVISIONS,12/02/2018,7004716975,0.6,SAINSBURYS SACAT 2067
OXFORDSHIRE CC,ENVIRONMENT AND ECONOMY,"	LEP","PUBLICITY, PROMOTIONS AND ADVERTISEMENT",04/09/2017,6440787553,0.63,GOOGLE  SVCSAPPS_OXFOR
OXFORDSHIRE CC,SOCIAL AND COMMUNITY SERVICES,"	MTFC",CATERING PROVISIONS,19/12/2017,6834158335,0.63,CO-OP GROUP 070698
OXFORDSHIRE CC,SOCIAL AND COMMUNITY SERVICES,LEAVING CARE NORTH,POSTAGE AND DELIVERY,05/09/2017,6444776663,0.65,POST OFFICE SELF SERVI
OXFORDSHIRE CC,"CHILDRENS, YOUNG PEOPLE AND FAMILIES",UASC POST 18,POSTAGE AND DELIVERY,13/09/2017,6471427059,0.65,POST OFFICE COUNTER
OXFORDSHIRE CC,"CHILDRENS, YOUNG PEOPLE AND FAMILIES",DIDCOT MOVE-ON HOME,CATERING PROVISIONS,27/11/2017,6748322471,0.65,SAINSBURYS SACAT 2067
OXFORDSHIRE CC,"CHILDRENS, YOUNG PEOPLE AND FAMILIES",THAME E&A HOME,POSTAGE AND DELIVERY,18/12/2017,6828695289,0.65,POST OFFICE COUNTER
OXFORDSHIRE CC,"CHILDRENS, YOUNG PEOPLE AND FAMILIES","	EDM",CATERING,16/01/2018,6906020309,0.65,ASDA SUPERSTORE
OXFORDSHIRE CC,"CHILDRENS, YOUNG PEOPLE AND FAMILIES","	YOUNG CARERS WORKER",CATERING PROVISIONS,31/07/2017,6323064641,0.68,TESCO STORES 6292
OXFORDSHIRE CC,"CHILDRENS, YOUNG PEOPLE AND FAMILIES",EYNSHAM,CATERING PROVISIONS,17/04/2017,5965992175,0.69,CO-OPERATIVE FOOD
OXFORDSHIRE CC,"CHILDRENS, YOUNG PEOPLE AND FAMILIES","	MALTFIELD HOUSE",CATERING,18/04/2017,5971646293,0.69,ALDI
OXFORDSHIRE CC,SOCIAL AND COMMUNITY SERVICES,"	MTFC",CATERING PROVISIONS,14/11/2017,6704682117,0.69,CO-OP GROUP 070698
OXFORDSHIRE CC,"CHILDRENS, YOUNG PEOPLE AND FAMILIES",THAME E&A HOME,CATERING PROVISIONS,29/06/2017,6222938747,0.7,SAINSBURYS SACAT 2096
OXFORDSHIRE CC,"CHILDRENS, YOUNG PEOPLE AND FAMILIES","	EDM",CATERING PROVISIONS,11/07/2017,6257151527,0.7,ASDA SUPERSTORE
OXFORDSHIRE CC,"CHILDRENS, YOUNG PEOPLE AND FAMILIES",DIDCOT MOVE-ON HOME,CATERING PROVISIONS,25/10/2017,6628964493,0.7,SAINSBURYS SACAT 2067
OXFORDSHIRE CC,"CHILDRENS, YOUNG PEOPLE AND FAMILIES",CNTL ERLY HELP-BBLEY,CATERING PROVISIONS,06/11/2017,6670252039,0.75,TESCO STORES 2990
OXFORDSHIRE CC,"CHILDRENS, YOUNG PEOPLE AND FAMILIES","	MALTFIELD HOUSE",CATERING PROVISIONS,20/11/2017,6726202541,0.75,CO-OP GROUP 350035
OXFORDSHIRE CC,"CHILDRENS, YOUNG PEOPLE AND FAMILIES",0-5 STDS & PROGRESS,"SUPPLIES, STATIONERY AND MATERIALS",08/01/2018,6876280887,0.77,AMAZON UK MARKETPLACE
OXFORDSHIRE CC,"CHILDRENS, YOUNG PEOPLE AND FAMILIES","	MUSIC UNALLOCABLE","BOOKS, DVDS AND CDS",24/04/2017,5989078065,0.79,ITUNES.COM/BILL
OXFORDSHIRE CC,"CHILDRENS, YOUNG PEOPLE AND FAMILIES","	MUSIC UNALLOCABLE","BOOKS, DVDS AND CDS",24/05/2017,6099309895,0.79,ITUNES.COM/BILL
OXFORDSHIRE CC,"CHILDRENS, YOUNG PEOPLE AND FAMILIES",WITNEY,CATERING PROVISIONS,08/06/2017,6147837947,0.79,CO-OP GROUP 070582
OXFORDSHIRE CC,"CHILDRENS, YOUNG PEOPLE AND FAMILIES","	MUSIC UNALLOCABLE","BOOKS, DVDS AND CDS",26/06/2017,6208906903,0.79,ITUNES.COM/BILL
OXFORDSHIRE CC,"CHILDRENS, YOUNG PEOPLE AND FAMILIES","	MUSIC UNALLOCABLE","BOOKS, DVDS AND CDS",24/07/2017,6298965291,0.79,ITUNES.COM/BILL
OXFORDSHIRE CC,"CHILDRENS, YOUNG PEOPLE AND FAMILIES","	MUSIC UNALLOCABLE","BOOKS, DVDS AND CDS",24/08/2017,6405399845,0.79,ITUNES.COM/BILL
OXFORDSHIRE CC,"CHILDRENS, YOUNG PEOPLE AND FAMILIES","	MUSIC UNALLOCABLE","BOOKS, DVDS AND CDS",25/09/2017,6514654939,0.79,ITUNES.COM/BILL
OXFORDSHIRE CC,"CHILDRENS, YOUNG PEOPLE AND FAMILIES","	MUSIC UNALLOCABLE","BOOKS, DVDS AND CDS",24/10/2017,6625217033,0.79,ITUNES.COM/BILL
OXFORDSHIRE CC,"CHILDRENS, YOUNG PEOPLE AND FAMILIES","	MUSIC UNALLOCABLE","BOOKS, DVDS AND CDS",24/11/2017,6743064439,0.79,ITUNES.COM/BILL
OXFORDSHIRE CC,"CHILDRENS, YOUNG PEOPLE AND FAMILIES","	MUSIC UNALLOCABLE","BOOKS, DVDS AND CDS",26/12/2017,6849845583,0.79,ITUNES.COM/BILL
OXFORDSHIRE CC,"CHILDRENS, YOUNG PEOPLE AND FAMILIES","	MUSIC UNALLOCABLE","BOOKS, DVDS AND CDS",24/01/2018,6934984969,0.79,ITUNES.COM/BILL
OXFORDSHIRE CC,"CHILDRENS, YOUNG PEOPLE AND FAMILIES","	MUSIC UNALLOCABLE","BOOKS, DVDS AND CDS",26/02/2018,7056510461,0.79,ITUNES.COM/BILL
OXFORDSHIRE CC,"CHILDRENS, YOUNG PEOPLE AND FAMILIES","	MUSIC UNALLOCABLE","BOOKS, DVDS AND CDS",26/03/2018,7167994161,0.79,ITUNES.COM/BILL
OXFORDSHIRE CC,"CHILDRENS, YOUNG PEOPLE AND FAMILIES",EYNSHAM,CATERING PROVISIONS,21/04/2017,5982536845,0.8,TESCO STORES 4377
OXFORDSHIRE CC,ENVIRONMENT AND ECONOMY,"	NATURAL ENVIRONMENT",CATERING PROVISIONS,19/12/2017,6834158071,0.8,TESCO STORES 6167
OXFORDSHIRE CC,"CHILDRENS, YOUNG PEOPLE AND FAMILIES",S&A INTERVENTION GRT,"PUBLICITY, PROMOTIONS AND ADVERTISEMENT",01/02/2018,6966441585,0.81,FACEBK  ZZH7VDWXA2
OXFORDSHIRE CC,"CHILDRENS, YOUNG PEOPLE AND FAMILIES","	MALTFIELD HOUSE","BOOKS, DVDS AND CDS",13/11/2017,6697421681,0.84,AMAZON SVCS EU-UK AMAZ
OXFORDSHIRE CC,CORPORATE CORE,"	COMMUNICATIONS","PUBLICITY, PROMOTIONS AND ADVERTISEMENT",03/04/2017,5923481001,0.85,FACEBK B6S66CS9Z2
OXFORDSHIRE CC,"CHILDRENS, YOUNG PEOPLE AND FAMILIES",THAME E&A HOME,CATERING PROVISIONS,24/05/2017,6099309653,0.85,SAINSBURYS SACAT 2096
OXFORDSHIRE CC,"CHILDRENS, YOUNG PEOPLE AND FAMILIES",DIDCOT MOVE-ON HOME,POSTAGE AND DELIVERY,18/09/2017,6487236969,0.88,POST OFFICE COUNTER
OXFORDSHIRE CC,"CHILDRENS, YOUNG PEOPLE AND FAMILIES","	MALTFIELD HOUSE",CATERING PROVISIONS,18/09/2017,6487237101,0.89,CO-OPERATIVE FOOD
OXFORDSHIRE CC,"CHILDRENS, YOUNG PEOPLE AND FAMILIES",LEADING THE EYFS,"SUPPLIES, STATIONERY AND MATERIALS",29/11/2017,6755445055,0.89,AMAZON UK MARKETPLACE
OXFORDSHIRE CC,"CHILDRENS, YOUNG PEOPLE AND FAMILIES",THAME E&A HOME,CATERING PROVISIONS,03/04/2017,5923481659,0.9,SAINSBURYS 2067
OXFORDSHIRE CC,"CHILDRENS, YOUNG PEOPLE AND FAMILIES","	LEAVING CARE NORTH",CATERING PROVISIONS,03/10/2017,6546740411,0.9,PELICAN ROUGE COFFEE S
OXFORDSHIRE CC,"CHILDRENS, YOUNG PEOPLE AND FAMILIES","	MALTFIELD HOUSE",FURNITURE,05/10/2017,6554877955,0.9,IKEA LIMITED
OXFORDSHIRE CC,"CHILDRENS, YOUNG PEOPLE AND FAMILIES",WITNEY,VEHICLE FUEL,03/07/2017,6234459879,0.95,TESCO PFS 3418
OXFORDSHIRE CC,SOCIAL AND COMMUNITY SERVICES,CSS WANTAGE,MATERIALS,13/11/2017,6697421765,0.95,AMAZON SVCS EU-UK AMAZ
OXFORDSHIRE CC,SOCIAL AND COMMUNITY SERVICES,CSS - BANBURY,CATERING PROVISIONS,08/12/2017,6792587093,0.95,CO-OPERATIVE FOOD
OXFORDSHIRE CC,"CHILDRENS, YOUNG PEOPLE AND FAMILIES",EYNSHAM,CATERING PROVISIONS,22/01/2018,6923958881,0.95,CO-OPERATIVE FOOD
OXFORDSHIRE CC,"CHILDRENS, YOUNG PEOPLE AND FAMILIES","	MANAGEMENT & ADMIN",CATERING PROVISIONS,22/01/2018,6923958503,0.95,CO-OPERATIVE FOOD
OXFORDSHIRE CC,"CHILDRENS, YOUNG PEOPLE AND FAMILIES",EET SERVICE,"PUBLICITY, PROMOTIONS AND ADVERTISEMENT",02/10/2017,6539724153,0.96,FACEBK GXGEHCJMB2
OXFORDSHIRE CC,"CHILDRENS, YOUNG PEOPLE AND FAMILIES",EYNSHAM,CATERING PROVISIONS,24/11/2017,6743064435,0.96,THE MARKET GARDEN
OXFORDSHIRE CC,ENVIRONMENT AND ECONOMY,BICESTER LIBRARY,CATERING PROVISIONS,06/07/2017,6288218605,0.98,MARTIN MCCOLL
OXFORDSHIRE CC,ENVIRONMENT AND ECONOMY,BICESTER LIBRARY,CATERING PROVISIONS,06/10/2017,6560151017,0.98,MARTIN MCCOLL
OXFORDSHIRE CC,"CHILDRENS, YOUNG PEOPLE AND FAMILIES",DIDCOT MOVE-ON HOME,POSTAGE AND DELIVERY,06/11/2017,6670251989,0.98,POST OFFICE COUNTER
OXFORDSHIRE CC,"CHILDRENS, YOUNG PEOPLE AND FAMILIES",NORTH FSS- BANBURY,POSTAGE AND DELIVERY,16/03/2018,7134191231,0.98,POST OFFICE COUNTER
OXFORDSHIRE CC,"CHILDRENS, YOUNG PEOPLE AND FAMILIES","	LEAVING CARE NORTH",RESIDENTIAL ACTIVITIES,14/04/2017,5961357351,0.99,CO-OP GROUP 070582
OXFORDSHIRE CC,"CHILDRENS, YOUNG PEOPLE AND FAMILIES",DIDCOT MOVE-ON HOME,CATERING PROVISIONS,26/05/2017,6108898873,0.99,TESCO STORE 2413
OXFORDSHIRE CC,"CHILDRENS, YOUNG PEOPLE AND FAMILIES","	YOUNG CARERS WORKER",CATERING,31/05/2017,6120679109,0.99,MCDONALDS
OXFORDSHIRE CC,"CHILDRENS, YOUNG PEOPLE AND FAMILIES","	LEAVING CARE NORTH",MATERIALS,18/07/2017,6281346233,0.99,CARD FACTORY
OXFORDSHIRE CC,SOCIAL AND COMMUNITY SERVICES,LEAVING CARE NORTH,MATERIALS,27/07/2017,6312775923,0.99,CARD FACTORY
OXFORDSHIRE CC,"CHILDRENS, YOUNG PEOPLE AND FAMILIES","	LOOKED AFTER CITY 2",CATERING,09/08/2017,6355707303,0.99,MCDONALDS
OXFORDSHIRE CC,"CHILDRENS, YOUNG PEOPLE AND FAMILIES","	EDM",CATERING,08/09/2017,6455466663,0.99,ASDA SUPERSTORE
OXFORDSHIRE CC,"CHILDRENS, YOUNG PEOPLE AND FAMILIES","	MALTFIELD HOUSE",CATERING PROVISIONS,14/09/2017,6475189343,0.99,CO-OP GROUP 350035
OXFORDSHIRE CC,"CHILDRENS, YOUNG PEOPLE AND FAMILIES",WITNEY,CATERING PROVISIONS,16/10/2017,6591417743,0.99,TESCO-STORES 2499
OXFORDSHIRE CC,"CHILDRENS, YOUNG PEOPLE AND FAMILIES",S&A INTERVENTION GRT,"PUBLICITY, PROMOTIONS AND ADVERTISEMENT",01/11/2017,6654816363,0.99,FACEBK  AFGXSC6XA2
OXFORDSHIRE CC,"CHILDRENS, YOUNG PEOPLE AND FAMILIES","	LEAVING CARE SOUTH",OTHER EXPENSES,20/11/2017,6726202429,0.99,CARD FACTORY
OXFORDSHIRE CC,"CHILDRENS, YOUNG PEOPLE AND FAMILIES","	LOOKED AFTER CITY 2",CATERING,22/12/2017,6845730223,0.99,MCDONALDS
OXFORDSHIRE CC,"CHILDRENS, YOUNG PEOPLE AND FAMILIES","	LOOKED AFTER CITY 2",OTHER EXPENSES,26/12/2017,6849845459,0.99,SHELL PEARTREE
OXFORDSHIRE CC,"CHILDRENS, YOUNG PEOPLE AND FAMILIES",EYNSHAM,"BOOKS, DVDS AND CDS",09/01/2018,6881431323,0.99,AMAZON UK MARKETPLACE
OXFORDSHIRE CC,"CHILDRENS, YOUNG PEOPLE AND FAMILIES",DIDCOT MOVE-ON HOME,MATERIALS,17/01/2018,6908846151,0.99,CARD FACTORY
OXFORDSHIRE CC,"CHILDRENS, YOUNG PEOPLE AND FAMILIES","	LEAVING CARE NORTH",CATERING,23/01/2018,6931298503,0.99,MCDONALDS
OXFORDSHIRE CC,"CHILDRENS, YOUNG PEOPLE AND FAMILIES","	LOOKED AFTER NORTH",MATERIALS,28/02/2018,7067705231,0.99,CARD FACTORY
OXFORDSHIRE CC,"CHILDRENS, YOUNG PEOPLE AND FAMILIES","	LEAVING CARE CITY 1",MATERIALS,20/03/2018,7146597147,0.99,CARD FACTORY
OXFORDSHIRE CC,"CHILDRENS, YOUNG PEOPLE AND FAMILIES","	40 THE MOORS",VEHICLE FUEL,22/03/2018,7156340933,0.99,MALTHURST PETROLEU
OXFORDSHIRE CC,"CHILDRENS, YOUNG PEOPLE AND FAMILIES",WITNEY,CATERING PROVISIONS,10/04/2017,5945581037,1,TESCO STORES-2008
OXFORDSHIRE CC,"CHILDRENS, YOUNG PEOPLE AND FAMILIES",DIDCOT MOVE-ON HOME,CATERING PROVISIONS,10/04/2017,5945581045,1,WWW.COOP.CO.UK/MEM
OXFORDSHIRE CC,"CHILDRENS, YOUNG PEOPLE AND FAMILIES","	FAMILY SUPPORT CITY3",CATERING PROVISIONS,11/04/2017,5950650899,1,SAINSBURYS 0600
OXFORDSHIRE CC,"CHILDRENS, YOUNG PEOPLE AND FAMILIES",THAME E&A HOME,MATERIALS,12/04/2017,5953971077,1,WLY COMPLETESAVE.CO.UK
OXFORDSHIRE CC,"CHILDRENS, YOUNG PEOPLE AND FAMILIES","	40 THE MOORS",CATERING PROVISIONS,17/04/2017,5965992141,1,CO-OPERATIVE FOOD
OXFORDSHIRE CC,"CHILDRENS, YOUNG PEOPLE AND FAMILIES",EYNSHAM,ENTERTAINMENT EXPENSES,17/04/2017,5965992221,1,SPICEBALL LEISURE CENT
OXFORDSHIRE CC,"CHILDRENS, YOUNG PEOPLE AND FAMILIES",DIDCOT MOVE-ON HOME,CATERING PROVISIONS,17/04/2017,5965992151,1,SAINSBURYS SACAT 2067
OXFORDSHIRE CC,"CHILDRENS, YOUNG PEOPLE AND FAMILIES","	LEAVING CARE NORTH",OTHER SERVICES,26/04/2017,5998337625,1,CASTLE QUAY
OXFORDSHIRE CC,"CHILDRENS, YOUNG PEOPLE AND FAMILIES",EYNSHAM,MATERIALS,28/04/2017,6010455381,1,POUNDLAND LTD
OXFORDSHIRE CC,"CHILDRENS, YOUNG PEOPLE AND FAMILIES",EYNSHAM,OTHER SERVICES,12/05/2017,6056117723,1,CASTLE QUAY
OXFORDSHIRE CC,"CHILDRENS, YOUNG PEOPLE AND FAMILIES",NTH EARLY HELP-BCSTR,STATIONERY,19/05/2017,6083368237,1,CLINTONS 051
OXFORDSHIRE CC,"CHILDRENS, YOUNG PEOPLE AND FAMILIES",NTH FAM SUPRT-BCSTR,STATIONERY,19/05/2017,6083368237,1,CLINTONS 051
OXFORDSHIRE CC,"CHILDRENS, YOUNG PEOPLE AND FAMILIES",THAME E&A HOME,VEHICLE FUEL,19/05/2017,6083368579,1,THAME BP SF CONNECT
OXFORDSHIRE CC,"CHILDRENS, YOUNG PEOPLE AND FAMILIES","	40 THE MOORS",CATERING PROVISIONS,22/05/2017,6089657293,1,SAINSBURYS SACAT 0631
OXFORDSHIRE CC,"CHILDRENS, YOUNG PEOPLE AND FAMILIES",WITNEY,CATERING PROVISIONS,24/05/2017,6099310033,1,WM MORRISON(STORE)
OXFORDSHIRE CC,"CHILDRENS, YOUNG PEOPLE AND FAMILIES",EYNSHAM,CATERING,12/06/2017,6159014679,1,WY & SF LTD
OXFORDSHIRE CC,"CHILDRENS, YOUNG PEOPLE AND FAMILIES",EYNSHAM,CATERING PROVISIONS,27/06/2017,6214535593,1,CO-OPERATIVE FOOD
OXFORDSHIRE CC,"CHILDRENS, YOUNG PEOPLE AND FAMILIES","	LEAVING CARE NORTH",OTHER SERVICES,28/06/2017,6218937305,1,CASTLE QUAY
OXFORDSHIRE CC,"CHILDRENS, YOUNG PEOPLE AND FAMILIES",NTH EARLY HELP-BCSTR,CATERING,30/06/2017,6228978399,1,WILKO RETAIL LIMIT
OXFORDSHIRE CC,"CHILDRENS, YOUNG PEOPLE AND FAMILIES","	LOOKED AFTER NORTH",CATERING PROVISIONS,03/07/2017,6234459907,1,W M MORRISON PLC
OXFORDSHIRE CC,"CHILDRENS, YOUNG PEOPLE AND FAMILIES","	MUSIC UNALLOCABLE",CATERING PROVISIONS,11/07/2017,6257152059,1,WAITROSE 153
OXFORDSHIRE CC,"CHILDRENS, YOUNG PEOPLE AND FAMILIES",WITNEY,CATERING PROVISIONS,31/07/2017,6323064753,1,TESCO-STORES 2499
OXFORDSHIRE CC,"CHILDRENS, YOUNG PEOPLE AND FAMILIES","	NCS",CATERING PROVISIONS,04/08/2017,6342374469,1,TESCO STORES 6167
OXFORDSHIRE CC,"CHILDRENS, YOUNG PEOPLE AND FAMILIES",WITNEY,MATERIALS,07/08/2017,6346492517,1,POUNDLAND LTD
OXFORDSHIRE CC,"CHILDRENS, YOUNG PEOPLE AND FAMILIES",KINGFISHER,OTHER TRANSPORT ARRANGEMENTS,09/08/2017,6355707539,1,CHERWELL DISTRICT COUN
OXFORDSHIRE CC,"CHILDRENS, YOUNG PEOPLE AND FAMILIES","	LOOKED AFTER SOUTH",OTHER EXPENSES,11/08/2017,6363975179,1,POUNDLAND LTD 1586
OXFORDSHIRE CC,SOCIAL AND COMMUNITY SERVICES,"	MTFC",ENTERTAINMENT EXPENSES,17/08/2017,6382290927,1,FAIRYTALE FARM
OXFORDSHIRE CC,SOCIAL AND COMMUNITY SERVICES,LEAVING CARE NORTH,CATERING PROVISIONS,17/08/2017,6382290925,1,W M MORRISON PLC
OXFORDSHIRE CC,"CHILDRENS, YOUNG PEOPLE AND FAMILIES",DIDCOT MOVE-ON HOME,CATERING PROVISIONS,23/08/2017,6401242153,1,SAINSBURYS SACAT 0600
OXFORDSHIRE CC,"CHILDRENS, YOUNG PEOPLE AND FAMILIES","	MALTFIELD HOUSE",CATERING PROVISIONS,28/08/2017,6415590373,1,MARTIN MCCOLL
OXFORDSHIRE CC,"CHILDRENS, YOUNG PEOPLE AND FAMILIES","	LEAVING CARE NORTH",TRAINING RELATED EXPENDITURE,07/09/2017,6450244903,1,POUNDWORLD RETAIL
OXFORDSHIRE CC,"CHILDRENS, YOUNG PEOPLE AND FAMILIES","	LOOKED AFTER CITY 2",OTHER SERVICES,25/09/2017,6514654955,1,3C_ DTZ EDEN SHOPPING
OXFORDSHIRE CC,"CHILDRENS, YOUNG PEOPLE AND FAMILIES","	40 THE MOORS",CATERING PROVISIONS,27/09/2017,6524049495,1,SAINSBURYS SACAT 0631
OXFORDSHIRE CC,"CHILDRENS, YOUNG PEOPLE AND FAMILIES","	MALTFIELD HOUSE",CATERING,04/10/2017,6550346661,1,SAINSBURYS SACAT 4395
OXFORDSHIRE CC,"CHILDRENS, YOUNG PEOPLE AND FAMILIES","	EDM",CATERING PROVISIONS,20/10/2017,6612055665,1,ASDA SUPERSTORE
OXFORDSHIRE CC,"CHILDRENS, YOUNG PEOPLE AND FAMILIES",THAME E&A HOME,CATERING PROVISIONS,25/10/2017,6628964521,1,MARTIN MCCOLL
OXFORDSHIRE CC,SOCIAL AND COMMUNITY SERVICES,"	FAMILY SUPPORT N'TH2",NON-STAFF SUBSISTENCE AND EXPENSES,25/10/2017,6628964459,1,COTSWOLD WILDLIFE PARK
OXFORDSHIRE CC,"CHILDRENS, YOUNG PEOPLE AND FAMILIES",THAME E&A HOME,CATERING PROVISIONS,03/11/2017,6663949011,1,WAITROSE 206
OXFORDSHIRE CC,"CHILDRENS, YOUNG PEOPLE AND FAMILIES",NASH COURT,CATERING PROVISIONS,06/11/2017,6670252177,1,TESCO STORES 2994
OXFORDSHIRE CC,"CHILDRENS, YOUNG PEOPLE AND FAMILIES",DIDCOT MOVE-ON HOME,CATERING PROVISIONS,07/11/2017,6677195133,1,SAINSBURYS SACAT 2067
OXFORDSHIRE CC,"CHILDRENS, YOUNG PEOPLE AND FAMILIES",THAME E&A HOME,CATERING PROVISIONS,13/11/2017,6697421957,1,VK MINIMARKET & NEWSAG
OXFORDSHIRE CC,"CHILDRENS, YOUNG PEOPLE AND FAMILIES",EYNSHAM,CATERING PROVISIONS,30/11/2017,6759907325,1,CO-OPERATIVE FOOD
OXFORDSHIRE CC,"CHILDRENS, YOUNG PEOPLE AND FAMILIES",WITNEY,FURNITURE,05/12/2017,6778869779,1,POUNDSTRETCHER STOCK
OXFORDSHIRE CC,SOCIAL AND COMMUNITY SERVICES,"	MTFC",CATERING PROVISIONS,12/12/2017,6807306007,1,TESCO STORES 2994
OXFORDSHIRE CC,SOCIAL AND COMMUNITY SERVICES,LOOKED AFTER NORTH,CATERING PROVISIONS,15/12/2017,6821195315,1,TESCO STORES 2695
OXFORDSHIRE CC,SOCIAL AND COMMUNITY SERVICES,LOOKED AFTER NORTH,CATERING PROVISIONS,11/01/2018,6889405017,1,W M MORRISON PLC
OXFORDSHIRE CC,"CHILDRENS, YOUNG PEOPLE AND FAMILIES",EYNSHAM,OTHER SERVICES,25/01/2018,6939452355,1,CAR PARK CHARGES
OXFORDSHIRE CC,"CHILDRENS, YOUNG PEOPLE AND FAMILIES",CNTL EARLY HELP-RHIL,MATERIALS,31/01/2018,6961644367,1,POUNDLAND LTD
OXFORDSHIRE CC,CORPORATE CORE,"	PROCUREMENT",OTHER MISC INC,16/02/2018,7024736529,1,HTTPS://SBS.E-PAYCAPIT
OXFORDSHIRE CC,CORPORATE CORE,"	PROCUREMENT",OTHER MISC INC,19/02/2018,7030642279,1,HTTPS://SBS.E-PAYCAPIT
OXFORDSHIRE CC,CORPORATE CORE,"	PROCUREMENT",OTHER MISC INC,19/02/2018,7030642277,1,HTTPS://SBS.E-PAYCAPIT
OXFORDSHIRE CC,CORPORATE CORE,"	PROCUREMENT",OTHER MISC INC,19/02/2018,7030642283,1,OXFORDSHIRE CC MOTO1
OXFORDSHIRE CC,CORPORATE CORE,"	PROCUREMENT",OTHER MISC INC,19/02/2018,7030642281,1,OXFORDSHIRE CC MOTO1
OXFORDSHIRE CC,CORPORATE CORE,"	PROCUREMENT",OTHER MISC INC,21/02/2018,7040464657,1,HTTPS://SBS.E-PAYCAPIT
OXFORDSHIRE CC,CORPORATE CORE,"	PROCUREMENT",OTHER MISC INC,21/02/2018,7040464655,1,HTTPS://SBS.E-PAYCAPIT
OXFORDSHIRE CC,SOCIAL AND COMMUNITY SERVICES,LOOKED AFTER NORTH,CATERING PROVISIONS,28/02/2018,7067705139,1,W M MORRISON PLC
OXFORDSHIRE CC,SOCIAL AND COMMUNITY SERVICES,"	MTFC",CATERING PROVISIONS,07/03/2018,7096171295,1,TESCO STORES 2994
OXFORDSHIRE CC,"CHILDRENS, YOUNG PEOPLE AND FAMILIES","	LOOKED AFTER NORTH",VEHICLE EQUIPMENT AND EXPENSES - OTHER,12/03/2018,7113438369,1,CAR PARK CHARGES
OXFORDSHIRE CC,"CHILDRENS, YOUNG PEOPLE AND FAMILIES",WITNEY,CATERING PROVISIONS,16/03/2018,7134191679,1,CO-OP GROUP 070582
OXFORDSHIRE CC,"CHILDRENS, YOUNG PEOPLE AND FAMILIES",EYNSHAM,MATERIALS,26/03/2018,7167994313,1,CARD FACTORY
OXFORDSHIRE CC,"CHILDRENS, YOUNG PEOPLE AND FAMILIES",S&A INTERVENTION GRT,"PUBLICITY, PROMOTIONS AND ADVERTISEMENT",01/08/2017,6329391693,1.01,FACEBK  59NTJCJXA2
OXFORDSHIRE CC,"CHILDRENS, YOUNG PEOPLE AND FAMILIES",WITNEY,CATERING PROVISIONS,26/06/2017,6208907165,1.05,CO-OP FOOD
OXFORDSHIRE CC,"CHILDRENS, YOUNG PEOPLE AND FAMILIES","	40 THE MOORS",CATERING PROVISIONS,29/06/2017,6222938841,1.05,TESCO STORES 2788
OXFORDSHIRE CC,"CHILDRENS, YOUNG PEOPLE AND FAMILIES","	MALTFIELD HOUSE",CATERING PROVISIONS,03/08/2017,6337100211,1.05,SAINSBURYS SAC2305SAC
OXFORDSHIRE CC,"CHILDRENS, YOUNG PEOPLE AND FAMILIES",WITNEY,CATERING PROVISIONS,28/08/2017,6415591079,1.05,TESCO-STORES 2499
OXFORDSHIRE CC,"CHILDRENS, YOUNG PEOPLE AND FAMILIES","	MALTFIELD HOUSE",CATERING,31/08/2017,6428780553,1.05,M & S SIMPLY FOOD
OXFORDSHIRE CC,CORPORATE CORE,"	COMMUNICATIONS","PUBLICITY, PROMOTIONS AND ADVERTISEMENT",03/10/2017,6546741063,1.06,FACEBK 2MS9LDJ9Z2
OXFORDSHIRE CC,"CHILDRENS, YOUNG PEOPLE AND FAMILIES","	LEAVING CARE NORTH",MATERIALS,20/11/2017,6726202377,1.08,WH SMITH
OXFORDSHIRE CC,CORPORATE CORE,"	COMMUNICATIONS","PUBLICITY, PROMOTIONS AND ADVERTISEMENT",01/11/2017,6654816573,1.09,FACEBK 9B4DZDS9Z2
OXFORDSHIRE CC,"CHILDRENS, YOUNG PEOPLE AND FAMILIES",DIDCOT MOVE-ON HOME,CATERING PROVISIONS,02/01/2018,6862201799,1.09,CO-OP FOOD
OXFORDSHIRE CC,"CHILDRENS, YOUNG PEOPLE AND FAMILIES",CNTL ERLY HELP-BBLEY,CATERING PROVISIONS,30/11/2017,6759907251,1.1,TESCO STORE 2990
OXFORDSHIRE CC,"CHILDRENS, YOUNG PEOPLE AND FAMILIES","	LEAVING CARE NORTH",OTHER EXPENSES,04/01/2018,6868259883,1.1,TESCO STORES 6167
OXFORDSHIRE CC,"CHILDRENS, YOUNG PEOPLE AND FAMILIES",EYNSHAM,CATERING PROVISIONS,03/04/2017,5923481693,1.15,CO-OPERATIVE FOOD
OXFORDSHIRE CC,"CHILDRENS, YOUNG PEOPLE AND FAMILIES",0-5 STDS & PROGRESS,"PUBLICITY, PROMOTIONS AND ADVERTISEMENT",01/06/2017,6146642455,1.15,FACEBK SQDRSCN6J2
OXFORDSHIRE CC,"CHILDRENS, YOUNG PEOPLE AND FAMILIES","	LEAVING CARE NORTH",CATERING PROVISIONS,04/07/2017,6239107437,1.15,W M MORRISON PLC
OXFORDSHIRE CC,"CHILDRENS, YOUNG PEOPLE AND FAMILIES",S&A INTERVENTION GRT,"PUBLICITY, PROMOTIONS AND ADVERTISEMENT",01/01/2018,6860358645,1.16,FACEBK  PSCTJDNXA2
OXFORDSHIRE CC,"CHILDRENS, YOUNG PEOPLE AND FAMILIES","	LOOKED AFTER NORTH",POSTAGE AND DELIVERY,10/08/2017,6359614247,1.17,THE POST OFFICE
OXFORDSHIRE CC,"CHILDRENS, YOUNG PEOPLE AND FAMILIES","	MALTFIELD HOUSE",CATERING,18/04/2017,5971646293,1.18,ALDI
OXFORDSHIRE CC,"CHILDRENS, YOUNG PEOPLE AND FAMILIES","	ANTI-BULLYING","SUPPLIES, STATIONERY AND MATERIALS",16/11/2017,6713926673,1.19,RYMAN 1172
OXFORDSHIRE CC,"CHILDRENS, YOUNG PEOPLE AND FAMILIES",EYNSHAM,MATERIALS,20/11/2017,6726202259,1.19,WH SMITH TRAVEL
OXFORDSHIRE CC,"CHILDRENS, YOUNG PEOPLE AND FAMILIES",DIDCOT MOVE-ON HOME,MATERIALS,07/12/2017,6787494857,1.19,WH SMITH
OXFORDSHIRE CC,"CHILDRENS, YOUNG PEOPLE AND FAMILIES","	RESIDENTIAL STRATEGY",CATERING PROVISIONS,29/03/2017,5904585873,1.2,SAINSBURYS 0631
OXFORDSHIRE CC,"CHILDRENS, YOUNG PEOPLE AND FAMILIES","	LOOKED AFTER NORTH",VEHICLE FUEL,12/04/2017,5953971079,1.2,TESCO PFS 4267
OXFORDSHIRE CC,SOCIAL AND COMMUNITY SERVICES,"	MTFC",CATERING PROVISIONS,26/04/2017,5998337547,1.2,SAINSBURYS 0600
OXFORDSHIRE CC,"CHILDRENS, YOUNG PEOPLE AND FAMILIES",EYNSHAM,CATERING PROVISIONS,10/05/2017,6046622743,1.2,CO-OPERATIVE FOOD
OXFORDSHIRE CC,"CHILDRENS, YOUNG PEOPLE AND FAMILIES","	40 THE MOORS",CATERING PROVISIONS,16/05/2017,6068452523,1.2,NYX LRS
OXFORDSHIRE CC,"CHILDRENS, YOUNG PEOPLE AND FAMILIES","	LOOKED AFTER NORTH",PAYMENT TO GOVERNMENT DEPARTMENTS,17/07/2017,6279911587,1.2,SBC CAR PARK TKTS
OXFORDSHIRE CC,SOCIAL AND COMMUNITY SERVICES,LOOKED AFTER NORTH,CATERING PROVISIONS,03/08/2017,6337100205,1.2,SAINSBURYS 0642
OXFORDSHIRE CC,"CHILDRENS, YOUNG PEOPLE AND FAMILIES",THAME E&A HOME,CATERING PROVISIONS,23/08/2017,6401242171,1.2,SAINSBURYS 2096
OXFORDSHIRE CC,"CHILDRENS, YOUNG PEOPLE AND FAMILIES",DIDCOT MOVE-ON HOME,HOSPITALITY EXPENSES,29/08/2017,6421871729,1.2,LORD NELSON
OXFORDSHIRE CC,"CHILDRENS, YOUNG PEOPLE AND FAMILIES","	MALTFIELD HOUSE",OTHER EXPENSES,07/09/2017,6450244611,1.2,FROSTS PHARMACY LTD
OXFORDSHIRE CC,"CHILDRENS, YOUNG PEOPLE AND FAMILIES",EYNSHAM,OTHER SERVICES,14/12/2017,6816074929,1.2,CHERWELL DC CAR PARK
OXFORDSHIRE CC,"CHILDRENS, YOUNG PEOPLE AND FAMILIES",EYNSHAM,OTHER SERVICES,18/01/2018,6913210857,1.2,CHERWELL DC CAR PARK
OXFORDSHIRE CC,"CHILDRENS, YOUNG PEOPLE AND FAMILIES","	LEAVING CARE NORTH",CATERING PROVISIONS,06/06/2017,6139821927,1.24,W M MORRISON PLC
OXFORDSHIRE CC,"CHILDRENS, YOUNG PEOPLE AND FAMILIES","	40 THE MOORS",MATERIALS,04/05/2017,6075197687,1.25,M & S SIMPLY FOOD
OXFORDSHIRE CC,"CHILDRENS, YOUNG PEOPLE AND FAMILIES","	FAMILY SUPPORT CITY3",CATERING PROVISIONS,17/05/2017,6071896017,1.25,TESCO STORES 2990
OXFORDSHIRE CC,"CHILDRENS, YOUNG PEOPLE AND FAMILIES","	LEAVING CARE NORTH",CATERING PROVISIONS,06/07/2017,6288218375,1.25,TESCO STORES 2413
OXFORDSHIRE CC,"CHILDRENS, YOUNG PEOPLE AND FAMILIES",DIDCOT MOVE-ON HOME,CATERING PROVISIONS,17/07/2017,6279911369,1.25,SAINSBURYS SACAT 2067
OXFORDSHIRE CC,"CHILDRENS, YOUNG PEOPLE AND FAMILIES",DIDCOT MOVE-ON HOME,CATERING PROVISIONS,23/08/2017,6401242151,1.25,SAINSBURYS SACAT 0600
OXFORDSHIRE CC,"CHILDRENS, YOUNG PEOPLE AND FAMILIES","	40 THE MOORS",CATERING PROVISIONS,11/09/2017,6461145211,1.25,TESCO STORES 2788
OXFORDSHIRE CC,"CHILDRENS, YOUNG PEOPLE AND FAMILIES","	RIVERSIDE CENTRE",CATERING PROVISIONS,13/11/2017,6697422163,1.25,TESCO STORES-2124
OXFORDSHIRE CC,"CHILDRENS, YOUNG PEOPLE AND FAMILIES","	LEAVING CARE NORTH",CATERING PROVISIONS,22/03/2018,7156340779,1.25,TESCO STORES 6167
OXFORDSHIRE CC,"CHILDRENS, YOUNG PEOPLE AND FAMILIES","	NCS",CATERING EQUIPMENT,11/07/2017,6257152381,1.29,HOPCROFTS HOLT SER
OXFORDSHIRE CC,"CHILDRENS, YOUNG PEOPLE AND FAMILIES",DIDCOT MOVE-ON HOME,CATERING PROVISIONS,16/08/2017,6378490949,1.29,CO-OPERATIVE FOOD
OXFORDSHIRE CC,ENVIRONMENT AND ECONOMY,"	LEP",CATERING,15/09/2017,6480230471,1.29,MARKS&SPENCER PLC
OXFORDSHIRE CC,"CHILDRENS, YOUNG PEOPLE AND FAMILIES","	MALTFIELD HOUSE",CATERING,12/01/2018,6893891865,1.29,CO-OP GROUP 350035
OXFORDSHIRE CC,ENVIRONMENT AND ECONOMY,DEFINITIVE MAP,"PUBLICITY, PROMOTIONS AND ADVERTISEMENT",11/04/2017,5950650797,1.3,TESCO STORES 6167
OXFORDSHIRE CC,"CHILDRENS, YOUNG PEOPLE AND FAMILIES",CNTL ERLY HELP-BBLEY,CATERING PROVISIONS,15/06/2017,6172489239,1.3,LIDL UK
OXFORDSHIRE CC,ENVIRONMENT AND ECONOMY,DEFINITIVE MAP,"PUBLICITY, PROMOTIONS AND ADVERTISEMENT",08/08/2017,6352414573,1.3,MARKS&SPENCER PLC
OXFORDSHIRE CC,SOCIAL AND COMMUNITY SERVICES,LOOKED AFTER NORTH,DRUGS AND MEDICAL SUPPLIES,31/08/2017,6428780647,1.3,"BOOTS,BANBURY"
OXFORDSHIRE CC,ENVIRONMENT AND ECONOMY,DEFINITIVE MAP,"PUBLICITY, PROMOTIONS AND ADVERTISEMENT",21/09/2017,6501548319,1.3,TESCO STORES 6167
OXFORDSHIRE CC,"CHILDRENS, YOUNG PEOPLE AND FAMILIES","	LOOKED AFTER SOUTH",POSTAGE AND DELIVERY,10/11/2017,6690742287,1.3,POST OFFICE COUNTER
OXFORDSHIRE CC,"CHILDRENS, YOUNG PEOPLE AND FAMILIES","	LOOKED AFTER CITY 2",POSTAGE AND DELIVERY,12/03/2018,7113436623,1.3,POST OFFICE COUNTER
OXFORDSHIRE CC,"CHILDRENS, YOUNG PEOPLE AND FAMILIES","	FAM SUPP SOUTH",,05/06/2017,6263305325,1.31,
OXFORDSHIRE CC,"CHILDRENS, YOUNG PEOPLE AND FAMILIES","	NCS",IT SERVICES,27/07/2017,6312775911,1.32,GODADDY COM EUROPE
OXFORDSHIRE CC,"CHILDRENS, YOUNG PEOPLE AND FAMILIES",NTH EARLY HELP-WITNY,"BOOKS, DVDS AND CDS",14/02/2018,7015357683,1.34,AMAZON UK MARKETPLACE
OXFORDSHIRE CC,"CHILDRENS, YOUNG PEOPLE AND FAMILIES",EYNSHAM,CATERING,09/05/2017,6075718223,1.35,GREGGS PLC
OXFORDSHIRE CC,"CHILDRENS, YOUNG PEOPLE AND FAMILIES","	LEAVING CARE NORTH",OTHER EXPENSES,08/08/2017,6352414681,1.35,SAINSBURYS SACAT 2067
OXFORDSHIRE CC,"CHILDRENS, YOUNG PEOPLE AND FAMILIES","	40 THE MOORS",CATERING,28/08/2017,6415590831,1.35,GREGGS PLC
OXFORDSHIRE CC,ENVIRONMENT AND ECONOMY,"	COUNTRYSIDE PREMISES",CATERING PROVISIONS,27/09/2017,6524049325,1.35,MARKS&SPENCER PLC
OXFORDSHIRE CC,"CHILDRENS, YOUNG PEOPLE AND FAMILIES",CNTL EARLY HELP-RHIL,CATERING PROVISIONS,18/10/2017,6602235947,1.35,ASDA SUPERSTORE
OXFORDSHIRE CC,"CHILDRENS, YOUNG PEOPLE AND FAMILIES","	40 THE MOORS",CATERING PROVISIONS,13/11/2017,6697421839,1.35,TESCO STORES 2788
OXFORDSHIRE CC,"CHILDRENS, YOUNG PEOPLE AND FAMILIES",EYNSHAM,CATERING PROVISIONS,22/03/2018,7156340885,1.38,CO-OPERATIVE FOOD
OXFORDSHIRE CC,"CHILDRENS, YOUNG PEOPLE AND FAMILIES","	LOOKED AFTER CITY 2",CATERING,01/09/2017,6433785915,1.39,MCDONALDS
OXFORDSHIRE CC,"CHILDRENS, YOUNG PEOPLE AND FAMILIES","	FOSTER CARE RECRUIT",VEHICLE FUEL,14/09/2017,6475189183,1.39,SHELL COWLEY
OXFORDSHIRE CC,"CHILDRENS, YOUNG PEOPLE AND FAMILIES",THAME E&A HOME,CATERING,22/11/2017,6736517897,1.39,MCDONALDS
OXFORDSHIRE CC,"CHILDRENS, YOUNG PEOPLE AND FAMILIES","	LOOKED AFTER CITY 2",CATERING,14/12/2017,6816074671,1.39,MCDONALDS
OXFORDSHIRE CC,"CHILDRENS, YOUNG PEOPLE AND FAMILIES","	LEAVING CARE NORTH",CATERING,12/01/2018,6893891733,1.39,MCDONALDS
OXFORDSHIRE CC,"CHILDRENS, YOUNG PEOPLE AND FAMILIES",EYNSHAM,"BOOKS, DVDS AND CDS",25/09/2017,6514654967,1.4,AMAZON UK MARKETPLACE
OXFORDSHIRE CC,"CHILDRENS, YOUNG PEOPLE AND FAMILIES",EYNSHAM,CATERING PROVISIONS,25/10/2017,6628964547,1.4,WELCOME B/WAITROSE PEA
OXFORDSHIRE CC,"CHILDRENS, YOUNG PEOPLE AND FAMILIES",NTH EARLY HELP-BNRBY,MATERIALS,21/09/2017,6501548201,1.44,AMAZON UK MARKETPLACE
OXFORDSHIRE CC,"CHILDRENS, YOUNG PEOPLE AND FAMILIES",EYNSHAM,CATERING PROVISIONS,17/04/2017,5965992329,1.45,CO-OPERATIVE FOOD
OXFORDSHIRE CC,CORPORATE CORE,OPERATIONS,FURNITURE,30/06/2017,6228978121,1.45,AMAZON UK MARKETPLACE
OXFORDSHIRE CC,"CHILDRENS, YOUNG PEOPLE AND FAMILIES",WITNEY,CATERING PROVISIONS,04/08/2017,6342374453,1.45,SAINSBURYS SACAT 0632
OXFORDSHIRE CC,"CHILDRENS, YOUNG PEOPLE AND FAMILIES",EYNSHAM,CATERING PROVISIONS,20/09/2017,6497064963,1.45,W M MORRISON PLC
OXFORDSHIRE CC,"CHILDRENS, YOUNG PEOPLE AND FAMILIES",CNTL EARLY HELP-RHIL,CATERING PROVISIONS,22/11/2017,6736518209,1.46,ASDA SUPERSTORE
OXFORDSHIRE CC,"CHILDRENS, YOUNG PEOPLE AND FAMILIES",EYNSHAM,CATERING PROVISIONS,22/11/2017,6736518081,1.47,CO-OPERATIVE FOOD
OXFORDSHIRE CC,"CHILDRENS, YOUNG PEOPLE AND FAMILIES","	MANAGEMENT & ADMIN",CATERING PROVISIONS,23/01/2018,6931298577,1.47,CO-OPERATIVE FOOD
OXFORDSHIRE CC,"CHILDRENS, YOUNG PEOPLE AND FAMILIES","	ANTI-BULLYING",CATERING PROVISIONS,06/03/2018,7092184849,1.47,CO-OPERATIVE FOOD
OXFORDSHIRE CC,"CHILDRENS, YOUNG PEOPLE AND FAMILIES",EYNSHAM,CATERING PROVISIONS,07/03/2018,7096171545,1.47,CO-OPERATIVE FOOD
OXFORDSHIRE CC,"CHILDRENS, YOUNG PEOPLE AND FAMILIES",THAME E&A HOME,CATERING PROVISIONS,17/04/2017,5965992013,1.48,WAITROSE 206
OXFORDSHIRE CC,"CHILDRENS, YOUNG PEOPLE AND FAMILIES",WITNEY,CATERING PROVISIONS,25/07/2017,6305705671,1.48,SAINSBURYS SACAT 0632
OXFORDSHIRE CC,"CHILDRENS, YOUNG PEOPLE AND FAMILIES",THAME E&A HOME,CATERING PROVISIONS,03/08/2017,6337100189,1.48,WAITROSE 206
OXFORDSHIRE CC,"CHILDRENS, YOUNG PEOPLE AND FAMILIES",NTH EARLY HELP-BNRBY,MATERIALS,21/09/2017,6501548213,1.48,AMAZON.CO.UK
OXFORDSHIRE CC,SOCIAL AND COMMUNITY SERVICES,LOOKED AFTER NORTH,CATERING,10/04/2017,5945580907,1.49,MCDONALDS
OXFORDSHIRE CC,"CHILDRENS, YOUNG PEOPLE AND FAMILIES",EYNSHAM,VEHICLE FUEL,15/05/2017,6063427209,1.49,TESCO PFS 2488
OXFORDSHIRE CC,"CHILDRENS, YOUNG PEOPLE AND FAMILIES",CNTL ERLY HELP-BBLEY,"BOOKS, DVDS AND CDS",14/08/2017,6369352379,1.49,AMAZON UK MARKETPLACE
OXFORDSHIRE CC,"CHILDRENS, YOUNG PEOPLE AND FAMILIES",WITNEY,VEHICLE FUEL,06/10/2017,6560150991,1.49,TESCO PFS 3418
OXFORDSHIRE CC,"CHILDRENS, YOUNG PEOPLE AND FAMILIES",THAME E&A HOME,CATERING PROVISIONS,03/04/2017,5923480953,1.5,CO-OPERATIVE FOOD
OXFORDSHIRE CC,"CHILDRENS, YOUNG PEOPLE AND FAMILIES",EYNSHAM,OTHER SERVICES,17/04/2017,5965992321,1.5,CASTLE QUAY
OXFORDSHIRE CC,"CHILDRENS, YOUNG PEOPLE AND FAMILIES","	40 THE MOORS",CATERING PROVISIONS,01/05/2017,6012635519,1.5,TESCO STORES 2788
OXFORDSHIRE CC,"CHILDRENS, YOUNG PEOPLE AND FAMILIES","	40 THE MOORS",CATERING PROVISIONS,16/05/2017,6068452525,1.5,NYX LRS
OXFORDSHIRE CC,"CHILDRENS, YOUNG PEOPLE AND FAMILIES","	MUSIC UNALLOCABLE",POSTAGE AND DELIVERY,18/05/2017,6077630487,1.5,ROYAL MAIL CHARGES
OXFORDSHIRE CC,"CHILDRENS, YOUNG PEOPLE AND FAMILIES","	RIVERSIDE CENTRE",CATERING PROVISIONS,23/05/2017,6095486083,1.5,CO-OPERATIVE FOOD
OXFORDSHIRE CC,"CHILDRENS, YOUNG PEOPLE AND FAMILIES","	LEAVING CARE NORTH",OTHER EXPENSES,25/05/2017,6103291657,1.5,W M MORRISON PLC
OXFORDSHIRE CC,"CHILDRENS, YOUNG PEOPLE AND FAMILIES","	LEAVING CARE NORTH",OTHER SERVICES,06/06/2017,6139821929,1.5,NCP PARK PASS
OXFORDSHIRE CC,"CHILDRENS, YOUNG PEOPLE AND FAMILIES",EYNSHAM,CATERING PROVISIONS,07/06/2017,6143585465,1.5,CO-OPERATIVE FOOD
OXFORDSHIRE CC,SOCIAL AND COMMUNITY SERVICES,LOOKED AFTER NORTH,CATERING PROVISIONS,09/06/2017,6152782179,1.5,W M MORRISON PLC
OXFORDSHIRE CC,"CHILDRENS, YOUNG PEOPLE AND FAMILIES",EYNSHAM,OTHER SERVICES,09/06/2017,6152782193,1.5,NCP PARK PASS
OXFORDSHIRE CC,"CHILDRENS, YOUNG PEOPLE AND FAMILIES","	LOOKED AFTER SOUTH",OTHER EXPENSES,15/06/2017,6172489219,1.5,POUNDWORLD RETAIL
OXFORDSHIRE CC,"CHILDRENS, YOUNG PEOPLE AND FAMILIES","	LOOKED AFTER NORTH",CATERING PROVISIONS,19/06/2017,6183762883,1.5,SAINSBURYS 0632
OXFORDSHIRE CC,"CHILDRENS, YOUNG PEOPLE AND FAMILIES","	YOUNG CARERS WORKER",CATERING PROVISIONS,28/06/2017,6218937369,1.5,TESCO STORES 2990
OXFORDSHIRE CC,"CHILDRENS, YOUNG PEOPLE AND FAMILIES","	LEAVING CARE NORTH",CATERING PROVISIONS,30/06/2017,6228978301,1.5,SAINSBURYS 0631
OXFORDSHIRE CC,"CHILDRENS, YOUNG PEOPLE AND FAMILIES","	MALTFIELD HOUSE",OTHER SERVICES,03/07/2017,6234459443,1.5,NCP PARK PASS
OXFORDSHIRE CC,SOCIAL AND COMMUNITY SERVICES,LOOKED AFTER NORTH,CATERING PROVISIONS,06/07/2017,6288218555,1.5,SAINSBURYS SACAT 0642
OXFORDSHIRE CC,"CHILDRENS, YOUNG PEOPLE AND FAMILIES","	FAMILY & PLACEMENT",POSTAGE AND DELIVERY,20/07/2017,6289082403,1.5,ROYAL MAIL CHARGES
OXFORDSHIRE CC,"CHILDRENS, YOUNG PEOPLE AND FAMILIES","	MALTFIELD HOUSE",FURNITURE,08/08/2017,6352414563,1.5,AMAZON UK MARKETPLACE
OXFORDSHIRE CC,"CHILDRENS, YOUNG PEOPLE AND FAMILIES","	LOOKED AFTER NORTH",VEHICLE EQUIPMENT AND EXPENSES - OTHER,02/10/2017,6539725035,1.5,APCOA
OXFORDSHIRE CC,"CHILDRENS, YOUNG PEOPLE AND FAMILIES",DIDCOT MOVE-ON HOME,CATERING PROVISIONS,04/10/2017,6550346799,1.5,SAINSBURYS SACAT 2067
OXFORDSHIRE CC,SOCIAL AND COMMUNITY SERVICES,LOOKED AFTER NORTH,CATERING PROVISIONS,13/10/2017,6585342331,1.5,TESCO STORE 2994
OXFORDSHIRE CC,SOCIAL AND COMMUNITY SERVICES,LOOKED AFTER NORTH,CATERING PROVISIONS,13/10/2017,6585342329,1.5,TESCO STORE 2994
OXFORDSHIRE CC,"CHILDRENS, YOUNG PEOPLE AND FAMILIES","	LEAVING CARE NORTH",OTHER SERVICES,18/10/2017,6602235449,1.5,NCP PARK PASS
OXFORDSHIRE CC,"CHILDRENS, YOUNG PEOPLE AND FAMILIES",NORTH FSS- BANBURY,POSTAGE AND DELIVERY,27/10/2017,6638958607,1.5,ROYAL MAIL CHARGES
OXFORDSHIRE CC,"CHILDRENS, YOUNG PEOPLE AND FAMILIES",THAME E&A HOME,CATERING PROVISIONS,30/10/2017,6644531401,1.5,CO-OPERATIVE FOOD
OXFORDSHIRE CC,"CHILDRENS, YOUNG PEOPLE AND FAMILIES","	40 THE MOORS",CATERING PROVISIONS,30/10/2017,6644531303,1.5,SAINSBURYS SACAT (2243
OXFORDSHIRE CC,"CHILDRENS, YOUNG PEOPLE AND FAMILIES","	LEAVING CARE NORTH",CATERING PROVISIONS,03/11/2017,6663948887,1.5,TESCO STORES-2008
OXFORDSHIRE CC,ENVIRONMENT AND ECONOMY,"	CITY DEAL SKILLS",CATERING PROVISIONS,06/12/2017,6783025881,1.5,MARKS&SPENCER PLC
OXFORDSHIRE CC,"CHILDRENS, YOUNG PEOPLE AND FAMILIES",WITNEY,CATERING PROVISIONS,18/12/2017,6828696411,1.5,TESCO-STORES 2499
OXFORDSHIRE CC,"CHILDRENS, YOUNG PEOPLE AND FAMILIES","	LEAVING CARE NORTH",OTHER EXPENSES,18/12/2017,6828695769,1.5,CO-OPERATIVE FOOD
OXFORDSHIRE CC,"CHILDRENS, YOUNG PEOPLE AND FAMILIES",DIDCOT MOVE-ON HOME,MATERIALS,21/12/2017,6841928647,1.5,WILKO RETAIL LIMIT
OXFORDSHIRE CC,"CHILDRENS, YOUNG PEOPLE AND FAMILIES","	LOOKED AFTER NORTH",CATERING PROVISIONS,28/12/2017,6856582861,1.5,W M MORRISON PLC
OXFORDSHIRE CC,"CHILDRENS, YOUNG PEOPLE AND FAMILIES",THAME E&A HOME,CATERING,08/01/2018,6876281043,1.5,SELECTA UK GBP
OXFORDSHIRE CC,"CHILDRENS, YOUNG PEOPLE AND FAMILIES",THAME E&A HOME,CATERING,08/01/2018,6876281037,1.5,SELECTA UK GBP
OXFORDSHIRE CC,"CHILDRENS, YOUNG PEOPLE AND FAMILIES",THAME E&A HOME,OTHER SERVICES,25/01/2018,6939452925,1.5,"THE ORACLE CAR PARK, R"
OXFORDSHIRE CC,SOCIAL AND COMMUNITY SERVICES,"	MTFC",CATERING PROVISIONS,31/01/2018,6961643833,1.5,SAINSBURYS SACAT 0600
OXFORDSHIRE CC,"CHILDRENS, YOUNG PEOPLE AND FAMILIES","	MALTFIELD HOUSE",CATERING PROVISIONS,02/02/2018,6971812597,1.5,SAINSBURYS (2305)
OXFORDSHIRE CC,"CHILDRENS, YOUNG PEOPLE AND FAMILIES","	LEAVING CARE CITY 1",POSTAGE AND DELIVERY,05/02/2018,6977913189,1.5,POST OFFICE COUNTER
OXFORDSHIRE CC,"CHILDRENS, YOUNG PEOPLE AND FAMILIES",NTH EARLY HELP-BNRBY,POSTAGE AND DELIVERY,08/02/2018,6993291161,1.5,ROYAL MAIL CHARGES
OXFORDSHIRE CC,"CHILDRENS, YOUNG PEOPLE AND FAMILIES","	LEAVING CARE NORTH",VEHICLE FUEL,19/02/2018,7030642351,1.5,TESCO PFS 3418
OXFORDSHIRE CC,"CHILDRENS, YOUNG PEOPLE AND FAMILIES","	MALTFIELD HOUSE",CATERING PROVISIONS,22/02/2018,7044893227,1.5,NYX VENDING SOLUTIONS
OXFORDSHIRE CC,"CHILDRENS, YOUNG PEOPLE AND FAMILIES",THAME E&A HOME,CATERING PROVISIONS,23/02/2018,7050182089,1.5,SAINSBURYS SACAT 2096
OXFORDSHIRE CC,"CHILDRENS, YOUNG PEOPLE AND FAMILIES",ATV ADOPTION WOODLEY,POSTAGE AND DELIVERY,26/02/2018,7056509469,1.5,ROYAL MAIL CHARGES
OXFORDSHIRE CC,"CHILDRENS, YOUNG PEOPLE AND FAMILIES",THAME E&A HOME,OTHER EMPLOYEE EXPENSES,21/03/2018,7151240355,1.5,3C_ DTZ EDEN SHOPPING
OXFORDSHIRE CC,"CHILDRENS, YOUNG PEOPLE AND FAMILIES",THAME E&A HOME,POSTAGE AND DELIVERY,10/01/2018,6886907827,1.52,POST OFFICE COUNTER
OXFORDSHIRE CC,"CHILDRENS, YOUNG PEOPLE AND FAMILIES","	MALTFIELD HOUSE",CATERING,03/04/2017,5923481275,1.55,COSTA COFFEE
OXFORDSHIRE CC,"CHILDRENS, YOUNG PEOPLE AND FAMILIES","	NCS",CATERING PROVISIONS,20/09/2017,6497065015,1.55,WAITROSE 211
OXFORDSHIRE CC,"CHILDRENS, YOUNG PEOPLE AND FAMILIES","	FAMILY SUPPORT CITY3",CATERING PROVISIONS,13/10/2017,6585342345,1.55,SAINSBURYS 0600
OXFORDSHIRE CC,"CHILDRENS, YOUNG PEOPLE AND FAMILIES","	LOOKED AFTER NORTH",VEHICLE EQUIPMENT AND EXPENSES - OTHER,16/10/2017,6591417661,1.55,RINGGO PARKING
OXFORDSHIRE CC,"CHILDRENS, YOUNG PEOPLE AND FAMILIES","	FAMILY SUPPORT CITY3",CATERING PROVISIONS,03/11/2017,6663949045,1.55,SAINSBURYS 0600
OXFORDSHIRE CC,"CHILDRENS, YOUNG PEOPLE AND FAMILIES",THAME E&A HOME,CATERING,22/12/2017,6845730333,1.55,COSTA TEMPLAR SQUARE O
OXFORDSHIRE CC,"CHILDRENS, YOUNG PEOPLE AND FAMILIES",EYNSHAM,CATERING PROVISIONS,10/07/2017,6251928133,1.57,CO-OPERATIVE FOOD
OXFORDSHIRE CC,"CHILDRENS, YOUNG PEOPLE AND FAMILIES",NTH EARLY HELP-WITNY,"BOOKS, DVDS AND CDS",15/02/2018,7019987691,1.57,AMAZON UK MARKETPLACE
OXFORDSHIRE CC,"CHILDRENS, YOUNG PEOPLE AND FAMILIES","	MALTFIELD HOUSE",CATERING PROVISIONS,08/05/2017,6075348589,1.58,CO-OP GROUP 350035
OXFORDSHIRE CC,"CHILDRENS, YOUNG PEOPLE AND FAMILIES",EYNSHAM,POSTAGE AND DELIVERY,01/12/2017,6765599499,1.58,POST OFFICE COUNTER
OXFORDSHIRE CC,SOCIAL AND COMMUNITY SERVICES,"	MTFC",CATERING PROVISIONS,09/01/2018,6881430757,1.58,CO-OP GROUP 070698
OXFORDSHIRE CC,SOCIAL AND COMMUNITY SERVICES,"	MTFC",CATERING PROVISIONS,11/04/2017,5950650785,1.59,WAITROSE 153
OXFORDSHIRE CC,SOCIAL AND COMMUNITY SERVICES,LEAVING CARE NORTH,MATERIALS,07/07/2017,6247617573,1.59,CARD FACTORY
OXFORDSHIRE CC,"CHILDRENS, YOUNG PEOPLE AND FAMILIES","	YOUNG CARERS WORKER",MATERIALS,10/04/2017,5945580537,1.6,WH SMITH
OXFORDSHIRE CC,"CHILDRENS, YOUNG PEOPLE AND FAMILIES",KINGFISHER,OTHER TRANSPORT ARRANGEMENTS,09/08/2017,6355707535,1.6,CHERWELL DISTRICT COUN
OXFORDSHIRE CC,"CHILDRENS, YOUNG PEOPLE AND FAMILIES","	40 THE MOORS",MATERIALS,30/08/2017,6424871061,1.6,ACE TACKLE & BAIT
OXFORDSHIRE CC,"CHILDRENS, YOUNG PEOPLE AND FAMILIES",EYNSHAM,OTHER SERVICES,20/09/2017,6497064961,1.6,CHERWELL DC CAR PARK
OXFORDSHIRE CC,"CHILDRENS, YOUNG PEOPLE AND FAMILIES",EYNSHAM,ENTERTAINMENT EXPENSES,26/09/2017,6519995787,1.6,WARWICK CASTLE
OXFORDSHIRE CC,"CHILDRENS, YOUNG PEOPLE AND FAMILIES","	MALTFIELD HOUSE",OTHER EXPENSES,03/10/2017,6546740527,1.6,WILKO RETAIL LIMIT
OXFORDSHIRE CC,"CHILDRENS, YOUNG PEOPLE AND FAMILIES","	MALTFIELD HOUSE",CATERING PROVISIONS,01/12/2017,6765599239,1.6,SAINSBURYS 0600
OXFORDSHIRE CC,"CHILDRENS, YOUNG PEOPLE AND FAMILIES","	LEAVING CARE NORTH",OTHER TRANSPORT ARRANGEMENTS,11/12/2017,6801276837,1.6,NCP PARK PASS
OXFORDSHIRE CC,"CHILDRENS, YOUNG PEOPLE AND FAMILIES",WITNEY,CATERING PROVISIONS,11/01/2018,6889405033,1.6,TESCO-STORES 2499
OXFORDSHIRE CC,"CHILDRENS, YOUNG PEOPLE AND FAMILIES","	LEAVING CARE NORTH",OTHER TRANSPORT ARRANGEMENTS,17/01/2018,6908846223,1.6,NCP PARK PASS
OXFORDSHIRE CC,"CHILDRENS, YOUNG PEOPLE AND FAMILIES","	LEAVING CARE NORTH",CATERING PROVISIONS,19/02/2018,7030642349,1.6,TESCO STORES 6167
OXFORDSHIRE CC,"CHILDRENS, YOUNG PEOPLE AND FAMILIES","	MALTFIELD HOUSE",CATERING,06/03/2018,7092184921,1.6,CO-OPERATIVE FOOD
OXFORDSHIRE CC,"CHILDRENS, YOUNG PEOPLE AND FAMILIES","	40 THE MOORS","BOOKS, DVDS AND CDS",12/03/2018,7113438381,1.6,AMAZON UK MARKETPLACE
OXFORDSHIRE CC,"CHILDRENS, YOUNG PEOPLE AND FAMILIES",WITNEY,CATERING PROVISIONS,06/07/2017,6288218641,1.64,CO-OP GROUP 070582
OXFORDSHIRE CC,SOCIAL AND COMMUNITY SERVICES,"	MTFC",CATERING PROVISIONS,03/05/2017,6024142309,1.65,SAINSBURYS 0600
OXFORDSHIRE CC,"CHILDRENS, YOUNG PEOPLE AND FAMILIES",WITNEY,VEHICLE FUEL,21/08/2017,6392318563,1.65,TESCO PFS 3418
OXFORDSHIRE CC,"CHILDRENS, YOUNG PEOPLE AND FAMILIES","	MALTFIELD HOUSE",CATERING PROVISIONS,30/11/2017,6759907115,1.65,SAINSBURYS SACAT 0631
OXFORDSHIRE CC,"CHILDRENS, YOUNG PEOPLE AND FAMILIES",EET SERVICE,"PUBLICITY, PROMOTIONS AND ADVERTISEMENT",01/09/2017,6433785935,1.66,FACEBK FDWNKCELB2
OXFORDSHIRE CC,"CHILDRENS, YOUNG PEOPLE AND FAMILIES",WITNEY,CATERING PROVISIONS,10/08/2017,6359614319,1.68,LIDL UK
OXFORDSHIRE CC,"CHILDRENS, YOUNG PEOPLE AND FAMILIES","	RIVERSIDE CENTRE",CATERING PROVISIONS,14/04/2017,5961357345,1.69,TESCO STORES 4377
OXFORDSHIRE CC,"CHILDRENS, YOUNG PEOPLE AND FAMILIES","	MALTFIELD HOUSE",CATERING,08/05/2017,6075348585,1.69,BP MILTON HEIGHTS S/SE
OXFORDSHIRE CC,"CHILDRENS, YOUNG PEOPLE AND FAMILIES",DIDCOT MOVE-ON HOME,CATERING PROVISIONS,18/12/2017,6828696137,1.69,CO-OP FOOD
OXFORDSHIRE CC,"CHILDRENS, YOUNG PEOPLE AND FAMILIES","	MALTFIELD HOUSE",CATERING,16/01/2018,6906020383,1.69,ROSIE'S
OXFORDSHIRE CC,SOCIAL AND COMMUNITY SERVICES,"	MTFC",OTHER SERVICES,30/03/2017,5908847559,1.7,CASTLE QUAY
OXFORDSHIRE CC,SOCIAL AND COMMUNITY SERVICES,"	MTFC",ENTERTAINMENT EXPENSES,30/03/2017,5908847567,1.7,SPICEBALL LEISURE CENT
OXFORDSHIRE CC,"CHILDRENS, YOUNG PEOPLE AND FAMILIES","	MALTFIELD HOUSE",PAYMENT TO GOVERNMENT DEPARTMENTS,19/04/2017,5974259177,1.7,PAYBYPHONE
OXFORDSHIRE CC,"CHILDRENS, YOUNG PEOPLE AND FAMILIES","	FAMILY SUPPORT CITY3",SUBSCRIPTIONS,20/04/2017,5978709187,1.7,UNION STREET CAR PARK
OXFORDSHIRE CC,"CHILDRENS, YOUNG PEOPLE AND FAMILIES",WITNEY,VEHICLE FUEL,24/04/2017,5989078367,1.7,TESCO PFS 3418
OXFORDSHIRE CC,"CHILDRENS, YOUNG PEOPLE AND FAMILIES",EYNSHAM,SUBSCRIPTIONS,26/04/2017,5998338007,1.7,UNION STREET CAR PARK
OXFORDSHIRE CC,"CHILDRENS, YOUNG PEOPLE AND FAMILIES","	MALTFIELD HOUSE",CATERING,03/05/2017,6024142523,1.7,COSTA
OXFORDSHIRE CC,"CHILDRENS, YOUNG PEOPLE AND FAMILIES",EYNSHAM,SUBSCRIPTIONS,15/05/2017,6063427461,1.7,UNION STREET CAR PARK
OXFORDSHIRE CC,"CHILDRENS, YOUNG PEOPLE AND FAMILIES","	FAMILY SUPPORT CITY3",SUBSCRIPTIONS,17/05/2017,6071896015,1.7,UNION STREET CAR PARK
OXFORDSHIRE CC,"CHILDRENS, YOUNG PEOPLE AND FAMILIES","	40 THE MOORS",OTHER SERVICES,05/06/2017,6133707751,1.7,HORIZON PARKING LTD
OXFORDSHIRE CC,SOCIAL AND COMMUNITY SERVICES,"	MTFC",OTHER SERVICES,08/06/2017,6147837393,1.7,CASTLE QUAY
OXFORDSHIRE CC,SOCIAL AND COMMUNITY SERVICES,"	MTFC",OTHER SERVICES,13/07/2017,6264516657,1.7,CASTLE QUAY
OXFORDSHIRE CC,"CHILDRENS, YOUNG PEOPLE AND FAMILIES",DIDCOT MOVE-ON HOME,SUBSCRIPTIONS,17/07/2017,6279911657,1.7,UNION STREET CAR PARK
OXFORDSHIRE CC,"CHILDRENS, YOUNG PEOPLE AND FAMILIES",EYNSHAM,SUBSCRIPTIONS,17/07/2017,6279911565,1.7,UNION STREET CAR PARK
OXFORDSHIRE CC,"CHILDRENS, YOUNG PEOPLE AND FAMILIES","	LEAVING CARE NORTH",SUBSCRIPTIONS,08/08/2017,6352414575,1.7,UNION STREET CAR PARK
OXFORDSHIRE CC,"CHILDRENS, YOUNG PEOPLE AND FAMILIES","	LEAVING CARE NORTH",SUBSCRIPTIONS,11/08/2017,6363974957,1.7,UNION STREET CAR PARK
OXFORDSHIRE CC,"CHILDRENS, YOUNG PEOPLE AND FAMILIES",THAME E&A HOME,OTHER SERVICES,21/08/2017,6392318635,1.7,"THE ORACLE CAR PARK, R"
OXFORDSHIRE CC,"CHILDRENS, YOUNG PEOPLE AND FAMILIES","	LEAVING CARE NORTH",SUBSCRIPTIONS,23/08/2017,6401242107,1.7,UNION STREET CAR PARK
OXFORDSHIRE CC,"CHILDRENS, YOUNG PEOPLE AND FAMILIES","	MALTFIELD HOUSE",SUBSCRIPTIONS,18/09/2017,6487237105,1.7,SUMMERTOWN CAR PARK
OXFORDSHIRE CC,"CHILDRENS, YOUNG PEOPLE AND FAMILIES","	LEAVING CARE NORTH",CATERING PROVISIONS,03/10/2017,6546740403,1.7,PELICAN ROUGE COFFEE S
OXFORDSHIRE CC,"CHILDRENS, YOUNG PEOPLE AND FAMILIES",EYNSHAM,SUBSCRIPTIONS,05/10/2017,6554878169,1.7,UNION STREET CAR PARK
OXFORDSHIRE CC,"CHILDRENS, YOUNG PEOPLE AND FAMILIES",EYNSHAM,CATERING PROVISIONS,11/10/2017,6576189337,1.7,CO-OPERATIVE FOOD
OXFORDSHIRE CC,"CHILDRENS, YOUNG PEOPLE AND FAMILIES",EYNSHAM,SUBSCRIPTIONS,25/10/2017,6628964539,1.7,SUMMERTOWN CAR PARK
OXFORDSHIRE CC,SOCIAL AND COMMUNITY SERVICES,"	MTFC",OTHER SERVICES,01/11/2017,6654816307,1.7,CASTLE QUAY
OXFORDSHIRE CC,"CHILDRENS, YOUNG PEOPLE AND FAMILIES",EYNSHAM,SUBSCRIPTIONS,02/11/2017,6659144753,1.7,UNION STREET CAR PARK
OXFORDSHIRE CC,"CHILDRENS, YOUNG PEOPLE AND FAMILIES","	LEAVING CARE NORTH",SUBSCRIPTIONS,10/11/2017,6690742087,1.7,UNION STREET CAR PARK
OXFORDSHIRE CC,"CHILDRENS, YOUNG PEOPLE AND FAMILIES",EYNSHAM,SUBSCRIPTIONS,13/11/2017,6697422019,1.7,UNION STREET CAR PARK
OXFORDSHIRE CC,"CHILDRENS, YOUNG PEOPLE AND FAMILIES",EYNSHAM,SUBSCRIPTIONS,04/12/2017,6775093833,1.7,UNION STREET CAR PARK
OXFORDSHIRE CC,SOCIAL AND COMMUNITY SERVICES,"	MTFC",OTHER SERVICES,06/12/2017,6783025783,1.7,CASTLE QUAY
OXFORDSHIRE CC,"CHILDRENS, YOUNG PEOPLE AND FAMILIES",THAME E&A HOME,CATERING PROVISIONS,11/12/2017,6801277529,1.7,SAINSBURYS SACAT 2096
OXFORDSHIRE CC,"CHILDRENS, YOUNG PEOPLE AND FAMILIES","	LEAVING CARE NORTH",OTHER TRANSPORT ARRANGEMENTS,14/12/2017,6816074931,1.7,UNION STREET CAR PARK
OXFORDSHIRE CC,"CHILDRENS, YOUNG PEOPLE AND FAMILIES","	MALTFIELD HOUSE",CATERING PROVISIONS,21/12/2017,6841928593,1.7,SAINSBURYS 0631
OXFORDSHIRE CC,"CHILDRENS, YOUNG PEOPLE AND FAMILIES","	LOOKED AFTER CITY 2",OTHER EXPENSES,26/12/2017,6849845463,1.7,PELICAN ROUGE COFFEE S
OXFORDSHIRE CC,"CHILDRENS, YOUNG PEOPLE AND FAMILIES","	LOOKED AFTER CITY 1",OTHER TRANSPORT ARRANGEMENTS,08/01/2018,6876281467,1.7,UNION STREET CAR PARK
OXFORDSHIRE CC,"CHILDRENS, YOUNG PEOPLE AND FAMILIES",EYNSHAM,OTHER SERVICES,25/01/2018,6939452769,1.7,HORIZON SAINSBURYS BIC
OXFORDSHIRE CC,"CHILDRENS, YOUNG PEOPLE AND FAMILIES","	LEAVING CARE CITY 2",SUBSCRIPTIONS,29/01/2018,6950843413,1.7,HEADINGTON CPARK
OXFORDSHIRE CC,"CHILDRENS, YOUNG PEOPLE AND FAMILIES",WITNEY,CATERING PROVISIONS,20/02/2018,7037087125,1.7,SAINSBURYS SACAT 0632
OXFORDSHIRE CC,"CHILDRENS, YOUNG PEOPLE AND FAMILIES",CNTL EARLY HELP-BRTN,CLOTHING AND UNIFORMS,20/02/2018,7037087005,1.7,AMAZON UK MARKETPLACE
OXFORDSHIRE CC,SOCIAL AND COMMUNITY SERVICES,"	MTFC",VEHICLE EQUIPMENT AND EXPENSES - OTHER,07/03/2018,7096171299,1.7,CAR PARK CHARGES
OXFORDSHIRE CC,SOCIAL AND COMMUNITY SERVICES,"	MTFC",VEHICLE EQUIPMENT AND EXPENSES - OTHER,21/03/2018,7151239765,1.7,CAR PARK CHARGES
OXFORDSHIRE CC,"CHILDRENS, YOUNG PEOPLE AND FAMILIES","	MALTFIELD HOUSE",CATERING,15/06/2017,6172489015,1.73,CO-OP GROUP 350035
OXFORDSHIRE CC,"CHILDRENS, YOUNG PEOPLE AND FAMILIES","	HOME SUPPORT",POSTAGE AND DELIVERY,02/02/2018,6971812811,1.74,THE POST OFFICE
OXFORDSHIRE CC,"CHILDRENS, YOUNG PEOPLE AND FAMILIES",DIDCOT MOVE-ON HOME,"BOOKS, DVDS AND CDS",31/03/2017,5914890247,1.75,AMAZON UK MARKETPLACE
OXFORDSHIRE CC,"CHILDRENS, YOUNG PEOPLE AND FAMILIES",EYNSHAM,CATERING PROVISIONS,18/04/2017,5971646297,1.75,TESCO STORES 2994
OXFORDSHIRE CC,"CHILDRENS, YOUNG PEOPLE AND FAMILIES","	LEAVING CARE NORTH",CATERING PROVISIONS,28/04/2017,6010454123,1.75,W M MORRISON PLC
OXFORDSHIRE CC,"CHILDRENS, YOUNG PEOPLE AND FAMILIES",CNTL EARLY HELP-RHIL,CATERING PROVISIONS,25/05/2017,6103291313,1.75,SAINSBURYS (2305)
OXFORDSHIRE CC,"CHILDRENS, YOUNG PEOPLE AND FAMILIES","	YOUNG CARERS WORKER",MATERIALS,02/06/2017,6129127181,1.75,WILKO RETAIL LIMIT
OXFORDSHIRE CC,"CHILDRENS, YOUNG PEOPLE AND FAMILIES","	LOOKED AFTER CITY 2",MATERIALS,13/06/2017,6165027617,1.75,WILKO RETAIL LIMIT
OXFORDSHIRE CC,"CHILDRENS, YOUNG PEOPLE AND FAMILIES",CNTL EARLY HELP-RHIL,CATERING PROVISIONS,07/07/2017,6247617531,1.75,SAINSBURYS SAC2305SAC
OXFORDSHIRE CC,"CHILDRENS, YOUNG PEOPLE AND FAMILIES","	FAMILY SUPPORT S'TH2",OTHER TRANSPORT ARRANGEMENTS,19/07/2017,6284350457,1.75,WWW.WIGHTLINK.CO.UK
OXFORDSHIRE CC,"CHILDRENS, YOUNG PEOPLE AND FAMILIES",DIDCOT MOVE-ON HOME,CATERING PROVISIONS,02/10/2017,6539724911,1.75,SAINSBURYS SACAT 2067
OXFORDSHIRE CC,"CHILDRENS, YOUNG PEOPLE AND FAMILIES",CNTL EARLY HELP-BRTN,POSTAGE AND DELIVERY,06/10/2017,6560150861,1.75,POST OFFICE COUNTER
OXFORDSHIRE CC,"CHILDRENS, YOUNG PEOPLE AND FAMILIES",EYNSHAM,POSTAGE AND DELIVERY,19/10/2017,6606800093,1.75,THE POST OFFICE
OXFORDSHIRE CC,"CHILDRENS, YOUNG PEOPLE AND FAMILIES",THAME E&A HOME,VEHICLE FUEL,02/11/2017,6659144825,1.75,THAME BP SF CONNECT
OXFORDSHIRE CC,"CHILDRENS, YOUNG PEOPLE AND FAMILIES","	LEAVING CARE CITY 1",POSTAGE AND DELIVERY,14/12/2017,6816074877,1.75,POST OFFICE COUNTER
OXFORDSHIRE CC,"CHILDRENS, YOUNG PEOPLE AND FAMILIES",CNTL EARLY HELP-BRTN,POSTAGE AND DELIVERY,23/01/2018,6931298519,1.75,THE POST OFFICE
OXFORDSHIRE CC,"CHILDRENS, YOUNG PEOPLE AND FAMILIES",THAME E&A HOME,MATERIALS,25/01/2018,6939452321,1.75,WILKO RETAIL LIMIT
OXFORDSHIRE CC,"CHILDRENS, YOUNG PEOPLE AND FAMILIES","	LEAVING CARE CITY 1",POSTAGE AND DELIVERY,29/01/2018,6950843685,1.75,POST OFFICE COUNTER
OXFORDSHIRE CC,"CHILDRENS, YOUNG PEOPLE AND FAMILIES","	LEAVING CARE CITY 1",POSTAGE AND DELIVERY,16/02/2018,7024736607,1.75,POST OFFICE COUNTER
OXFORDSHIRE CC,"CHILDRENS, YOUNG PEOPLE AND FAMILIES","	RESIDENTIAL STRATEGY",POSTAGE AND DELIVERY,28/02/2018,7067704981,1.75,POST OFFICE COUNTER
OXFORDSHIRE CC,"CHILDRENS, YOUNG PEOPLE AND FAMILIES","	LOOKED AFTER CITY 2",POSTAGE AND DELIVERY,07/03/2018,7096170791,1.75,POST OFFICE COUNTER
OXFORDSHIRE CC,"CHILDRENS, YOUNG PEOPLE AND FAMILIES",FAMILY SUPPORT 2,POSTAGE AND DELIVERY,21/03/2018,7151240217,1.75,POST OFFICE COUNTER
OXFORDSHIRE CC,SOCIAL AND COMMUNITY SERVICES,"	MTFC",CATERING PROVISIONS,06/04/2017,5933827373,1.76,TESCO STORES 6338
OXFORDSHIRE CC,"CHILDRENS, YOUNG PEOPLE AND FAMILIES","	40 THE MOORS",CATERING PROVISIONS,03/05/2017,6024142455,1.78,CO-OPERATIVE FOOD
OXFORDSHIRE CC,"CHILDRENS, YOUNG PEOPLE AND FAMILIES","	40 THE MOORS",CATERING PROVISIONS,12/06/2017,6159014243,1.78,CO-OPERATIVE FOOD
OXFORDSHIRE CC,"CHILDRENS, YOUNG PEOPLE AND FAMILIES","	NCS",CATERING PROVISIONS,19/06/2017,6183762759,1.78,ALDI
OXFORDSHIRE CC,"CHILDRENS, YOUNG PEOPLE AND FAMILIES",THAME E&A HOME,VEHICLE FUEL,02/11/2017,6659144819,1.78,THAME BP SF CONNECT
OXFORDSHIRE CC,SOCIAL AND COMMUNITY SERVICES,"	SHARED LIVES",OTHER EXPENSES,18/12/2017,6828696347,1.78,CARD FACTORY
OXFORDSHIRE CC,"CHILDRENS, YOUNG PEOPLE AND FAMILIES",WITNEY,MATERIALS,19/12/2017,6834158855,1.78,CARD FACTORY
OXFORDSHIRE CC,SOCIAL AND COMMUNITY SERVICES,"	MTFC",CATERING PROVISIONS,16/01/2018,6906020189,1.78,CO-OP GROUP 070698
OXFORDSHIRE CC,SOCIAL AND COMMUNITY SERVICES,"	MTFC",CATERING PROVISIONS,30/01/2018,6958138137,1.78,CO-OP GROUP 070698
OXFORDSHIRE CC,"CHILDRENS, YOUNG PEOPLE AND FAMILIES",UASC 16&17,OTHER EXPENSES,12/04/2017,5953971059,1.79,CO-OPERATIVE FOOD
OXFORDSHIRE CC,"CHILDRENS, YOUNG PEOPLE AND FAMILIES","	LEAVING CARE NORTH",OTHER EXPENSES,25/05/2017,6103291375,1.79,CARD FACTORY
OXFORDSHIRE CC,"CHILDRENS, YOUNG PEOPLE AND FAMILIES","	MALTFIELD HOUSE",CATERING,29/05/2017,6113158569,1.79,WAITROSE 479
OXFORDSHIRE CC,"CHILDRENS, YOUNG PEOPLE AND FAMILIES","	LOOKED AFTER NORTH",CATERING PROVISIONS,30/06/2017,6228978931,1.79,SPAR DIDCOT PARKWAY ST
OXFORDSHIRE CC,"CHILDRENS, YOUNG PEOPLE AND FAMILIES","	YOUNG CARERS WORKER",CATERING,09/08/2017,6355707585,1.79,MCDONALDS
OXFORDSHIRE CC,"CHILDRENS, YOUNG PEOPLE AND FAMILIES",CNTL EARLY HELP-BRTN,VEHICLE FUEL,06/10/2017,6560150957,1.79,BP CANNON POOL S/SERVE
OXFORDSHIRE CC,"CHILDRENS, YOUNG PEOPLE AND FAMILIES",CNTL EARLY HELP-BRTN,VEHICLE FUEL,17/11/2017,6719335897,1.79,TESCO PFS 3418
OXFORDSHIRE CC,"CHILDRENS, YOUNG PEOPLE AND FAMILIES","	RIVERSIDE CENTRE",CATERING PROVISIONS,05/12/2017,6778869957,1.79,WAITROSE 797
OXFORDSHIRE CC,"CHILDRENS, YOUNG PEOPLE AND FAMILIES",EYNSHAM,CATERING PROVISIONS,16/01/2018,6906020599,1.79,CO-OPERATIVE FOOD
OXFORDSHIRE CC,"CHILDRENS, YOUNG PEOPLE AND FAMILIES",EYNSHAM,SUBSCRIPTIONS,10/04/2017,5945580963,1.8,HEADINGTON CPARK
OXFORDSHIRE CC,"CHILDRENS, YOUNG PEOPLE AND FAMILIES","	40 THE MOORS",OTHER SERVICES,02/05/2017,6020755741,1.8,DTZ-MOUNT PROPERTY LTD
OXFORDSHIRE CC,"CHILDRENS, YOUNG PEOPLE AND FAMILIES",EYNSHAM,CATERING PROVISIONS,15/05/2017,6063427617,1.8,CO-OPERATIVE FOOD
OXFORDSHIRE CC,ENVIRONMENT AND ECONOMY,"	MUSEUM DEV OFFICER",CATERING PROVISIONS,18/05/2017,6077630725,1.8,SAINSBURYS LOC4049
OXFORDSHIRE CC,"CHILDRENS, YOUNG PEOPLE AND FAMILIES",EYNSHAM,SUBSCRIPTIONS,22/05/2017,6089657567,1.8,HEADINGTON CPARK
OXFORDSHIRE CC,"CHILDRENS, YOUNG PEOPLE AND FAMILIES",CNTL EARLY HELP-BRTN,CATERING PROVISIONS,06/06/2017,6139822055,1.8,SAINSBURYS SACAT 0631
OXFORDSHIRE CC,"CHILDRENS, YOUNG PEOPLE AND FAMILIES",EYNSHAM,SUBSCRIPTIONS,12/07/2017,6260484649,1.8,HEADINGTON CPARK
OXFORDSHIRE CC,"CHILDRENS, YOUNG PEOPLE AND FAMILIES",THAME E&A HOME,CATERING PROVISIONS,24/07/2017,6298965071,1.8,SAINSBURYS 2096
OXFORDSHIRE CC,SOCIAL AND COMMUNITY SERVICES,LOOKED AFTER NORTH,HARDWARE AND CROCKERY,14/09/2017,6475189441,1.8,NAILSWORTH GARDEN
OXFORDSHIRE CC,"CHILDRENS, YOUNG PEOPLE AND FAMILIES",EYNSHAM,SUBSCRIPTIONS,27/09/2017,6524049465,1.8,HEADINGTON CPARK
OXFORDSHIRE CC,"CHILDRENS, YOUNG PEOPLE AND FAMILIES",EYNSHAM,SUBSCRIPTIONS,28/09/2017,6531719239,1.8,HEADINGTON CPARK
OXFORDSHIRE CC,"CHILDRENS, YOUNG PEOPLE AND FAMILIES","	YOUNG CARERS WORKER",SUBSCRIPTIONS,18/10/2017,6602235723,1.8,HEADINGTON CPARK
OXFORDSHIRE CC,"CHILDRENS, YOUNG PEOPLE AND FAMILIES",EYNSHAM,FURNITURE,30/10/2017,6644531475,1.8,DUNELM LTD
OXFORDSHIRE CC,"CHILDRENS, YOUNG PEOPLE AND FAMILIES",THAME E&A HOME,CATERING PROVISIONS,02/11/2017,6659144667,1.8,SAINSBURYS SACAT 2096
OXFORDSHIRE CC,"CHILDRENS, YOUNG PEOPLE AND FAMILIES","	YOUNG CARERS WORKER",SUBSCRIPTIONS,03/11/2017,6663948989,1.8,HEADINGTON CPARK
OXFORDSHIRE CC,"CHILDRENS, YOUNG PEOPLE AND FAMILIES","	RIVERSIDE CENTRE",VEHICLES REPAIRS AND MAINTENANCE,08/11/2017,6681187897,1.8,MOTORIST DISCOUNT CENT
OXFORDSHIRE CC,"CHILDRENS, YOUNG PEOPLE AND FAMILIES","	LOOKED AFTER SOUTH",CATERING PROVISIONS,10/11/2017,6690742291,1.8,CO-OPERATIVE FOOD
OXFORDSHIRE CC,"CHILDRENS, YOUNG PEOPLE AND FAMILIES",DIDCOT MOVE-ON HOME,VEHICLE FUEL,22/11/2017,6736518113,1.8,SHELL GEORGETN 503
OXFORDSHIRE CC,ENVIRONMENT AND ECONOMY,EET SERVICE,CATERING PROVISIONS,06/02/2018,6984829723,1.8,CO-OPERATIVE FOOD
OXFORDSHIRE CC,"CHILDRENS, YOUNG PEOPLE AND FAMILIES",EYNSHAM,CATERING,26/02/2018,7056510307,1.8,LEAGUE OF FRNDS OF J R
OXFORDSHIRE CC,SOCIAL AND COMMUNITY SERVICES,"	MUSEUMS COLLECTIONS",MATERIALS,08/02/2018,6993291263,1.82,AMAZON SVCS EU-UK AMAZ
OXFORDSHIRE CC,"CHILDRENS, YOUNG PEOPLE AND FAMILIES","	YOUNG CARERS WORKER",CATERING PROVISIONS,13/04/2017,5958205487,1.85,TESCO STORES 2990
OXFORDSHIRE CC,"CHILDRENS, YOUNG PEOPLE AND FAMILIES","	YOUNG CARERS WORKER",CATERING PROVISIONS,15/06/2017,6172488975,1.85,MARKS&SPENCER PLC SF
OXFORDSHIRE CC,"CHILDRENS, YOUNG PEOPLE AND FAMILIES",THAME E&A HOME,CATERING,16/06/2017,6177857797,1.85,COSTA
OXFORDSHIRE CC,"CHILDRENS, YOUNG PEOPLE AND FAMILIES",DIDCOT MOVE-ON HOME,CATERING,17/07/2017,6279911677,1.85,GLOUCESTER SNORTH
OXFORDSHIRE CC,"CHILDRENS, YOUNG PEOPLE AND FAMILIES",EYNSHAM,MATERIALS,13/11/2017,6697421963,1.85,EYNSHAM EMPORIUM LTD
OXFORDSHIRE CC,"CHILDRENS, YOUNG PEOPLE AND FAMILIES",DIDCOT MOVE-ON HOME,CATERING PROVISIONS,29/01/2018,6950843643,1.85,SAINSBURYS SACAT 2067
OXFORDSHIRE CC,"CHILDRENS, YOUNG PEOPLE AND FAMILIES","	RIVERSIDE CENTRE",MATERIALS,30/01/2018,6958139095,1.85,TOOLSTATION LTD
OXFORDSHIRE CC,"CHILDRENS, YOUNG PEOPLE AND FAMILIES",THAME E&A HOME,CATERING PROVISIONS,15/03/2018,7129042255,1.85,TESCO STORES (4377)
OXFORDSHIRE CC,"CHILDRENS, YOUNG PEOPLE AND FAMILIES",NTH EARLY HELP-BNRBY,POSTAGE AND DELIVERY,02/03/2018,7078733127,1.86,POST OFFICE COUNTER
OXFORDSHIRE CC,"CHILDRENS, YOUNG PEOPLE AND FAMILIES","	RESIDENTIAL STRATEGY",CATERING PROVISIONS,29/03/2017,5904586119,1.87,CO-OPERATIVE FOOD
OXFORDSHIRE CC,CORPORATE CORE,"	COMMUNICATIONS","PUBLICITY, PROMOTIONS AND ADVERTISEMENT",01/09/2017,6433785931,1.87,FACEBK 3Y36FE69Z2
OXFORDSHIRE CC,"CHILDRENS, YOUNG PEOPLE AND FAMILIES","	MALTFIELD HOUSE",CATERING PROVISIONS,15/08/2017,6375221885,1.88,CO-OP GROUP 350035
OXFORDSHIRE CC,"CHILDRENS, YOUNG PEOPLE AND FAMILIES",EYNSHAM,CATERING PROVISIONS,25/07/2017,6305705807,1.89,CO-OPERATIVE FOOD
OXFORDSHIRE CC,"CHILDRENS, YOUNG PEOPLE AND FAMILIES",EYNSHAM,CATERING PROVISIONS,31/08/2017,6428780645,1.89,CO-OPERATIVE FOOD
OXFORDSHIRE CC,"CHILDRENS, YOUNG PEOPLE AND FAMILIES","	LEAVING CARE NORTH",MATERIALS,29/09/2017,6533412461,1.89,WH SMITH
OXFORDSHIRE CC,"CHILDRENS, YOUNG PEOPLE AND FAMILIES","	LOOKED AFTER CITY 2",MATERIALS,22/12/2017,6845730217,1.89,WH SMITH
OXFORDSHIRE CC,"CHILDRENS, YOUNG PEOPLE AND FAMILIES","	LEAVING CARE CITY 2",RESIDENTIAL ACTIVITIES,14/04/2017,5961357327,1.9,HEADINGTON CPARK
OXFORDSHIRE CC,"CHILDRENS, YOUNG PEOPLE AND FAMILIES","	LOOKED AFTER NORTH",OTHER EXPENSES,19/04/2017,5974259339,1.9,SAVOIR FARE LIMITED
OXFORDSHIRE CC,SOCIAL AND COMMUNITY SERVICES,"	MTFC",ENTERTAINMENT EXPENSES,11/05/2017,6051233901,1.9,SPICEBALL LEISURE CENT
OXFORDSHIRE CC,ENVIRONMENT AND ECONOMY,"	MUSEUM DEV OFFICER",OTHER SERVICES,30/06/2017,6228978791,1.9,APCOA HANBOROUGH ST
OXFORDSHIRE CC,"CHILDRENS, YOUNG PEOPLE AND FAMILIES","	LEAVING CARE NORTH",CATERING,06/07/2017,6288218371,1.9,GREGGS PLC
OXFORDSHIRE CC,"CHILDRENS, YOUNG PEOPLE AND FAMILIES","	LEAVING CARE NORTH",SUBSCRIPTIONS,18/07/2017,6281346455,1.9,CITY CAR PARKS
OXFORDSHIRE CC,"CHILDRENS, YOUNG PEOPLE AND FAMILIES","	40 THE MOORS",OTHER SERVICES,18/09/2017,6487236881,1.9,3C_ DTZ EDEN SHOPPING
OXFORDSHIRE CC,"CHILDRENS, YOUNG PEOPLE AND FAMILIES","	LEAVING CARE NORTH",OTHER EXPENSES,08/11/2017,6681187269,1.9,HEADINGTON CPARK
OXFORDSHIRE CC,"CHILDRENS, YOUNG PEOPLE AND FAMILIES","	FAMILY SUPPORT CITY3",SUBSCRIPTIONS,23/11/2017,6740618499,1.9,HEADINGTON CPARK
OXFORDSHIRE CC,"CHILDRENS, YOUNG PEOPLE AND FAMILIES",EYNSHAM,OTHER SERVICES,29/11/2017,6755445187,1.9,3C_ DTZ EDEN SHOPPING
OXFORDSHIRE CC,"CHILDRENS, YOUNG PEOPLE AND FAMILIES","	FAMILY SUPPORT CITY3",SUBSCRIPTIONS,08/12/2017,6792587075,1.9,HEADINGTON CPARK
OXFORDSHIRE CC,"CHILDRENS, YOUNG PEOPLE AND FAMILIES",EYNSHAM,CATERING PROVISIONS,11/12/2017,6801277665,1.9,DELTEYS SUPERMARKE
OXFORDSHIRE CC,"CHILDRENS, YOUNG PEOPLE AND FAMILIES","	LEAVING CARE CITY 2",SUBSCRIPTIONS,20/12/2017,6837336069,1.9,HEADINGTON CPARK
OXFORDSHIRE CC,"CHILDRENS, YOUNG PEOPLE AND FAMILIES","	LEAVING CARE CITY 2",OTHER TRANSPORT ARRANGEMENTS,22/12/2017,6845730201,1.9,HEADINGTON CPARK
OXFORDSHIRE CC,"CHILDRENS, YOUNG PEOPLE AND FAMILIES","	LEAVING CARE CITY 2",SUBSCRIPTIONS,12/01/2018,6893891323,1.9,HEADINGTON CPARK
OXFORDSHIRE CC,"CHILDRENS, YOUNG PEOPLE AND FAMILIES","	LEAVING CARE CITY 1",CATERING,15/01/2018,6929958827,1.9,CAFE LOCO TRADING
OXFORDSHIRE CC,"CHILDRENS, YOUNG PEOPLE AND FAMILIES",KINGFISHER,SUBSCRIPTIONS,25/01/2018,6939452791,1.9,CITY CAR PARKS
OXFORDSHIRE CC,"CHILDRENS, YOUNG PEOPLE AND FAMILIES",CNTL EARLY HELP-RHIL,CATERING PROVISIONS,16/02/2018,7024736545,1.9,SAINSBURYS SAC2305SAC
OXFORDSHIRE CC,"CHILDRENS, YOUNG PEOPLE AND FAMILIES",THAME E&A HOME,CATERING PROVISIONS,26/02/2018,7056509683,1.9,SAINSBURYS SACAT 2096
OXFORDSHIRE CC,"CHILDRENS, YOUNG PEOPLE AND FAMILIES","	CW ADOPT & FOST TEAM",,16/03/2018,7134191455,1.9,HANBOROUGH STN
OXFORDSHIRE CC,"CHILDRENS, YOUNG PEOPLE AND FAMILIES","	LOOKED AFTER CITY 2",CATERING,26/07/2017,6308858487,1.94,MCDONALDS
OXFORDSHIRE CC,"CHILDRENS, YOUNG PEOPLE AND FAMILIES",EYNSHAM,"BOOKS, DVDS AND CDS",09/01/2018,6881431327,1.94,AMAZON UK MARKETPLACE
OXFORDSHIRE CC,"CHILDRENS, YOUNG PEOPLE AND FAMILIES","	LOOKED AFTER SOUTH",OTHER EXPENSES,05/06/2017,6133707897,1.95,MILLETS FARM RESTAURAN
OXFORDSHIRE CC,"CHILDRENS, YOUNG PEOPLE AND FAMILIES","	LOOKED AFTER CITY 2",CATERING,21/06/2017,6192745907,1.95,GREGGS PLC
OXFORDSHIRE CC,"CHILDRENS, YOUNG PEOPLE AND FAMILIES","	LOOKED AFTER SOUTH",OTHER EXPENSES,24/07/2017,6298965377,1.95,MILLETS FARM RESTAURAN
OXFORDSHIRE CC,"CHILDRENS, YOUNG PEOPLE AND FAMILIES","	MALTFIELD HOUSE",CATERING,10/10/2017,6572732509,1.95,CO-OPERATIVE FOOD
OXFORDSHIRE CC,"CHILDRENS, YOUNG PEOPLE AND FAMILIES","	RIVERSIDE CENTRE",CATERING PROVISIONS,07/12/2017,6787494699,1.95,SAINSBURYS SACAT 0600
OXFORDSHIRE CC,"CHILDRENS, YOUNG PEOPLE AND FAMILIES","	LOOKED AFTER CITY 2",POSTAGE AND DELIVERY,21/12/2017,6841928575,1.95,THE POST OFFICE
OXFORDSHIRE CC,SOCIAL AND COMMUNITY SERVICES,"	MTFC",HARDWARE AND CROCKERY,22/02/2018,7044893169,1.95,FROSTS AT MILLETS
OXFORDSHIRE CC,SOCIAL AND COMMUNITY SERVICES,"	MTFC",HARDWARE AND CROCKERY,08/03/2018,7101044807,1.95,FROSTS AT MILLETS
OXFORDSHIRE CC,SOCIAL AND COMMUNITY SERVICES,CSS WITNEY,CATERING PROVISIONS,10/01/2018,6886908503,1.96,CO-OP GROUP 070582
OXFORDSHIRE CC,"CHILDRENS, YOUNG PEOPLE AND FAMILIES",NTH EARLY HELP-BNRBY,"SUPPLIES, STATIONERY AND MATERIALS",13/02/2018,7011489719,1.96,AMAZON UK MARKETPLACE
OXFORDSHIRE CC,SOCIAL AND COMMUNITY SERVICES,"	MTFC",CATERING,02/06/2017,6129127161,1.98,MCDONALDS
OXFORDSHIRE CC,"CHILDRENS, YOUNG PEOPLE AND FAMILIES",CNTL EARLY HELP-RHIL,CATERING PROVISIONS,06/06/2017,6139822141,1.98,ASDA SUPERSTORE
OXFORDSHIRE CC,"CHILDRENS, YOUNG PEOPLE AND FAMILIES","	LOOKED AFTER NORTH",CATERING,17/07/2017,6279911589,1.98,MCDONALDS
OXFORDSHIRE CC,"CHILDRENS, YOUNG PEOPLE AND FAMILIES",EYNSHAM,CATERING,21/08/2017,6392318497,1.98,MCDONALDS
OXFORDSHIRE CC,"CHILDRENS, YOUNG PEOPLE AND FAMILIES",EYNSHAM,CATERING PROVISIONS,15/09/2017,6480231113,1.98,SPAR
OXFORDSHIRE CC,"CHILDRENS, YOUNG PEOPLE AND FAMILIES","	EDM",CATERING PROVISIONS,20/10/2017,6612055665,1.98,ASDA SUPERSTORE
OXFORDSHIRE CC,"CHILDRENS, YOUNG PEOPLE AND FAMILIES","	LEAVING CARE NORTH",OTHER EXPENSES,11/12/2017,6801276829,1.98,CARD FACTORY
OXFORDSHIRE CC,"CHILDRENS, YOUNG PEOPLE AND FAMILIES",WITNEY,MATERIALS,18/12/2017,6828696329,1.98,CARD FACTORY
OXFORDSHIRE CC,"CHILDRENS, YOUNG PEOPLE AND FAMILIES","	MALTFIELD HOUSE",CATERING,09/01/2018,6881430925,1.98,B&M RETAIL
OXFORDSHIRE CC,"CHILDRENS, YOUNG PEOPLE AND FAMILIES",DIDCOT MOVE-ON HOME,CATERING PROVISIONS,29/01/2018,6950843653,1.98,CO-OP FOOD
OXFORDSHIRE CC,"CHILDRENS, YOUNG PEOPLE AND FAMILIES",EYNSHAM,MATERIALS,13/04/2017,5958205549,1.99,ROBERT DYAS HOLDNG LTD
OXFORDSHIRE CC,"CHILDRENS, YOUNG PEOPLE AND FAMILIES","	MALTFIELD HOUSE","BOOKS, DVDS AND CDS",24/05/2017,6099310013,1.99,AMAZON UK MARKETPLACE
OXFORDSHIRE CC,"CHILDRENS, YOUNG PEOPLE AND FAMILIES",WITNEY,VEHICLE FUEL,27/06/2017,6214535553,1.99,SHELL WITNEY
OXFORDSHIRE CC,"CHILDRENS, YOUNG PEOPLE AND FAMILIES",EYNSHAM,CATERING PROVISIONS,29/06/2017,6222938989,1.99,TESCO STORES 4480
OXFORDSHIRE CC,"CHILDRENS, YOUNG PEOPLE AND FAMILIES","	LOOKED AFTER NORTH",OTHER EXPENSES,25/08/2017,6409745991,1.99,KFC - STACEY BUSHES
OXFORDSHIRE CC,"CHILDRENS, YOUNG PEOPLE AND FAMILIES","	LOOKED AFTER NORTH",OTHER EXPENSES,06/09/2017,6447378755,1.99,KFC - STACEY BUSHES
OXFORDSHIRE CC,"CHILDRENS, YOUNG PEOPLE AND FAMILIES","	LOOKED AFTER NORTH",OTHER EXPENSES,03/10/2017,6546740931,1.99,KFC - STACEY BUSHES
OXFORDSHIRE CC,"CHILDRENS, YOUNG PEOPLE AND FAMILIES","	MALTFIELD HOUSE",CATERING,10/10/2017,6572732281,1.99,KFC TAMWORTH
OXFORDSHIRE CC,SOCIAL AND COMMUNITY SERVICES,LOOKED AFTER NORTH,CATERING PROVISIONS,23/10/2017,6618249945,1.99,TESCO STORE 2695
OXFORDSHIRE CC,"CHILDRENS, YOUNG PEOPLE AND FAMILIES","	NCS","PUBLICITY, PROMOTIONS AND ADVERTISEMENT",01/11/2017,6654816515,1.99,FACEBK 34AAWD22D2
OXFORDSHIRE CC,"CHILDRENS, YOUNG PEOPLE AND FAMILIES",CNTL ERLY HELP-BBLEY,"BOOKS, DVDS AND CDS",23/11/2017,6740618567,1.99,AMAZON SVCS EU-UK AMAZ
OXFORDSHIRE CC,"CHILDRENS, YOUNG PEOPLE AND FAMILIES","	40 THE MOORS",HARDWARE AND CROCKERY,30/11/2017,6759907311,1.99,OXFORD BUILDING SUPPLI
OXFORDSHIRE CC,"CHILDRENS, YOUNG PEOPLE AND FAMILIES","	LEAVING CARE NORTH",MATERIALS,04/12/2017,6775092541,1.99,CARD FACTORY
OXFORDSHIRE CC,SOCIAL AND COMMUNITY SERVICES,LOOKED AFTER NORTH,CATERING,07/12/2017,6787494935,1.99,KFC-SWINDON GREAT WEST
OXFORDSHIRE CC,"CHILDRENS, YOUNG PEOPLE AND FAMILIES","	LOOKED AFTER SOUTH",BIRTHDAY ALLOWANCE,13/12/2017,6810764501,1.99,WH SMITH
OXFORDSHIRE CC,"CHILDRENS, YOUNG PEOPLE AND FAMILIES","	MALTFIELD HOUSE",CATERING PROVISIONS,06/02/2018,6984829699,1.99,MARTIN MCCOLL
OXFORDSHIRE CC,SOCIAL AND COMMUNITY SERVICES,"	MUSEUMS COLLECTIONS",MATERIALS,08/02/2018,6993291257,1.99,AMAZON SVCS EU-UK AMAZ
OXFORDSHIRE CC,"CHILDRENS, YOUNG PEOPLE AND FAMILIES","	40 THE MOORS",CATERING PROVISIONS,06/03/2018,7092185185,1.99,CO-OPERATIVE FOOD
OXFORDSHIRE CC,"CHILDRENS, YOUNG PEOPLE AND FAMILIES","	RESIDENTIAL STRATEGY",VEHICLE FUEL,30/03/2017,5908847491,2,THAME BP SF CONNECT
OXFORDSHIRE CC,"CHILDRENS, YOUNG PEOPLE AND FAMILIES","	LOOKED AFTER SOUTH",BIRTHDAY ALLOWANCE,31/03/2017,5914890263,2,SAINSBURYS (2305)
OXFORDSHIRE CC,SOCIAL AND COMMUNITY SERVICES,LEAVING CARE NORTH,OTHER EXPENSES,06/04/2017,5933827361,2,ESSO BAYNARDS GN SSTN
OXFORDSHIRE CC,"CHILDRENS, YOUNG PEOPLE AND FAMILIES",DIDCOT MOVE-ON HOME,CATERING,07/04/2017,5938245445,2,GREGGS PLC
OXFORDSHIRE CC,"CHILDRENS, YOUNG PEOPLE AND FAMILIES",WITNEY,CATERING PROVISIONS,12/04/2017,5953971053,2,SPAR
OXFORDSHIRE CC,"CHILDRENS, YOUNG PEOPLE AND FAMILIES","	MUSIC UNALLOCABLE",POSTAGE AND DELIVERY,01/05/2017,6012635151,2,ROYAL MAIL CHARGES
OXFORDSHIRE CC,"CHILDRENS, YOUNG PEOPLE AND FAMILIES",WITNEY,CATERING PROVISIONS,04/05/2017,6075197767,2,MARKS&SPENCER PLC SACA
OXFORDSHIRE CC,ENVIRONMENT AND ECONOMY,"	LEP",STATIONERY,05/05/2017,6032327359,2,AMAZON UK MARKETPLACE
OXFORDSHIRE CC,"CHILDRENS, YOUNG PEOPLE AND FAMILIES",DIDCOT MOVE-ON HOME,CATERING PROVISIONS,09/05/2017,6075717827,2,SAINSBURYS 2067
OXFORDSHIRE CC,"CHILDRENS, YOUNG PEOPLE AND FAMILIES","	MALTFIELD HOUSE",CATERING PROVISIONS,15/05/2017,6063427051,2,SAINSBURYS SAC2305SAC
OXFORDSHIRE CC,"CHILDRENS, YOUNG PEOPLE AND FAMILIES","	ANTI-BULLYING",MATERIALS,22/05/2017,6089655787,2,THEWORKS.CO.UK
OXFORDSHIRE CC,CORPORATE CORE,"	CHAIRMANS ALLOWANCE","SUPPLIES, STATIONERY AND MATERIALS",29/05/2017,6113158635,2,MARKS&SPENCER PLC
OXFORDSHIRE CC,"CHILDRENS, YOUNG PEOPLE AND FAMILIES","	40 THE MOORS",CLOTHING AND UNIFORMS,01/06/2017,6146642431,2,PRIMARK 484
OXFORDSHIRE CC,"CHILDRENS, YOUNG PEOPLE AND FAMILIES",DIDCOT MOVE-ON HOME,MATERIALS,02/06/2017,6129127357,2,POUNDLAND
OXFORDSHIRE CC,"CHILDRENS, YOUNG PEOPLE AND FAMILIES","	LOOKED AFTER NORTH",CATERING PROVISIONS,07/06/2017,6143585401,2,CO-OPERATIVE FOOD
OXFORDSHIRE CC,SOCIAL AND COMMUNITY SERVICES,"	MTFC",HARDWARE AND CROCKERY,07/06/2017,6143585051,2,NOTCUTTS GARDEN CE
OXFORDSHIRE CC,"CHILDRENS, YOUNG PEOPLE AND FAMILIES",THAME E&A HOME,SUBSCRIPTIONS,08/06/2017,6147837783,2,OXFORD GOLF CENTRE
OXFORDSHIRE CC,"CHILDRENS, YOUNG PEOPLE AND FAMILIES",DIDCOT MOVE-ON HOME,CATERING PROVISIONS,08/06/2017,6147837715,2,SAINSBURYS SACAT 2067
OXFORDSHIRE CC,"CHILDRENS, YOUNG PEOPLE AND FAMILIES","	LOOKED AFTER CITY 2",PAYMENTS TO TRANSPORT OPERATORS,14/06/2017,6168399511,2,OXFORD PARKWAY SST
OXFORDSHIRE CC,"CHILDRENS, YOUNG PEOPLE AND FAMILIES",CNTL EARLY HELP-RHIL,MATERIALS,21/06/2017,6192745699,2,POUNDLAND LTD 1586
OXFORDSHIRE CC,"CHILDRENS, YOUNG PEOPLE AND FAMILIES","	LOOKED AFTER CITY 2",OTHER SERVICES,21/06/2017,6192745679,2,APCOA CONNECT - FGW
OXFORDSHIRE CC,"CHILDRENS, YOUNG PEOPLE AND FAMILIES","	MUSIC UNALLOCABLE",POSTAGE AND DELIVERY,22/06/2017,6197159211,2,ROYAL MAIL CHARGES
OXFORDSHIRE CC,"CHILDRENS, YOUNG PEOPLE AND FAMILIES",DIDCOT MOVE-ON HOME,CATERING PROVISIONS,23/06/2017,6202735535,2,SPAR
OXFORDSHIRE CC,"CHILDRENS, YOUNG PEOPLE AND FAMILIES",WITNEY,CATERING PROVISIONS,26/06/2017,6208907061,2,SAINSBURYS 0632
OXFORDSHIRE CC,"CHILDRENS, YOUNG PEOPLE AND FAMILIES",WITNEY,CATERING PROVISIONS,26/06/2017,6208907335,2,SAINSBURYS 0632
OXFORDSHIRE CC,"CHILDRENS, YOUNG PEOPLE AND FAMILIES","	MALTFIELD HOUSE",CATERING,30/06/2017,6228978625,2,SAINSBURYS SACAT 0600
OXFORDSHIRE CC,"CHILDRENS, YOUNG PEOPLE AND FAMILIES","	LOOKED AFTER CITY 2",PAYMENTS TO TRANSPORT OPERATORS,30/06/2017,6228978351,2,OXFORD PARKWAY SST
OXFORDSHIRE CC,"CHILDRENS, YOUNG PEOPLE AND FAMILIES","	LOOKED AFTER CITY 2",OTHER TRANSPORT ARRANGEMENTS,03/07/2017,6234458895,2,OXFORDSHIRE THORNHILL
OXFORDSHIRE CC,"CHILDRENS, YOUNG PEOPLE AND FAMILIES",THAME E&A HOME,CATERING PROVISIONS,05/07/2017,6241231683,2,CO-OPERATIVE FOOD
OXFORDSHIRE CC,SOCIAL AND COMMUNITY SERVICES,LOOKED AFTER NORTH,DRUGS AND MEDICAL SUPPLIES,05/07/2017,6241231969,2,BOOTS THE CHEMIST
OXFORDSHIRE CC,"CHILDRENS, YOUNG PEOPLE AND FAMILIES","	40 THE MOORS",CATERING PROVISIONS,06/07/2017,6288218547,2,TESCO STORES 2788
OXFORDSHIRE CC,"CHILDRENS, YOUNG PEOPLE AND FAMILIES","	LOOKED AFTER CITY 2",OTHER TRANSPORT ARRANGEMENTS,13/07/2017,6264516525,2,APCOA CONNECT - FGW
OXFORDSHIRE CC,SOCIAL AND COMMUNITY SERVICES,LEAVING CARE NORTH,CATERING PROVISIONS,13/07/2017,6264516631,2,MARKS&SPENCER PLC
OXFORDSHIRE CC,"CHILDRENS, YOUNG PEOPLE AND FAMILIES",NTH FAM SUPRT-BCSTR,CATERING PROVISIONS,18/07/2017,6281345831,2,SAINSBURYS (2243)
OXFORDSHIRE CC,"CHILDRENS, YOUNG PEOPLE AND FAMILIES","	LOOKED AFTER CITY 2",PAYMENTS TO TRANSPORT OPERATORS,18/07/2017,6281345753,2,OXFORD PARKWAY
OXFORDSHIRE CC,"CHILDRENS, YOUNG PEOPLE AND FAMILIES","	LOOKED AFTER CITY 2",OTHER TRANSPORT ARRANGEMENTS,19/07/2017,6284349641,2,OXFORDSHIRE THORNHILL
OXFORDSHIRE CC,"CHILDRENS, YOUNG PEOPLE AND FAMILIES","	LOOKED AFTER NORTH",PAYMENT TO GOVERNMENT DEPARTMENTS,21/07/2017,6293518229,2,CHERWELL DISTRICT COUN
OXFORDSHIRE CC,"CHILDRENS, YOUNG PEOPLE AND FAMILIES","	MALTFIELD HOUSE",CATERING,24/07/2017,6298965175,2,TESCO STORE 2994
OXFORDSHIRE CC,"CHILDRENS, YOUNG PEOPLE AND FAMILIES",DIDCOT MOVE-ON HOME,ENTERTAINMENT EXPENSES,24/07/2017,6298965241,2,CORNERSTONE
OXFORDSHIRE CC,"CHILDRENS, YOUNG PEOPLE AND FAMILIES","	YOUNG CARERS WORKER",MATERIALS,25/07/2017,6305705557,2,POUNDLAND
OXFORDSHIRE CC,"CHILDRENS, YOUNG PEOPLE AND FAMILIES","	LEAVING CARE NORTH",CATERING PROVISIONS,03/08/2017,6337100127,2,SPAR DIDCOT PARKWAY ST
OXFORDSHIRE CC,"CHILDRENS, YOUNG PEOPLE AND FAMILIES","	LOOKED AFTER CITY 2",OTHER SERVICES,04/08/2017,6342374367,2,OXFORDSHIRE THORNHILL
OXFORDSHIRE CC,SOCIAL AND COMMUNITY SERVICES,LOOKED AFTER NORTH,ENTERTAINMENT EXPENSES,09/08/2017,6355707631,2,LINK CENTRE
OXFORDSHIRE CC,"CHILDRENS, YOUNG PEOPLE AND FAMILIES","	MALTFIELD HOUSE",CATERING PROVISIONS,11/08/2017,6363975003,2,CO-OP GROUP 350087
OXFORDSHIRE CC,"CHILDRENS, YOUNG PEOPLE AND FAMILIES","	MALTFIELD HOUSE",OTHER EXPENSES,14/08/2017,6369352163,2,BOURNEMOUTH BOROUGH CO
OXFORDSHIRE CC,"CHILDRENS, YOUNG PEOPLE AND FAMILIES","	LOOKED AFTER CITY 2",OTHER SERVICES,14/08/2017,6369352155,2,OXFORDSHIRE THORNHILL
OXFORDSHIRE CC,"CHILDRENS, YOUNG PEOPLE AND FAMILIES",CNTL EARLY HELP-RHIL,CATERING PROVISIONS,18/08/2017,6386810059,2,SAINSBURYS (2305)
OXFORDSHIRE CC,"CHILDRENS, YOUNG PEOPLE AND FAMILIES","	LEAVING CARE NORTH",PAYMENTS TO TRANSPORT OPERATORS,21/08/2017,6392318315,2,OXFORD PARKWAY SST
OXFORDSHIRE CC,"CHILDRENS, YOUNG PEOPLE AND FAMILIES",EYNSHAM,CATERING PROVISIONS,28/08/2017,6415590949,2,SAINSBURYS SACAT 0642
OXFORDSHIRE CC,"CHILDRENS, YOUNG PEOPLE AND FAMILIES",DIDCOT MOVE-ON HOME,MATERIALS,30/08/2017,6424871071,2,POUNDLAND LTD
OXFORDSHIRE CC,"CHILDRENS, YOUNG PEOPLE AND FAMILIES","	LOOKED AFTER CITY 2",PAYMENTS TO TRANSPORT OPERATORS,30/08/2017,6424871029,2,OXFORD PARKWAY SST
OXFORDSHIRE CC,"CHILDRENS, YOUNG PEOPLE AND FAMILIES",WITNEY,CATERING PROVISIONS,01/09/2017,6433786041,2,TESCO-STORES 2499
OXFORDSHIRE CC,"CHILDRENS, YOUNG PEOPLE AND FAMILIES",CNTL EARLY HELP-RHIL,CATERING PROVISIONS,01/09/2017,6433785921,2,SAINSBURYS SAC2305SAC
OXFORDSHIRE CC,"CHILDRENS, YOUNG PEOPLE AND FAMILIES","	RIVERSIDE CENTRE",CATERING PROVISIONS,04/09/2017,6440788369,2,TESCO STORES (4377)
OXFORDSHIRE CC,"CHILDRENS, YOUNG PEOPLE AND FAMILIES",CNTL EARLY HELP-RHIL,CATERING PROVISIONS,08/09/2017,6455466731,2,SAINSBURYS (2305)
OXFORDSHIRE CC,"CHILDRENS, YOUNG PEOPLE AND FAMILIES","	MALTFIELD HOUSE",DRUGS AND MEDICAL SUPPLIES,11/09/2017,6461145351,2,SUPERDRUG STORES PLC
OXFORDSHIRE CC,"CHILDRENS, YOUNG PEOPLE AND FAMILIES","	ANTI-BULLYING",MATERIALS,19/09/2017,6493550065,2,POUNDLAND LTD 1586
OXFORDSHIRE CC,"CHILDRENS, YOUNG PEOPLE AND FAMILIES","	FOSTER CARE RECRUIT",MATERIALS,21/09/2017,6501548131,2,B&M RETAIL LTD
OXFORDSHIRE CC,"CHILDRENS, YOUNG PEOPLE AND FAMILIES",THAME E&A HOME,CATERING PROVISIONS,25/09/2017,6514654911,2,TESCO STORES 2994
OXFORDSHIRE CC,"CHILDRENS, YOUNG PEOPLE AND FAMILIES","	LEAVING CARE NORTH",PAYMENTS TO TRANSPORT OPERATORS,26/09/2017,6519995641,2,OXFORD PARKWAY SST
OXFORDSHIRE CC,"CHILDRENS, YOUNG PEOPLE AND FAMILIES","	MUSIC UNALLOCABLE",POSTAGE AND DELIVERY,29/09/2017,6533412377,2,ROYAL MAIL CHARGES
OXFORDSHIRE CC,"CHILDRENS, YOUNG PEOPLE AND FAMILIES","	LEAVING CARE NORTH",CATERING PROVISIONS,03/10/2017,6546740407,2,PELICAN ROUGE COFFEE S
OXFORDSHIRE CC,"CHILDRENS, YOUNG PEOPLE AND FAMILIES",WITNEY,CATERING PROVISIONS,09/10/2017,6565677375,2,SAINSBURYS SACAT 0632
OXFORDSHIRE CC,"CHILDRENS, YOUNG PEOPLE AND FAMILIES",WITNEY,CATERING PROVISIONS,16/10/2017,6591417741,2,TESCO-STORES 2499
OXFORDSHIRE CC,"CHILDRENS, YOUNG PEOPLE AND FAMILIES",WITNEY,CATERING PROVISIONS,25/10/2017,6628964535,2,SPAR
OXFORDSHIRE CC,"CHILDRENS, YOUNG PEOPLE AND FAMILIES",EYNSHAM,CATERING PROVISIONS,26/10/2017,6633624333,2,TESCO STORES 2994
OXFORDSHIRE CC,"CHILDRENS, YOUNG PEOPLE AND FAMILIES",CNTL EARLY HELP-RHIL,CATERING PROVISIONS,27/10/2017,6638956217,2,SAINSBURYS SAC2305SAC
OXFORDSHIRE CC,"CHILDRENS, YOUNG PEOPLE AND FAMILIES","	MUSIC UNALLOCABLE",EQUIPMENT,30/10/2017,6644531207,2,WILKO RETAIL LIMIT
OXFORDSHIRE CC,CORPORATE CORE,"	ORGANISATIONAL DEV'T",MATERIALS,30/10/2017,6644531229,2,SAINSBURYS SACAT 0730
OXFORDSHIRE CC,"CHILDRENS, YOUNG PEOPLE AND FAMILIES",DIDCOT MOVE-ON HOME,CATERING PROVISIONS,01/11/2017,6654816559,2,TESCO STORES-2008
OXFORDSHIRE CC,"CHILDRENS, YOUNG PEOPLE AND FAMILIES","	LOOKED AFTER CITY 2",PAYMENTS TO TRANSPORT OPERATORS,01/11/2017,6654816279,2,OXFORD PARKWAY
OXFORDSHIRE CC,"CHILDRENS, YOUNG PEOPLE AND FAMILIES",CNTL EARLY HELP-BRTN,CATERING PROVISIONS,08/11/2017,6681187803,2,TESCO STORE 2994
OXFORDSHIRE CC,"CHILDRENS, YOUNG PEOPLE AND FAMILIES","	FPT CITY",PAYMENTS TO TRANSPORT OPERATORS,08/11/2017,6681187809,2,OXFORD PARKWAY SST
OXFORDSHIRE CC,"CHILDRENS, YOUNG PEOPLE AND FAMILIES",UASC 16&17,OTHER TRANSPORT ARRANGEMENTS,08/11/2017,6681187913,2,3C_ OXFORDSHIRE COUNTY
OXFORDSHIRE CC,"CHILDRENS, YOUNG PEOPLE AND FAMILIES","	LEAVING CARE NORTH",CATERING PROVISIONS,10/11/2017,6690742085,2,SAINSBURYS SACAT 0632
OXFORDSHIRE CC,"CHILDRENS, YOUNG PEOPLE AND FAMILIES","	FOSTER CARE RECRUIT",CATERING PROVISIONS,16/11/2017,6713926619,2,CO-OPERATIVE FOOD
OXFORDSHIRE CC,"CHILDRENS, YOUNG PEOPLE AND FAMILIES","	LOOKED AFTER CITY 2",OTHER SERVICES,17/11/2017,6719335661,2,APCOA CONNECT - FGW
OXFORDSHIRE CC,ENVIRONMENT AND ECONOMY,"	FM RECHARGES",MATERIALS,22/11/2017,6736517927,2,CURRYS OXFORD 2401
OXFORDSHIRE CC,"CHILDRENS, YOUNG PEOPLE AND FAMILIES","	LOOKED AFTER CITY 2",OTHER SERVICES,24/11/2017,6743064189,2,APCOA CONNECT - FGW
OXFORDSHIRE CC,"CHILDRENS, YOUNG PEOPLE AND FAMILIES","	MANAGEMENT & ADMIN",CATERING PROVISIONS,30/11/2017,6759907217,2,CO-OP GROUP 350035
OXFORDSHIRE CC,"CHILDRENS, YOUNG PEOPLE AND FAMILIES",DIDCOT MOVE-ON HOME,CATERING PROVISIONS,07/12/2017,6787494863,2,SAINSBURYS SACAT 2067
OXFORDSHIRE CC,"CHILDRENS, YOUNG PEOPLE AND FAMILIES","	LOOKED AFTER CITY 2",PAYMENTS TO TRANSPORT OPERATORS,07/12/2017,6787494715,2,OXFORD PARKWAY
OXFORDSHIRE CC,"CHILDRENS, YOUNG PEOPLE AND FAMILIES",CNTL EARLY HELP-RHIL,CATERING PROVISIONS,15/12/2017,6821195143,2,TESCO STORES 2393
OXFORDSHIRE CC,"CHILDRENS, YOUNG PEOPLE AND FAMILIES",CNTL EARLY HELP-BRTN,MATERIALS,15/12/2017,6821195275,2,SUE RYDER 4214
OXFORDSHIRE CC,"CHILDRENS, YOUNG PEOPLE AND FAMILIES",UASC 16&17,OTHER TRANSPORT ARRANGEMENTS,19/12/2017,6834158877,2,3C_ OXFORDSHIRE COUNTY
OXFORDSHIRE CC,"CHILDRENS, YOUNG PEOPLE AND FAMILIES","	LOOKED AFTER CITY 2",OTHER EXPENSES,20/12/2017,6837336065,2,WELCOME B/WAITROSE PEA
OXFORDSHIRE CC,CORPORATE CORE,"	CHAIRMANS ALLOWANCE",CATERING PROVISIONS,20/12/2017,6837336237,2,MARKS&SPENCER PLC
OXFORDSHIRE CC,"CHILDRENS, YOUNG PEOPLE AND FAMILIES",THAME E&A HOME,ENTERTAINMENT EXPENSES,20/12/2017,6837336287,2,PEGASUS THEATRE
OXFORDSHIRE CC,SOCIAL AND COMMUNITY SERVICES,"	WALLINGFORD / HENLEY",CATERING PROVISIONS,21/12/2017,6841928675,2,WAITROSE 675
OXFORDSHIRE CC,"CHILDRENS, YOUNG PEOPLE AND FAMILIES","	MUSIC UNALLOCABLE",POSTAGE AND DELIVERY,22/12/2017,6845730197,2,ROYAL MAIL CHARGES
OXFORDSHIRE CC,"CHILDRENS, YOUNG PEOPLE AND FAMILIES",EYNSHAM,OTHER SERVICES,22/12/2017,6845730365,2,3C_ OXFORDSHIRE COUNTY
OXFORDSHIRE CC,"CHILDRENS, YOUNG PEOPLE AND FAMILIES",EYNSHAM,OTHER SERVICES,22/12/2017,6845730289,2,3C_ OXFORDSHIRE COUNTY
OXFORDSHIRE CC,"CHILDRENS, YOUNG PEOPLE AND FAMILIES",EYNSHAM,OTHER SERVICES,22/12/2017,6845730301,2,3C_ OXFORDSHIRE COUNTY
OXFORDSHIRE CC,"CHILDRENS, YOUNG PEOPLE AND FAMILIES",UASC 16&17,RESIDENTIAL ACTIVITIES,26/12/2017,6849845615,2,WILKO RETAIL LIMIT
OXFORDSHIRE CC,"CHILDRENS, YOUNG PEOPLE AND FAMILIES","	LOOKED AFTER CITY 2",OTHER SERVICES,26/12/2017,6849845469,2,APCOA CONNECT - FGW
OXFORDSHIRE CC,"CHILDRENS, YOUNG PEOPLE AND FAMILIES",UASC UNDER 16,OTHER SERVICES,04/01/2018,6868260005,2,3C_ OXFORDSHIRE COUNTY
OXFORDSHIRE CC,"CHILDRENS, YOUNG PEOPLE AND FAMILIES","	LEAVING CARE NORTH",OTHER EXPENSES,04/01/2018,6868259879,2,W M MORRISON PLC
OXFORDSHIRE CC,SOCIAL AND COMMUNITY SERVICES,CSS - BANBURY,MATERIALS,08/01/2018,6876280635,2,HOME BARGAINS BANBURY
OXFORDSHIRE CC,"CHILDRENS, YOUNG PEOPLE AND FAMILIES","	LOOKED AFTER CITY 2",OTHER SERVICES,09/01/2018,6881430649,2,APCOA CONNECT - FGW
OXFORDSHIRE CC,"CHILDRENS, YOUNG PEOPLE AND FAMILIES","	LEAVING CARE NORTH",CATERING,15/01/2018,6929958587,2,GREGGS PLC
OXFORDSHIRE CC,"CHILDRENS, YOUNG PEOPLE AND FAMILIES","	YOUNG CARERS WORKER",SUBSCRIPTIONS,19/01/2018,6917833507,2,REDBRIDGE PARK & RIDE
OXFORDSHIRE CC,"CHILDRENS, YOUNG PEOPLE AND FAMILIES","	LEAVING CARE NORTH",SUBSCRIPTIONS,22/01/2018,6923957903,2,UNION STREET CAR PARK
OXFORDSHIRE CC,"CHILDRENS, YOUNG PEOPLE AND FAMILIES",UASC 16&17,OTHER TRANSPORT ARRANGEMENTS,24/01/2018,6934985107,2,3C_ OXFORDSHIRE COUNTY
OXFORDSHIRE CC,"CHILDRENS, YOUNG PEOPLE AND FAMILIES","	LEAVING CARE CITY 2",SUBSCRIPTIONS,25/01/2018,6939452473,2,UNION STREET CAR PARK
OXFORDSHIRE CC,ENVIRONMENT AND ECONOMY,"	MOUNT HOUSE",MATERIALS,29/01/2018,6950843711,2,POUNDLAND LTD
OXFORDSHIRE CC,"CHILDRENS, YOUNG PEOPLE AND FAMILIES",THAME E&A HOME,MATERIALS,31/01/2018,6961643579,2,THE WORKS
OXFORDSHIRE CC,"CHILDRENS, YOUNG PEOPLE AND FAMILIES",CNTL EARLY HELP-RHIL,CATERING PROVISIONS,31/01/2018,6961644381,2,CO-OP GROUP FOOD
OXFORDSHIRE CC,"CHILDRENS, YOUNG PEOPLE AND FAMILIES","	YOUNG CARERS WORKER",SUBSCRIPTIONS,31/01/2018,6961644017,2,REDBRIDGE PARK & RIDE
OXFORDSHIRE CC,"CHILDRENS, YOUNG PEOPLE AND FAMILIES",EYNSHAM,CATERING PROVISIONS,02/02/2018,6971812905,2,CO-OPERATIVE FOOD
OXFORDSHIRE CC,"CHILDRENS, YOUNG PEOPLE AND FAMILIES",EYNSHAM,HOSPITALITY EXPENSES,05/02/2018,6977913167,2,THE EVENLODE AT EYNSHA
OXFORDSHIRE CC,"CHILDRENS, YOUNG PEOPLE AND FAMILIES","	LOOKED AFTER CITY 2",PAYMENTS TO TRANSPORT OPERATORS,09/02/2018,6998574787,2,OXFORD PARKWAY SST
OXFORDSHIRE CC,SOCIAL AND COMMUNITY SERVICES,DIDCOT MOVE-ON HOME,CATERING PROVISIONS,12/02/2018,7004716697,2,SAINSBURYS SACAT 2067
OXFORDSHIRE CC,"CHILDRENS, YOUNG PEOPLE AND FAMILIES","	40 THE MOORS",CATERING PROVISIONS,14/02/2018,7015357771,2,WM MORRISON(STORE)
OXFORDSHIRE CC,SOCIAL AND COMMUNITY SERVICES,"	MTFC",ENTERTAINMENT EXPENSES,16/02/2018,7024736559,2,SPICEBALL LEISURE CENT
OXFORDSHIRE CC,"CHILDRENS, YOUNG PEOPLE AND FAMILIES",WITNEY,CATERING PROVISIONS,19/02/2018,7030642441,2,MARKS&SPENCER PLC SACA
OXFORDSHIRE CC,"CHILDRENS, YOUNG PEOPLE AND FAMILIES",EYNSHAM,CATERING PROVISIONS,26/02/2018,7056510431,2,SPAR
OXFORDSHIRE CC,"CHILDRENS, YOUNG PEOPLE AND FAMILIES",UASC UNDER 16,OTHER TRANSPORT ARRANGEMENTS,27/02/2018,7063669713,2,3C_ OXFORDSHIRE COUNTY
OXFORDSHIRE CC,"CHILDRENS, YOUNG PEOPLE AND FAMILIES",WITNEY,VEHICLE FUEL,05/03/2018,7084680495,2,TESCO PFS 3418
OXFORDSHIRE CC,"CHILDRENS, YOUNG PEOPLE AND FAMILIES",PUBLIC HEALTH GENERAL,CATERING PROVISIONS,09/03/2018,7106427737,2,SAINSBURYS SACAT 0730
OXFORDSHIRE CC,"CHILDRENS, YOUNG PEOPLE AND FAMILIES","	LOOKED AFTER NORTH",CATERING,09/03/2018,7106428145,2,CAFFE NERO
OXFORDSHIRE CC,"CHILDRENS, YOUNG PEOPLE AND FAMILIES",DIDCOT MOVE-ON HOME,CATERING PROVISIONS,12/03/2018,7113437913,2,SAINSBURYS SACAT 2067
OXFORDSHIRE CC,"CHILDRENS, YOUNG PEOPLE AND FAMILIES",DIDCOT MOVE-ON HOME,CATERING PROVISIONS,16/03/2018,7134191557,2,SAINSBURYS SACAT 2067
OXFORDSHIRE CC,"CHILDRENS, YOUNG PEOPLE AND FAMILIES","	RIVERSIDE CENTRE",CATERING,21/03/2018,7151239679,2,IZ  BRETON SPORT CAFE
OXFORDSHIRE CC,"CHILDRENS, YOUNG PEOPLE AND FAMILIES",ATV ADOPTION OXFORD,CATERING PROVISIONS,22/03/2018,7156340983,2,CO-OPERATIVE FOOD
OXFORDSHIRE CC,"CHILDRENS, YOUNG PEOPLE AND FAMILIES",EYNSHAM,"BOOKS, DVDS AND CDS",11/04/2017,5950650861,2.04,AMAZON UK MARKETPLACE
OXFORDSHIRE CC,"CHILDRENS, YOUNG PEOPLE AND FAMILIES",DIDCOT MOVE-ON HOME,CATERING PROVISIONS,18/08/2017,6386810189,2.05,CO-OPERATIVE FOOD
OXFORDSHIRE CC,"CHILDRENS, YOUNG PEOPLE AND FAMILIES","	40 THE MOORS",CATERING PROVISIONS,25/08/2017,6409745937,2.05,SAINSBURYS SACAT (2243
OXFORDSHIRE CC,SOCIAL AND COMMUNITY SERVICES,"	MTFC",ENTERTAINMENT EXPENSES,27/10/2017,6638956375,2.05,RED KANGAROO READING
OXFORDSHIRE CC,"CHILDRENS, YOUNG PEOPLE AND FAMILIES",WITNEY,CATERING PROVISIONS,13/12/2017,6810764453,2.05,CO-OP GROUP 070582
OXFORDSHIRE CC,"CHILDRENS, YOUNG PEOPLE AND FAMILIES",EYNSHAM,CATERING PROVISIONS,18/12/2017,6828696231,2.05,SPAR
OXFORDSHIRE CC,"CHILDRENS, YOUNG PEOPLE AND FAMILIES",DIDCOT MOVE-ON HOME,CATERING PROVISIONS,01/01/2018,6860358767,2.05,SAINSBURYS SACAT 2067
OXFORDSHIRE CC,"CHILDRENS, YOUNG PEOPLE AND FAMILIES","	40 THE MOORS",CATERING PROVISIONS,19/03/2018,7149316957,2.05,TESCO STORES 2788
OXFORDSHIRE CC,ENVIRONMENT AND ECONOMY,"	ROAD ASSET MGT STAFF","SUPPLIES, STATIONERY AND MATERIALS",10/08/2017,6359614123,2.07,SUK RETAIL LTD
OXFORDSHIRE CC,"CHILDRENS, YOUNG PEOPLE AND FAMILIES","	HEARING IMPAIRMENT",POSTAGE AND DELIVERY,28/04/2017,6010453387,2.08,POST OFFICE COUNTER
OXFORDSHIRE CC,"CHILDRENS, YOUNG PEOPLE AND FAMILIES",NORTH FSS- BANBURY,POSTAGE AND DELIVERY,04/08/2017,6342374373,2.08,POST OFFICE COUNTER
OXFORDSHIRE CC,"CHILDRENS, YOUNG PEOPLE AND FAMILIES",NORTH FSS- BANBURY,POSTAGE AND DELIVERY,09/08/2017,6355707325,2.08,POST OFFICE COUNTER
OXFORDSHIRE CC,"CHILDRENS, YOUNG PEOPLE AND FAMILIES",WITNEY,POSTAGE AND DELIVERY,31/08/2017,6428780653,2.08,POST OFFICE COUNTER
OXFORDSHIRE CC,"CHILDRENS, YOUNG PEOPLE AND FAMILIES","	MALTFIELD HOUSE",POSTAGE AND DELIVERY,02/10/2017,6539724387,2.08,THE POST OFFICE
OXFORDSHIRE CC,"CHILDRENS, YOUNG PEOPLE AND FAMILIES","	MALTFIELD HOUSE",POSTAGE AND DELIVERY,28/11/2017,6752187463,2.08,POST OFFICE COUNTER
OXFORDSHIRE CC,"CHILDRENS, YOUNG PEOPLE AND FAMILIES","	MALTFIELD HOUSE",CATERING,19/06/2017,6183762527,2.09,CO-OPERATIVE FOOD
OXFORDSHIRE CC,"CHILDRENS, YOUNG PEOPLE AND FAMILIES",EYNSHAM,CATERING PROVISIONS,10/07/2017,6251928027,2.09,CO-OPERATIVE FOOD
OXFORDSHIRE CC,"CHILDRENS, YOUNG PEOPLE AND FAMILIES","	RESIDENTIAL STRATEGY",SUBSCRIPTIONS,17/11/2017,6719335719,2.09,AMF BOWLING
OXFORDSHIRE CC,"CHILDRENS, YOUNG PEOPLE AND FAMILIES","	LOOKED AFTER SOUTH",OTHER EXPENSES,16/02/2018,7024736681,2.09,AMF BOWLING
OXFORDSHIRE CC,"CHILDRENS, YOUNG PEOPLE AND FAMILIES","	LOOKED AFTER CITY 1",CATERING PROVISIONS,16/02/2018,7024736709,2.09,BOWLPLEX
OXFORDSHIRE CC,"CHILDRENS, YOUNG PEOPLE AND FAMILIES","	MALTFIELD HOUSE",CATERING,05/03/2018,7084680393,2.09,B&M RETAIL LTD
OXFORDSHIRE CC,"CHILDRENS, YOUNG PEOPLE AND FAMILIES",CNTL EARLY HELP-BRTN,OTHER EXPENSES,08/03/2018,7101044841,2.09,AMAZON UK MARKETPLACE
OXFORDSHIRE CC,"CHILDRENS, YOUNG PEOPLE AND FAMILIES","	MALTFIELD HOUSE",OTHER EXPENSES,14/03/2018,7124469883,2.09,WAITROSE 581
OXFORDSHIRE CC,"CHILDRENS, YOUNG PEOPLE AND FAMILIES","	NCS",OTHER SERVICES,03/08/2017,6337100177,2.1,NORTHERN DEVON HEALTHC
OXFORDSHIRE CC,"CHILDRENS, YOUNG PEOPLE AND FAMILIES",CNTL EARLY HELP-RHIL,CATERING PROVISIONS,30/08/2017,6424871013,2.1,SAINSBURYS 0600
OXFORDSHIRE CC,"CHILDRENS, YOUNG PEOPLE AND FAMILIES","	YOUNG CARERS WORKER",CATERING,10/10/2017,6572732847,2.1,COSTA
OXFORDSHIRE CC,"CHILDRENS, YOUNG PEOPLE AND FAMILIES",WITNEY,CATERING PROVISIONS,13/10/2017,6585342349,2.1,SAINSBURYS SACAT 0632
OXFORDSHIRE CC,"CHILDRENS, YOUNG PEOPLE AND FAMILIES","	RIVERSIDE CENTRE",CATERING PROVISIONS,30/10/2017,6644531231,2.1,THAME BP SF CONNECT
OXFORDSHIRE CC,"CHILDRENS, YOUNG PEOPLE AND FAMILIES","	LOOKED AFTER CITY 1",VEHICLE EQUIPMENT AND EXPENSES - OTHER,15/11/2017,6709108539,2.1,LONDON BORO OF REDBRID
OXFORDSHIRE CC,"CHILDRENS, YOUNG PEOPLE AND FAMILIES",DIDCOT MOVE-ON HOME,CATERING PROVISIONS,08/01/2018,6876280843,2.1,SAINSBURYS SACAT 2067
OXFORDSHIRE CC,"CHILDRENS, YOUNG PEOPLE AND FAMILIES","	LOOKED AFTER CITY 1",OTHER TRANSPORT ARRANGEMENTS,30/01/2018,6958137783,2.1,STGCOACH/CTYLINK
OXFORDSHIRE CC,"CHILDRENS, YOUNG PEOPLE AND FAMILIES",WITNEY,CATERING PROVISIONS,30/06/2017,6228979031,2.11,CO-OP GROUP 070582
OXFORDSHIRE CC,"CHILDRENS, YOUNG PEOPLE AND FAMILIES",WITNEY,CATERING PROVISIONS,16/10/2017,6591417657,2.11,CO-OP GROUP 070582
OXFORDSHIRE CC,"CHILDRENS, YOUNG PEOPLE AND FAMILIES",CNTL EARLY HELP-RHIL,CATERING PROVISIONS,20/03/2018,7146597025,2.12,CO-OPERATIVE FOOD
OXFORDSHIRE CC,"CHILDRENS, YOUNG PEOPLE AND FAMILIES",S&A INTERVENTION GRT,"PUBLICITY, PROMOTIONS AND ADVERTISEMENT",01/12/2017,6765599263,2.14,FACEBK  R5VMRE6YA2
OXFORDSHIRE CC,SOCIAL AND COMMUNITY SERVICES,"	MTFC",ENTERTAINMENT EXPENSES,15/05/2017,6063426669,2.15,DIDCOT WAVE LEISURE PO
OXFORDSHIRE CC,"CHILDRENS, YOUNG PEOPLE AND FAMILIES",DIDCOT MOVE-ON HOME,CATERING PROVISIONS,04/12/2017,6775093435,2.15,SAINSBURYS SACAT 2067
OXFORDSHIRE CC,"CHILDRENS, YOUNG PEOPLE AND FAMILIES","	RIVERSIDE CENTRE",CATERING PROVISIONS,22/12/2017,6845730379,2.15,WAITROSE 797
OXFORDSHIRE CC,"CHILDRENS, YOUNG PEOPLE AND FAMILIES","	40 THE MOORS",CATERING PROVISIONS,19/12/2017,6834158887,2.16,ASDA STORES 4920
OXFORDSHIRE CC,SOCIAL AND COMMUNITY SERVICES,"	MTFC",CATERING PROVISIONS,07/11/2017,6677195033,2.17,CO-OP GROUP 070698
OXFORDSHIRE CC,"CHILDRENS, YOUNG PEOPLE AND FAMILIES","	MALTFIELD HOUSE",CATERING,05/05/2017,6032327563,2.18,CO-OP GROUP 350035
OXFORDSHIRE CC,SHARED SERVICES,SCHOOLS H&S,"BOOKS, DVDS AND CDS",25/10/2017,6628964489,2.18,AMAZON.CO.UK
OXFORDSHIRE CC,SOCIAL AND COMMUNITY SERVICES,CSS - BANBURY,CATERING PROVISIONS,09/03/2018,7106427839,2.18,TESCO STORES-2064
OXFORDSHIRE CC,"CHILDRENS, YOUNG PEOPLE AND FAMILIES",EYNSHAM,CATERING PROVISIONS,30/05/2017,6118916339,2.19,CO-OPERATIVE FOOD
OXFORDSHIRE CC,"CHILDRENS, YOUNG PEOPLE AND FAMILIES",DIDCOT MOVE-ON HOME,CATERING PROVISIONS,02/10/2017,6539724903,2.19,CO-OP FOOD
OXFORDSHIRE CC,"CHILDRENS, YOUNG PEOPLE AND FAMILIES",CNTL EARLY HELP-RHIL,CATERING PROVISIONS,31/03/2017,5914889787,2.2,DELTEYS SUPERMARKE
OXFORDSHIRE CC,"CHILDRENS, YOUNG PEOPLE AND FAMILIES","	FAMILY SUPPORT CITY3",SUBSCRIPTIONS,07/04/2017,5938245503,2.2,UNION STREET CAR PARK
OXFORDSHIRE CC,"CHILDRENS, YOUNG PEOPLE AND FAMILIES","	40 THE MOORS",VEHICLE FUEL,27/04/2017,6003298503,2.2,SAINSBURYS PFS0184
OXFORDSHIRE CC,"CHILDRENS, YOUNG PEOPLE AND FAMILIES",EYNSHAM,CATERING PROVISIONS,11/05/2017,6051234247,2.2,CO-OPERATIVE FOOD
OXFORDSHIRE CC,"CHILDRENS, YOUNG PEOPLE AND FAMILIES","	40 THE MOORS",SUBSCRIPTIONS,15/05/2017,6063427367,2.2,OXFORD FERRY CP
OXFORDSHIRE CC,"CHILDRENS, YOUNG PEOPLE AND FAMILIES","	40 THE MOORS",SUBSCRIPTIONS,15/05/2017,6063427487,2.2,OXFORD FERRY CP
OXFORDSHIRE CC,"CHILDRENS, YOUNG PEOPLE AND FAMILIES","	YOUNG CARERS WORKER",SUBSCRIPTIONS,15/05/2017,6063427237,2.2,SUMMERTOWN CAR PARK
OXFORDSHIRE CC,SOCIAL AND COMMUNITY SERVICES,LEAVING CARE NORTH,OTHER TRANSPORT ARRANGEMENTS,15/05/2017,6063426649,2.2,PEARTREE P/RIDE
OXFORDSHIRE CC,"CHILDRENS, YOUNG PEOPLE AND FAMILIES","	40 THE MOORS",CATERING PROVISIONS,16/05/2017,6068452575,2.2,SAINSBURYS SACAT 0631
OXFORDSHIRE CC,"CHILDRENS, YOUNG PEOPLE AND FAMILIES","	LEAVING CARE NORTH",OTHER EXPENSES,19/05/2017,6083368699,2.2,SOUTH OXFORDSHIRE DIST
OXFORDSHIRE CC,"CHILDRENS, YOUNG PEOPLE AND FAMILIES","	FAMILY SUPPORT CITY3",SUBSCRIPTIONS,19/05/2017,6083368671,2.2,UNION STREET CAR PARK
OXFORDSHIRE CC,"CHILDRENS, YOUNG PEOPLE AND FAMILIES","	FAMILY SUPPORT CITY3",SUBSCRIPTIONS,24/05/2017,6099310059,2.2,UNION STREET CAR PARK
OXFORDSHIRE CC,SOCIAL AND COMMUNITY SERVICES,"	MTFC",OTHER SERVICES,02/06/2017,6129127157,2.2,CASTLE QUAY
OXFORDSHIRE CC,"CHILDRENS, YOUNG PEOPLE AND FAMILIES","	YOUNG CARERS WORKER",SUBSCRIPTIONS,14/06/2017,6168399619,2.2,REDBRIDGE PARK & RIDE
OXFORDSHIRE CC,"CHILDRENS, YOUNG PEOPLE AND FAMILIES","	YOUNG CARERS WORKER",SUBSCRIPTIONS,19/06/2017,6183762735,2.2,SUMMERTOWN CAR PARK
OXFORDSHIRE CC,"CHILDRENS, YOUNG PEOPLE AND FAMILIES","	LEAVING CARE CITY 2",SUBSCRIPTIONS,26/06/2017,6208905335,2.2,UNION STREET CAR PARK
OXFORDSHIRE CC,"CHILDRENS, YOUNG PEOPLE AND FAMILIES","	YOUNG CARERS WORKER",SUBSCRIPTIONS,26/06/2017,6208906741,2.2,SUMMERTOWN CAR PARK
OXFORDSHIRE CC,"CHILDRENS, YOUNG PEOPLE AND FAMILIES",EYNSHAM,CATERING PROVISIONS,29/06/2017,6222938927,2.2,CO-OPERATIVE FOOD
OXFORDSHIRE CC,"CHILDRENS, YOUNG PEOPLE AND FAMILIES","	FAMILY SUPPORT CITY3",OTHER SERVICES,03/07/2017,6234459859,2.2,UNION STREET CAR PARK
OXFORDSHIRE CC,"CHILDRENS, YOUNG PEOPLE AND FAMILIES","	FAMILY SUPPORT CITY3",OTHER SERVICES,11/07/2017,6257152203,2.2,UNION STREET CAR PARK
OXFORDSHIRE CC,"CHILDRENS, YOUNG PEOPLE AND FAMILIES","	FAMILY SUPPORT CITY3",OTHER SERVICES,14/07/2017,6269436083,2.2,UNION STREET CAR PARK
OXFORDSHIRE CC,"CHILDRENS, YOUNG PEOPLE AND FAMILIES","	LEAVING CARE NORTH",SUBSCRIPTIONS,04/08/2017,6342374393,2.2,UNION STREET CAR PARK
OXFORDSHIRE CC,"CHILDRENS, YOUNG PEOPLE AND FAMILIES","	YOUNG CARERS WORKER",SUBSCRIPTIONS,14/08/2017,6369352363,2.2,SUMMERTOWN CAR PARK
OXFORDSHIRE CC,"CHILDRENS, YOUNG PEOPLE AND FAMILIES","	FAMILY SUPPORT CITY3",STAFF USE OF PUBLIC TRANSPORT,13/09/2017,6471427105,2.2,UNION STREET CAR PARK
OXFORDSHIRE CC,"CHILDRENS, YOUNG PEOPLE AND FAMILIES","	40 THE MOORS",VEHICLE FUEL,29/09/2017,6533412647,2.2,SAINSBURYS PFS0184
OXFORDSHIRE CC,"CHILDRENS, YOUNG PEOPLE AND FAMILIES",DIDCOT MOVE-ON HOME,SUBSCRIPTIONS,04/10/2017,6550346797,2.2,REDBRIDGE PARK & RIDE
OXFORDSHIRE CC,"CHILDRENS, YOUNG PEOPLE AND FAMILIES","	YOUNG CARERS WORKER",SUBSCRIPTIONS,06/10/2017,6560150863,2.2,REDBRIDGE PARK & RIDE
OXFORDSHIRE CC,"CHILDRENS, YOUNG PEOPLE AND FAMILIES",WITNEY,SUBSCRIPTIONS,10/10/2017,6572732947,2.2,SEACOURT PARK & RIDE
OXFORDSHIRE CC,"CHILDRENS, YOUNG PEOPLE AND FAMILIES","	FAMILY SUPPORT CITY3",SUBSCRIPTIONS,18/10/2017,6602235821,2.2,UNION STREET CAR PARK
OXFORDSHIRE CC,"CHILDRENS, YOUNG PEOPLE AND FAMILIES",EYNSHAM,SUBSCRIPTIONS,19/10/2017,6606800035,2.2,PEARTREE P/RIDE
OXFORDSHIRE CC,"CHILDRENS, YOUNG PEOPLE AND FAMILIES",DIDCOT MOVE-ON HOME,CATERING PROVISIONS,06/11/2017,6670251993,2.2,SAINSBURYS SACAT 2067
OXFORDSHIRE CC,SOCIAL AND COMMUNITY SERVICES,"	WALLINGFORD / HENLEY",CATERING PROVISIONS,13/11/2017,6697421981,2.2,WAITROSE 675
OXFORDSHIRE CC,SOCIAL AND COMMUNITY SERVICES,"	MTFC",CATERING PROVISIONS,14/11/2017,6704682115,2.2,TESCO STORES 2994
OXFORDSHIRE CC,"CHILDRENS, YOUNG PEOPLE AND FAMILIES","	FAMILY SUPPORT CITY3",SUBSCRIPTIONS,16/11/2017,6713926881,2.2,UNION STREET CAR PARK
OXFORDSHIRE CC,"CHILDRENS, YOUNG PEOPLE AND FAMILIES",WITNEY,CATERING PROVISIONS,20/11/2017,6726202175,2.2,SAINSBURYS 0632
OXFORDSHIRE CC,"CHILDRENS, YOUNG PEOPLE AND FAMILIES","	LEAVING CARE NORTH",SUBSCRIPTIONS,20/11/2017,6726201637,2.2,UNION STREET CAR PARK
OXFORDSHIRE CC,"CHILDRENS, YOUNG PEOPLE AND FAMILIES","	FAMILY SUPPORT CITY3",SUBSCRIPTIONS,29/11/2017,6755445179,2.2,UNION STREET CAR PARK
OXFORDSHIRE CC,SOCIAL AND COMMUNITY SERVICES,"	MTFC",HARDWARE AND CROCKERY,07/12/2017,6787494729,2.2,FROSTS AT MILLETS
OXFORDSHIRE CC,"CHILDRENS, YOUNG PEOPLE AND FAMILIES","	YOUNG CARERS WORKER",SUBSCRIPTIONS,19/12/2017,6834158601,2.2,REDBRIDGE PARK & RIDE
OXFORDSHIRE CC,SOCIAL AND COMMUNITY SERVICES,"	MTFC",CATERING PROVISIONS,02/02/2018,6971812387,2.2,SAINSBURYS 0632
OXFORDSHIRE CC,SOCIAL AND COMMUNITY SERVICES,CSS WALLINGFORD,CATERING PROVISIONS,12/02/2018,7004717035,2.2,WAITROSE 675
OXFORDSHIRE CC,"CHILDRENS, YOUNG PEOPLE AND FAMILIES","	FAM GRP CONFERENCES",CATERING,14/02/2018,7015357757,2.2,WILLS DELI
OXFORDSHIRE CC,"CHILDRENS, YOUNG PEOPLE AND FAMILIES","	LEAVING CARE NORTH",SUBSCRIPTIONS,23/02/2018,7050182119,2.2,CITY CAR PARKS
OXFORDSHIRE CC,"CHILDRENS, YOUNG PEOPLE AND FAMILIES",DIDCOT MOVE-ON HOME,CATERING PROVISIONS,15/03/2018,7129042359,2.2,SAINSBURYS SACAT 2067
OXFORDSHIRE CC,"CHILDRENS, YOUNG PEOPLE AND FAMILIES",EYNSHAM,CATERING PROVISIONS,16/03/2018,7134191607,2.2,CO-OPERATIVE FOOD
OXFORDSHIRE CC,"CHILDRENS, YOUNG PEOPLE AND FAMILIES",CNTL EARLY HELP-BRTN,OTHER EXPENSES,08/12/2017,6792587061,2.24,AMAZON UK MARKETPLACE
OXFORDSHIRE CC,SOCIAL AND COMMUNITY SERVICES,"	MTFC",CATERING PROVISIONS,03/05/2017,6024142311,2.25,TESCO STORES 2994
OXFORDSHIRE CC,"CHILDRENS, YOUNG PEOPLE AND FAMILIES","	MALTFIELD HOUSE",CATERING PROVISIONS,08/05/2017,6075349225,2.25,WELCOME B/WAITROSE PEA
OXFORDSHIRE CC,"CHILDRENS, YOUNG PEOPLE AND FAMILIES","	40 THE MOORS",CATERING PROVISIONS,15/05/2017,6063427559,2.25,TESCO STORES 2788
OXFORDSHIRE CC,"CHILDRENS, YOUNG PEOPLE AND FAMILIES","	LOOKED AFTER CITY 2",MATERIALS,07/06/2017,6143585345,2.25,WILKO RETAIL LIMIT
OXFORDSHIRE CC,"CHILDRENS, YOUNG PEOPLE AND FAMILIES",DIDCOT MOVE-ON HOME,CATERING PROVISIONS,29/06/2017,6222938885,2.25,TESCO STORES
OXFORDSHIRE CC,"CHILDRENS, YOUNG PEOPLE AND FAMILIES","	LEAVING CARE NORTH",MATERIALS,05/09/2017,6444776673,2.25,PAYPAL  FANCYDRESSM
OXFORDSHIRE CC,"CHILDRENS, YOUNG PEOPLE AND FAMILIES",EYNSHAM,ENTERTAINMENT EXPENSES,26/09/2017,6519995789,2.25,WARWICK CASTLE
OXFORDSHIRE CC,"CHILDRENS, YOUNG PEOPLE AND FAMILIES","	40 THE MOORS",CATERING,10/01/2018,6886908743,2.25,LITTLE ITALY ESPRESSO
OXFORDSHIRE CC,"CHILDRENS, YOUNG PEOPLE AND FAMILIES",CNTL EARLY HELP-BRTN,STATIONERY,25/01/2018,6939452687,2.25,PAYPAL  BEEDIFFEREN
OXFORDSHIRE CC,"CHILDRENS, YOUNG PEOPLE AND FAMILIES","	40 THE MOORS",CATERING,20/02/2018,7037087143,2.25,THE ART ROOM
OXFORDSHIRE CC,"CHILDRENS, YOUNG PEOPLE AND FAMILIES","	MALTFIELD HOUSE",VEHICLE FUEL,01/05/2017,6012635331,2.28,SHELL GEORGETN 503
OXFORDSHIRE CC,CORPORATE CORE,"	COMMUNICATIONS","PUBLICITY, PROMOTIONS AND ADVERTISEMENT",01/06/2017,6146642377,2.28,FACEBK WPXZQCA9Z2
OXFORDSHIRE CC,"CHILDRENS, YOUNG PEOPLE AND FAMILIES","	LOOKED AFTER CITY 2",CATERING,30/06/2017,6228978213,2.28,MCDONALDS
OXFORDSHIRE CC,"CHILDRENS, YOUNG PEOPLE AND FAMILIES",EYNSHAM,CATERING PROVISIONS,13/04/2017,5958205601,2.29,CO-OPERATIVE FOOD
OXFORDSHIRE CC,"CHILDRENS, YOUNG PEOPLE AND FAMILIES",DIDCOT MOVE-ON HOME,CATERING PROVISIONS,21/04/2017,5982536773,2.29,CO-OP FOOD
OXFORDSHIRE CC,"CHILDRENS, YOUNG PEOPLE AND FAMILIES","	NCS",CATERING PROVISIONS,20/02/2018,7037087147,2.29,TESCO STORES 6167
OXFORDSHIRE CC,"CHILDRENS, YOUNG PEOPLE AND FAMILIES",EYNSHAM,CATERING,24/04/2017,5989078433,2.3,GERRY'S OFFSHORE I
OXFORDSHIRE CC,ENVIRONMENT AND ECONOMY,"	ROAD ASSET MGT STAFF",CATERING,25/04/2017,5994935269,2.3,AMT COFFEE
OXFORDSHIRE CC,"CHILDRENS, YOUNG PEOPLE AND FAMILIES","	AAC EQUIPMENT",PURCHASE OF IT EQUIPMENT,26/04/2017,5998337679,2.3,AMAZON UK MARKETPLACE
OXFORDSHIRE CC,"CHILDRENS, YOUNG PEOPLE AND FAMILIES","	MALTFIELD HOUSE",OTHER EXPENSES,02/05/2017,6020755687,2.3,SAINSBURYS (2305)
OXFORDSHIRE CC,"CHILDRENS, YOUNG PEOPLE AND FAMILIES","	LOOKED AFTER NORTH",OTHER EXPENSES,04/05/2017,6075197789,2.3,TOUCHWOOD SOLIHULL
OXFORDSHIRE CC,SOCIAL AND COMMUNITY SERVICES,"	MTFC",CATERING PROVISIONS,04/05/2017,6075197221,2.3,C K WINE STORE
OXFORDSHIRE CC,"CHILDRENS, YOUNG PEOPLE AND FAMILIES","	MANAGEMENT & ADMIN",CATERING PROVISIONS,24/05/2017,6099309831,2.3,CO-OPERATIVE FOOD
OXFORDSHIRE CC,"CHILDRENS, YOUNG PEOPLE AND FAMILIES",WITNEY,CATERING PROVISIONS,24/05/2017,6099310043,2.3,ASDA STORES 4920
OXFORDSHIRE CC,"CHILDRENS, YOUNG PEOPLE AND FAMILIES","	LEAVING CARE NORTH",CATERING PROVISIONS,26/05/2017,6108898113,2.3,TESCO STORES 6040
OXFORDSHIRE CC,"CHILDRENS, YOUNG PEOPLE AND FAMILIES","	LEAVING CARE NORTH",OTHER EXPENSES,26/05/2017,6108898107,2.3,BRISTOL CITY COUNCIL
OXFORDSHIRE CC,"CHILDRENS, YOUNG PEOPLE AND FAMILIES","	LOOKED AFTER SOUTH",OTHER EXPENSES,01/06/2017,6146642501,2.3,MILLETS FARM RESTAURAN
OXFORDSHIRE CC,"CHILDRENS, YOUNG PEOPLE AND FAMILIES",CNTL EARLY HELP-BRTN,CATERING PROVISIONS,06/06/2017,6139822053,2.3,SAINSBURYS SACAT 0631
OXFORDSHIRE CC,ENVIRONMENT AND ECONOMY,"	MUSEUM DEV OFFICER",CATERING,26/06/2017,6208906681,2.3,STARBUCKS
OXFORDSHIRE CC,"CHILDRENS, YOUNG PEOPLE AND FAMILIES",CNTL EARLY HELP-RHIL,CATERING PROVISIONS,28/06/2017,6218938239,2.3,ASDA SUPERSTORE
OXFORDSHIRE CC,"CHILDRENS, YOUNG PEOPLE AND FAMILIES",KINGFISHER,PAYMENTS TO TRANSPORT OPERATORS,21/08/2017,6392318577,2.3,THE CHILTERN RLYWY
OXFORDSHIRE CC,"CHILDRENS, YOUNG PEOPLE AND FAMILIES","	40 THE MOORS",CATERING,22/09/2017,6506650055,2.3,COSTA EXPRESS
OXFORDSHIRE CC,"CHILDRENS, YOUNG PEOPLE AND FAMILIES","	LOOKED AFTER NORTH",OTHER SERVICES,05/12/2017,6778869757,2.3,TOUCHWOOD SOLIHULL
OXFORDSHIRE CC,ENVIRONMENT AND ECONOMY,"	MUSEUM RETAIL",STATIONERY,03/01/2018,6865608907,2.3,AMAZON UK MARKETPLACE
OXFORDSHIRE CC,"CHILDRENS, YOUNG PEOPLE AND FAMILIES","	40 THE MOORS",PAYMENTS TO TRANSPORT OPERATORS,10/01/2018,6886908763,2.3,GWR OXFORD SST
OXFORDSHIRE CC,"CHILDRENS, YOUNG PEOPLE AND FAMILIES","	LEAVING CARE NORTH",OTHER SERVICES,15/01/2018,6929958641,2.3,3C_ PARKEON 23 - SOLIH
OXFORDSHIRE CC,"CHILDRENS, YOUNG PEOPLE AND FAMILIES",DIDCOT MOVE-ON HOME,CATERING PROVISIONS,22/01/2018,6923958417,2.3,SAINSBURYS SACAT 2067
OXFORDSHIRE CC,"CHILDRENS, YOUNG PEOPLE AND FAMILIES",CNTL ERLY HELP-BBLEY,"SUPPLIES, STATIONERY AND MATERIALS",31/01/2018,6961644389,2.3,HONEST STATIONERY
OXFORDSHIRE CC,"CHILDRENS, YOUNG PEOPLE AND FAMILIES",WITNEY,CATERING PROVISIONS,02/02/2018,6971813019,2.3,SAINSBURYS SACAT 0632
OXFORDSHIRE CC,"CHILDRENS, YOUNG PEOPLE AND FAMILIES","	LOOKED AFTER NORTH",PAYMENTS TO TRANSPORT OPERATORS,13/03/2018,7120341515,2.3,THE CHILTERN RLYWY
OXFORDSHIRE CC,"CHILDRENS, YOUNG PEOPLE AND FAMILIES","	RESIDENTIAL STRATEGY",ENTERTAINMENT EXPENSES,30/03/2017,5908848105,2.31,VUE BSL LTD
OXFORDSHIRE CC,SOCIAL AND COMMUNITY SERVICES,"	PUBLIC HEALTH GENERA","PUBLICITY, PROMOTIONS AND ADVERTISEMENT",02/10/2017,6539725003,2.32,FACEBK B2UQYDE8V2
OXFORDSHIRE CC,"CHILDRENS, YOUNG PEOPLE AND FAMILIES",CSS WALLINGFORD,MATERIALS,27/03/2018,7175428877,2.32,KP STATIONERS
OXFORDSHIRE CC,"CHILDRENS, YOUNG PEOPLE AND FAMILIES",WITNEY,CATERING PROVISIONS,13/04/2017,5958205593,2.35,MARKS&SPENCER PLC SACA
OXFORDSHIRE CC,"CHILDRENS, YOUNG PEOPLE AND FAMILIES",CNTL EARLY HELP-RHIL,CATERING PROVISIONS,14/07/2017,6269435499,2.35,SAINSBURYS (2305)
OXFORDSHIRE CC,"CHILDRENS, YOUNG PEOPLE AND FAMILIES","	LOOKED AFTER NORTH",CATERING PROVISIONS,18/07/2017,6281346413,2.35,OXFORD PEARTREE STARBU
OXFORDSHIRE CC,"CHILDRENS, YOUNG PEOPLE AND FAMILIES",KINGFISHER,CATERING PROVISIONS,24/08/2017,6405399881,2.35,WHSMITH
OXFORDSHIRE CC,"CHILDRENS, YOUNG PEOPLE AND FAMILIES","	40 THE MOORS",VEHICLE FUEL,14/09/2017,6475189331,2.35,CO-OPERATIVE FOOD
OXFORDSHIRE CC,"CHILDRENS, YOUNG PEOPLE AND FAMILIES",EYNSHAM,MATERIALS,02/11/2017,6659144743,2.35,CLINTONS  236
OXFORDSHIRE CC,SOCIAL AND COMMUNITY SERVICES,"	MTFC",CATERING PROVISIONS,14/12/2017,6816074737,2.35,SAINSBURYS 2244
OXFORDSHIRE CC,SOCIAL AND COMMUNITY SERVICES,"	MTFC",CATERING PROVISIONS,11/01/2018,6889404885,2.35,SAINSBURYS 2244
OXFORDSHIRE CC,SOCIAL AND COMMUNITY SERVICES,"	MTFC",CATERING PROVISIONS,18/01/2018,6913211121,2.35,SAINSBURYS 2244
OXFORDSHIRE CC,SOCIAL AND COMMUNITY SERVICES,"	MTFC",CATERING PROVISIONS,25/01/2018,6939452573,2.35,SAINSBURYS 2244
OXFORDSHIRE CC,"CHILDRENS, YOUNG PEOPLE AND FAMILIES",EYNSHAM,CATERING,25/01/2018,6939452351,2.35,COSTA COFFEE
OXFORDSHIRE CC,SOCIAL AND COMMUNITY SERVICES,"	MTFC",CATERING PROVISIONS,08/02/2018,6993291231,2.35,SAINSBURYS 2244
OXFORDSHIRE CC,SOCIAL AND COMMUNITY SERVICES,"	MTFC",CATERING PROVISIONS,01/03/2018,7072774861,2.35,SAINSBURYS 2244
OXFORDSHIRE CC,SOCIAL AND COMMUNITY SERVICES,"	MTFC",CATERING PROVISIONS,22/03/2018,7156340763,2.35,SAINSBURYS 2244
OXFORDSHIRE CC,"CHILDRENS, YOUNG PEOPLE AND FAMILIES",THAME E&A HOME,CATERING PROVISIONS,08/05/2017,6075349081,2.37,TESCO STORES (4377)
OXFORDSHIRE CC,SOCIAL AND COMMUNITY SERVICES,"	MTFC",CATERING PROVISIONS,31/10/2017,6651662955,2.37,CO-OP GROUP 070698
OXFORDSHIRE CC,SOCIAL AND COMMUNITY SERVICES,"	SHARED LIVES",CATERING PROVISIONS,10/11/2017,6690742241,2.37,WAITROSE 211
OXFORDSHIRE CC,"CHILDRENS, YOUNG PEOPLE AND FAMILIES","	LEAVING CARE CITY 2",OTHER TRANSPORT ARRANGEMENTS,15/09/2017,6480230299,2.38,MKC PARKING RINGGO
OXFORDSHIRE CC,"CHILDRENS, YOUNG PEOPLE AND FAMILIES","	NCS","BOOKS, DVDS AND CDS",02/10/2017,6539724119,2.38,AMAZON UK MARKETPLACE
OXFORDSHIRE CC,"CHILDRENS, YOUNG PEOPLE AND FAMILIES",EYNSHAM,CATERING PROVISIONS,18/10/2017,6602235831,2.38,CO-OPERATIVE FOOD
OXFORDSHIRE CC,"CHILDRENS, YOUNG PEOPLE AND FAMILIES","	FPT CITY","BOOKS, DVDS AND CDS",08/12/2017,6792587129,2.38,AMAZON UK MARKETPLACE
OXFORDSHIRE CC,"CHILDRENS, YOUNG PEOPLE AND FAMILIES",EYNSHAM,CATERING,09/02/2018,6998574995,2.38,MCDONALDS
OXFORDSHIRE CC,"CHILDRENS, YOUNG PEOPLE AND FAMILIES",WITNEY,VEHICLE FUEL,12/06/2017,6159014573,2.39,BRIZE NORTON SELF SERV
OXFORDSHIRE CC,CORPORATE CORE,LIBRARY COLLECTIONS,"BOOKS, DVDS AND CDS",04/12/2017,6775093337,2.39,AMAZON.CO.UK
OXFORDSHIRE CC,"CHILDRENS, YOUNG PEOPLE AND FAMILIES",CNTL EARLY HELP-BRTN,STATIONERY,26/01/2018,6944305805,2.39,PAYPAL  INFO
OXFORDSHIRE CC,"CHILDRENS, YOUNG PEOPLE AND FAMILIES",EYNSHAM,CATERING PROVISIONS,26/03/2018,7167994099,2.39,CO-OPERATIVE FOOD
OXFORDSHIRE CC,"CHILDRENS, YOUNG PEOPLE AND FAMILIES",NTH EARLY HELP-BCSTR,MATERIALS,26/04/2017,5998337565,2.4,WILKO RETAIL LIMIT
OXFORDSHIRE CC,"CHILDRENS, YOUNG PEOPLE AND FAMILIES",NTH FAM SUPRT-BCSTR,MATERIALS,26/04/2017,5998337565,2.4,WILKO RETAIL LIMIT
OXFORDSHIRE CC,"CHILDRENS, YOUNG PEOPLE AND FAMILIES",EYNSHAM,DRUGS AND MEDICAL SUPPLIES,23/05/2017,6095486677,2.4,BOOTS 0330
OXFORDSHIRE CC,"CHILDRENS, YOUNG PEOPLE AND FAMILIES","	LEAVING CARE NORTH",OTHER EXPENSES,24/05/2017,6099310173,2.4,M&S SIMPLY FOOD - SSP
OXFORDSHIRE CC,"CHILDRENS, YOUNG PEOPLE AND FAMILIES","	YOUNG CARERS WORKER",EDUCATIONAL AND VOCATIONAL TRAINING ,29/05/2017,6113158521,2.4,RUSKIN COLLEGE
OXFORDSHIRE CC,"CHILDRENS, YOUNG PEOPLE AND FAMILIES","	LEAVING CARE CITY 2",CATERING,02/06/2017,6129127117,2.4,BOSWELLS CAFE COWLEY
OXFORDSHIRE CC,"CHILDRENS, YOUNG PEOPLE AND FAMILIES","	LEAVING CARE CITY 2",CATERING,19/06/2017,6183762799,2.4,QUEENSWAY COFFEE
OXFORDSHIRE CC,"CHILDRENS, YOUNG PEOPLE AND FAMILIES","	LOOKED AFTER NORTH",CATERING,05/07/2017,6241232013,2.4,VIBINS CAFE BAR & GRIL
OXFORDSHIRE CC,"CHILDRENS, YOUNG PEOPLE AND FAMILIES","	LEAVING CARE NORTH",CATERING PROVISIONS,26/07/2017,6308858203,2.4,TESCO STORES 4480
OXFORDSHIRE CC,"CHILDRENS, YOUNG PEOPLE AND FAMILIES","	LOOKED AFTER CITY 2",OTHER SERVICES,28/07/2017,6317802343,2.4,FB UNIT TRUST
OXFORDSHIRE CC,"CHILDRENS, YOUNG PEOPLE AND FAMILIES","	MALTFIELD HOUSE",MATERIALS,23/08/2017,6401242245,2.4,M & S SIMPLY FOOD
OXFORDSHIRE CC,"CHILDRENS, YOUNG PEOPLE AND FAMILIES","	RESIDENTIAL STRATEGY",SUBSCRIPTIONS,15/09/2017,6480231225,2.4,CITY CAR PARKS
OXFORDSHIRE CC,ENVIRONMENT AND ECONOMY,"	MUSEUM DEV OFFICER",STAFF SUBSISTENCE,07/11/2017,6677195143,2.4,GREGGS PLC
OXFORDSHIRE CC,"CHILDRENS, YOUNG PEOPLE AND FAMILIES","	LEAVING CARE NORTH",CATERING PROVISIONS,16/11/2017,6713926689,2.4,TESCO STORES 6167
OXFORDSHIRE CC,"CHILDRENS, YOUNG PEOPLE AND FAMILIES","	LEAVING CARE SOUTH",SUBSCRIPTIONS,17/11/2017,6719335921,2.4,CITY CAR PARKS
OXFORDSHIRE CC,"CHILDRENS, YOUNG PEOPLE AND FAMILIES",NTH EARLY HELP-BNRBY,POSTAGE AND DELIVERY,23/11/2017,6740618379,2.4,POST OFFICE COUNTER
OXFORDSHIRE CC,"CHILDRENS, YOUNG PEOPLE AND FAMILIES",CNTL EARLY HELP-BRTN,OTHER EXPENSES,08/12/2017,6792587063,2.4,AMAZON UK MARKETPLACE
OXFORDSHIRE CC,"CHILDRENS, YOUNG PEOPLE AND FAMILIES","	LOOKED AFTER CITY 1",CATERING,14/12/2017,6816074615,2.4,PRET A MANGER
OXFORDSHIRE CC,"CHILDRENS, YOUNG PEOPLE AND FAMILIES","	NCS",CATERING PROVISIONS,06/02/2018,6984829711,2.4,SAINSBURYS 0642
OXFORDSHIRE CC,"CHILDRENS, YOUNG PEOPLE AND FAMILIES","	NCS",POSTAGE AND DELIVERY,21/02/2018,7040464719,2.4,POST OFFICE SELF SERVI
OXFORDSHIRE CC,"CHILDRENS, YOUNG PEOPLE AND FAMILIES",EYNSHAM,CATERING PROVISIONS,09/03/2018,7106427957,2.4,SAINSBURYS 0631
OXFORDSHIRE CC,"CHILDRENS, YOUNG PEOPLE AND FAMILIES","	LEAVING CARE SOUTH",SUBSCRIPTIONS,23/03/2018,7161536127,2.4,CITY CAR PARKS
OXFORDSHIRE CC,SOCIAL AND COMMUNITY SERVICES,"	MTFC",CATERING PROVISIONS,23/01/2018,6931298459,2.41,CO-OP GROUP 070698
OXFORDSHIRE CC,"CHILDRENS, YOUNG PEOPLE AND FAMILIES",CNTL EARLY HELP-RHIL,CATERING PROVISIONS,23/01/2018,6931298663,2.42,CO-OPERATIVE FOOD
OXFORDSHIRE CC,"CHILDRENS, YOUNG PEOPLE AND FAMILIES",CNTL EARLY HELP-RHIL,CATERING PROVISIONS,08/02/2018,6993291643,2.42,CO-OPERATIVE FOOD
OXFORDSHIRE CC,"CHILDRENS, YOUNG PEOPLE AND FAMILIES","	EDM",CATERING,16/05/2017,6068452347,2.43,ASDA SUPERSTORE
OXFORDSHIRE CC,"CHILDRENS, YOUNG PEOPLE AND FAMILIES","	LOOKED AFTER CITY 1",CATERING PROVISIONS,04/07/2017,6239107425,2.43,CO-OP GROUP FOOD
OXFORDSHIRE CC,"CHILDRENS, YOUNG PEOPLE AND FAMILIES",CNTL EARLY HELP-RHIL,CATERING PROVISIONS,07/02/2018,6988809227,2.44,CO-OPERATIVE FOOD
OXFORDSHIRE CC,"CHILDRENS, YOUNG PEOPLE AND FAMILIES",NTH EARLY HELP-BCSTR,CLEANING MATERIALS,19/05/2017,6083368235,2.45,SAINSBURYS (2243)
OXFORDSHIRE CC,"CHILDRENS, YOUNG PEOPLE AND FAMILIES",NTH FAM SUPRT-BCSTR,CLEANING MATERIALS,19/05/2017,6083368235,2.45,SAINSBURYS (2243)
OXFORDSHIRE CC,"CHILDRENS, YOUNG PEOPLE AND FAMILIES","	DISABILITIES TEAM-C","BOOKS, DVDS AND CDS",01/08/2017,6329391717,2.45,AMAZON UK MARKETPLACE
OXFORDSHIRE CC,"CHILDRENS, YOUNG PEOPLE AND FAMILIES","	LOOKED AFTER CITY 1",CATERING,25/08/2017,6409745917,2.45,BOSWELLS CAFE COWLEY
OXFORDSHIRE CC,"CHILDRENS, YOUNG PEOPLE AND FAMILIES",EYNSHAM,CATERING PROVISIONS,26/09/2017,6519995821,2.45,CO-OPERATIVE FOOD
OXFORDSHIRE CC,"CHILDRENS, YOUNG PEOPLE AND FAMILIES","	LEAVING CARE NORTH",MATERIALS,27/09/2017,6524049329,2.45,M & S SIMPLY FOOD
OXFORDSHIRE CC,"CHILDRENS, YOUNG PEOPLE AND FAMILIES",DIDCOT MOVE-ON HOME,CATERING PROVISIONS,18/10/2017,6602235705,2.45,SAINSBURYS SACAT 2067
OXFORDSHIRE CC,SOCIAL AND COMMUNITY SERVICES,"	SHARED LIVES",CATERING PROVISIONS,14/11/2017,6704682319,2.45,WAITROSE 211
OXFORDSHIRE CC,"CHILDRENS, YOUNG PEOPLE AND FAMILIES",WITNEY,CATERING PROVISIONS,27/11/2017,6748322697,2.45,TESCO-STORES 3339
OXFORDSHIRE CC,"CHILDRENS, YOUNG PEOPLE AND FAMILIES","	NCS",CATERING PROVISIONS,06/02/2018,6984829713,2.45,CO-OPERATIVE FOOD
OXFORDSHIRE CC,"CHILDRENS, YOUNG PEOPLE AND FAMILIES",THAME E&A HOME,"BOOKS, DVDS AND CDS",30/11/2017,6759907243,2.46,AMAZON.CO.UK
OXFORDSHIRE CC,"CHILDRENS, YOUNG PEOPLE AND FAMILIES","	40 THE MOORS",CATERING PROVISIONS,20/04/2017,5978709169,2.48,TESCO STORE 2788
OXFORDSHIRE CC,"CHILDRENS, YOUNG PEOPLE AND FAMILIES","	LOOKED AFTER NORTH",OTHER EXPENSES,05/05/2017,6032328101,2.48,MCDONALDS
OXFORDSHIRE CC,"CHILDRENS, YOUNG PEOPLE AND FAMILIES","	EDM",CATERING,11/05/2017,6051233967,2.48,ASDA SUPERSTORE
OXFORDSHIRE CC,"CHILDRENS, YOUNG PEOPLE AND FAMILIES","	SERVICE MANAGER PLAC",NON-STAFF SUBSISTENCE AND EXPENSES,10/07/2017,6251927811,2.48,ALDI
OXFORDSHIRE CC,"CHILDRENS, YOUNG PEOPLE AND FAMILIES","	40 THE MOORS",CATERING,07/04/2017,5938245525,2.49,BURGER KING
OXFORDSHIRE CC,"CHILDRENS, YOUNG PEOPLE AND FAMILIES","	MALTFIELD HOUSE",CATERING,02/05/2017,6020755671,2.49,LITTLE CHEF HICKSTEAD
OXFORDSHIRE CC,"CHILDRENS, YOUNG PEOPLE AND FAMILIES",WITNEY,CATERING,19/05/2017,6083368753,2.49,MCDONALDS
OXFORDSHIRE CC,SOCIAL AND COMMUNITY SERVICES,LOOKED AFTER NORTH,HARDWARE AND CROCKERY,19/05/2017,6083368661,2.49,NAILSWORTH GARDEN
OXFORDSHIRE CC,CORPORATE CORE,HISTORY SERVICE,FURNITURE,16/06/2017,6177857015,2.49,AMAZON.CO.UK
OXFORDSHIRE CC,"CHILDRENS, YOUNG PEOPLE AND FAMILIES","	LEAVING CARE SOUTH",OTHER EXPENSES,26/10/2017,6633624321,2.49,BURGER KING
OXFORDSHIRE CC,"CHILDRENS, YOUNG PEOPLE AND FAMILIES","	MALTFIELD HOUSE",CATERING,16/11/2017,6713926613,2.49,MCDONALDS
OXFORDSHIRE CC,"CHILDRENS, YOUNG PEOPLE AND FAMILIES","	VISUAL IMPAIRMENT",DISABILITY AIDS AND EQUIPMENT,14/12/2017,6816074675,2.49,WH SMITH
OXFORDSHIRE CC,"CHILDRENS, YOUNG PEOPLE AND FAMILIES","	RIVERSIDE CENTRE",CATERING PROVISIONS,14/12/2017,6816074705,2.49,CO-OPERATIVE FOOD
OXFORDSHIRE CC,"CHILDRENS, YOUNG PEOPLE AND FAMILIES","	LEAVING CARE NORTH",CATERING,18/12/2017,6828695773,2.49,MCDONALDS
OXFORDSHIRE CC,"CHILDRENS, YOUNG PEOPLE AND FAMILIES",EYNSHAM,"BOOKS, DVDS AND CDS",10/01/2018,6886909187,2.49,AMAZON UK MARKETPLACE
OXFORDSHIRE CC,"CHILDRENS, YOUNG PEOPLE AND FAMILIES","	MALTFIELD HOUSE",DRUGS AND MEDICAL SUPPLIES,11/01/2018,6889404939,2.49,FROSTS PHARMACY LTD
OXFORDSHIRE CC,"CHILDRENS, YOUNG PEOPLE AND FAMILIES",BULLINGDON PRISON,MATERIALS,03/04/2017,5923481589,2.5,PETS AT HOME LTD
OXFORDSHIRE CC,"CHILDRENS, YOUNG PEOPLE AND FAMILIES","	40 THE MOORS",CATERING PROVISIONS,06/04/2017,5933827465,2.5,TESCO STORES 2788
OXFORDSHIRE CC,"CHILDRENS, YOUNG PEOPLE AND FAMILIES",WITNEY,CATERING PROVISIONS,11/04/2017,5950650907,2.5,M&S SIMPLY FOOD - SSP
OXFORDSHIRE CC,"CHILDRENS, YOUNG PEOPLE AND FAMILIES",WITNEY,CATERING PROVISIONS,03/05/2017,6024142527,2.5,SAINSBURYS 0632
OXFORDSHIRE CC,SOCIAL AND COMMUNITY SERVICES,"	MTFC",OTHER SERVICES,04/05/2017,6075197225,2.5,NCP PARK PASS
OXFORDSHIRE CC,"CHILDRENS, YOUNG PEOPLE AND FAMILIES",THAME E&A HOME,CATERING PROVISIONS,11/05/2017,6051234309,2.5,ASDA SUPERSTORE
OXFORDSHIRE CC,SOCIAL AND COMMUNITY SERVICES,"	MTFC",OTHER SERVICES,18/05/2017,6077630563,2.5,NCP PARK PASS
OXFORDSHIRE CC,"CHILDRENS, YOUNG PEOPLE AND FAMILIES","	LOOKED AFTER CITY 2",OTHER TRANSPORT ARRANGEMENTS,25/05/2017,6103292417,2.5,GOV.UK/DART-CHARGE
OXFORDSHIRE CC,"CHILDRENS, YOUNG PEOPLE AND FAMILIES",EYNSHAM,CATERING PROVISIONS,26/05/2017,6108899523,2.5,CO-OPERATIVE FOOD
OXFORDSHIRE CC,CORPORATE CORE,"	CHAIRMANS ALLOWANCE",MATERIALS,31/05/2017,6120679079,2.5,BOSWELLS OF OXFORD LTD
OXFORDSHIRE CC,"CHILDRENS, YOUNG PEOPLE AND FAMILIES","	LOOKED AFTER CITY 1",OTHER TRANSPORT ARRANGEMENTS,05/06/2017,6133707773,2.5,GOV.UK/DART-CHARGE
OXFORDSHIRE CC,"CHILDRENS, YOUNG PEOPLE AND FAMILIES","	YOUNG CARERS WORKER",CATERING,13/06/2017,6165027607,2.5,COSTA COFFEE
OXFORDSHIRE CC,"CHILDRENS, YOUNG PEOPLE AND FAMILIES","	LOOKED AFTER NORTH",CATERING PROVISIONS,14/06/2017,6168399781,2.5,W M MORRISON PLC
OXFORDSHIRE CC,CORPORATE CORE,HISTORY SERVICE,FURNITURE,16/06/2017,6177857011,2.5,AMAZON UK MARKETPLACE
OXFORDSHIRE CC,SOCIAL AND COMMUNITY SERVICES,"	MTFC",OTHER SERVICES,29/06/2017,6222938775,2.5,NCP PARK PASS
OXFORDSHIRE CC,"CHILDRENS, YOUNG PEOPLE AND FAMILIES",EYNSHAM,OTHER SERVICES,11/07/2017,6257152039,2.5,NCP PARK PASS
OXFORDSHIRE CC,SOCIAL AND COMMUNITY SERVICES,"	FAMILY SUPPORT N'TH2",OTHER TRANSPORT ARRANGEMENTS,13/07/2017,6264516857,2.5,GOV.UK/DART-CHARGE
OXFORDSHIRE CC,SOCIAL AND COMMUNITY SERVICES,"	FAMILY SUPPORT N'TH2",OTHER TRANSPORT ARRANGEMENTS,17/07/2017,6279911231,2.5,GOV.UK/DART-CHARGE
OXFORDSHIRE CC,SOCIAL AND COMMUNITY SERVICES,"	FAMILY SUPPORT N'TH2",OTHER TRANSPORT ARRANGEMENTS,17/07/2017,6279911229,2.5,GOV.UK/DART-CHARGE
OXFORDSHIRE CC,"CHILDRENS, YOUNG PEOPLE AND FAMILIES","	LEAVING CARE NORTH",CATERING PROVISIONS,24/07/2017,6298965103,2.5,W M MORRISON PLC
OXFORDSHIRE CC,"CHILDRENS, YOUNG PEOPLE AND FAMILIES","	40 THE MOORS",CATERING PROVISIONS,25/07/2017,6305705741,2.5,SAINSBURYS SACAT 0631
OXFORDSHIRE CC,"CHILDRENS, YOUNG PEOPLE AND FAMILIES","	LEAVING CARE NORTH",MATERIALS,02/08/2017,6332634233,2.5,CLINTONS 679
OXFORDSHIRE CC,"CHILDRENS, YOUNG PEOPLE AND FAMILIES","	LOOKED AFTER SOUTH",OTHER EXPENSES,03/08/2017,6337100275,2.5,BOSWELLS CAFE COWLEY
OXFORDSHIRE CC,"CHILDRENS, YOUNG PEOPLE AND FAMILIES",CNTL ERLY HELP-BBLEY,CATERING PROVISIONS,10/08/2017,6359614317,2.5,TESCO STORE 2990
OXFORDSHIRE CC,"CHILDRENS, YOUNG PEOPLE AND FAMILIES",DIDCOT MOVE-ON HOME,CATERING PROVISIONS,14/08/2017,6369352431,2.5,SAINSBURYS SAC2305SAC
OXFORDSHIRE CC,SOCIAL AND COMMUNITY SERVICES,"	MTFC",OTHER SERVICES,24/08/2017,6405399769,2.5,NCP PARK PASS
OXFORDSHIRE CC,"CHILDRENS, YOUNG PEOPLE AND FAMILIES",WITNEY,CATERING PROVISIONS,31/08/2017,6428780679,2.5,SAINSBURYS SACAT 2067
OXFORDSHIRE CC,"CHILDRENS, YOUNG PEOPLE AND FAMILIES",EYNSHAM,OTHER SERVICES,05/09/2017,6444776855,2.5,NCP PARK PASS
OXFORDSHIRE CC,SOCIAL AND COMMUNITY SERVICES,"	MTFC",OTHER SERVICES,07/09/2017,6450244651,2.5,NCP PARK PASS
OXFORDSHIRE CC,"CHILDRENS, YOUNG PEOPLE AND FAMILIES","	40 THE MOORS",OTHER SERVICES,07/09/2017,6450244881,2.5,NCP PARK PASS
OXFORDSHIRE CC,SOCIAL AND COMMUNITY SERVICES,"	MTFC",OTHER SERVICES,14/09/2017,6475189231,2.5,NCP PARK PASS
OXFORDSHIRE CC,"CHILDRENS, YOUNG PEOPLE AND FAMILIES","	LOOKED AFTER CITY 2",OTHER TRANSPORT ARRANGEMENTS,19/09/2017,6493550439,2.5,GOV.UK/DART-CHARGE
OXFORDSHIRE CC,"CHILDRENS, YOUNG PEOPLE AND FAMILIES",THAME E&A HOME,CATERING PROVISIONS,28/09/2017,6531719043,2.5,TESCO STORES 2008
OXFORDSHIRE CC,CORPORATE CORE,"	ORGANISATIONAL DEV'T",CATERING PROVISIONS,02/10/2017,6539724035,2.5,MARKS&SPENCER PLC
OXFORDSHIRE CC,"CHILDRENS, YOUNG PEOPLE AND FAMILIES",NTH EARLY HELP-BNRBY,CATERING PROVISIONS,04/10/2017,6550346679,2.5,MARTIN MCCOLL
OXFORDSHIRE CC,"CHILDRENS, YOUNG PEOPLE AND FAMILIES","	RIVERSIDE CENTRE",CATERING PROVISIONS,09/10/2017,6565677477,2.5,WELCOME B/WAITROSE
OXFORDSHIRE CC,"CHILDRENS, YOUNG PEOPLE AND FAMILIES","	LOOKED AFTER CITY 1",POSTAGE AND DELIVERY,16/10/2017,6591417663,2.5,POST OFFICE COUNTER
OXFORDSHIRE CC,SOCIAL AND COMMUNITY SERVICES,"	CNTY COLLECTIONS PRJ",OTHER SERVICES,18/10/2017,6602235431,2.5,DUNELM LTD
OXFORDSHIRE CC,"CHILDRENS, YOUNG PEOPLE AND FAMILIES","	40 THE MOORS",OTHER SERVICES,20/10/2017,6612055853,2.5,NCP PARK PASS
OXFORDSHIRE CC,"CHILDRENS, YOUNG PEOPLE AND FAMILIES","	LOOKED AFTER NORTH",MATERIALS,23/10/2017,6618249969,2.5,CLINTONS 1046
OXFORDSHIRE CC,SOCIAL AND COMMUNITY SERVICES,"	MTFC",OTHER SERVICES,25/10/2017,6628964431,2.5,NCP PARK PASS
OXFORDSHIRE CC,"CHILDRENS, YOUNG PEOPLE AND FAMILIES",EYNSHAM,OTHER SERVICES,26/10/2017,6633624353,2.5,NCP PARK PASS
OXFORDSHIRE CC,"CHILDRENS, YOUNG PEOPLE AND FAMILIES",THAME E&A HOME,"BOOKS, DVDS AND CDS",29/11/2017,6755445107,2.5,AMAZON.CO.UK
OXFORDSHIRE CC,SOCIAL AND COMMUNITY SERVICES,LOOKED AFTER NORTH,CATERING,08/12/2017,6792587161,2.5,WCPC SWINDON
OXFORDSHIRE CC,"CHILDRENS, YOUNG PEOPLE AND FAMILIES","	MUSIC UNALLOCABLE",CATERING PROVISIONS,18/12/2017,6828696275,2.5,SAINSBURYS 2244
OXFORDSHIRE CC,"CHILDRENS, YOUNG PEOPLE AND FAMILIES",THAME E&A HOME,OTHER SERVICES,26/12/2017,6849845573,2.5,3C_ DTZ EDEN SHOPPING
OXFORDSHIRE CC,"CHILDRENS, YOUNG PEOPLE AND FAMILIES",DIDCOT MOVE-ON HOME,CATERING PROVISIONS,16/01/2018,6906020543,2.5,TESCO STORES 2413
OXFORDSHIRE CC,SOCIAL AND COMMUNITY SERVICES,"	MTFC",CATERING PROVISIONS,17/01/2018,6908846061,2.5,SAINSBURYS SACAT 0600
OXFORDSHIRE CC,"CHILDRENS, YOUNG PEOPLE AND FAMILIES",THAME E&A HOME,OTHER SERVICES,22/01/2018,6923958855,2.5,3C_ DTZ EDEN SHOPPING
OXFORDSHIRE CC,"CHILDRENS, YOUNG PEOPLE AND FAMILIES",EYNSHAM,CATERING PROVISIONS,23/01/2018,6931298591,2.5,TESCO STORES (4377)
OXFORDSHIRE CC,"CHILDRENS, YOUNG PEOPLE AND FAMILIES",THAME E&A HOME,OTHER SERVICES,24/01/2018,6934985263,2.5,3C_ DTZ EDEN SHOPPING
OXFORDSHIRE CC,"CHILDRENS, YOUNG PEOPLE AND FAMILIES","	NCS",HIRE OF ACCOMMODATION AND FACILITIES,09/02/2018,6998574783,2.5,UNION JACK CLUB
OXFORDSHIRE CC,"CHILDRENS, YOUNG PEOPLE AND FAMILIES","	LEAVING CARE NORTH",CLOTHING AND UNIFORMS,12/02/2018,7004716971,2.5,PRIMARK 699
OXFORDSHIRE CC,"CHILDRENS, YOUNG PEOPLE AND FAMILIES",THAME E&A HOME,CATERING PROVISIONS,14/02/2018,7015357775,2.5,MARTIN MCCOLL
OXFORDSHIRE CC,"CHILDRENS, YOUNG PEOPLE AND FAMILIES",EYNSHAM,ENTERTAINMENT EXPENSES,15/02/2018,7019987857,2.5,BOWLPLEX
OXFORDSHIRE CC,"CHILDRENS, YOUNG PEOPLE AND FAMILIES","	MUSIC UNALLOCABLE",MATERIALS,20/02/2018,7037087099,2.5,GREAT SCORES LTD
OXFORDSHIRE CC,"CHILDRENS, YOUNG PEOPLE AND FAMILIES","	LEAVING CARE NORTH",CATERING,23/02/2018,7050182117,2.5,THE JAM FACTORY OXFORD
OXFORDSHIRE CC,"CHILDRENS, YOUNG PEOPLE AND FAMILIES","	LOOKED AFTER CITY 1",OTHER TRANSPORT ARRANGEMENTS,07/03/2018,7096171657,2.5,PAYBYPHONE
OXFORDSHIRE CC,"CHILDRENS, YOUNG PEOPLE AND FAMILIES",CNTL EARLY HELP-BRTN,VEHICLE FUEL,09/03/2018,7106427959,2.5,TESCO PFS 2488
OXFORDSHIRE CC,"CHILDRENS, YOUNG PEOPLE AND FAMILIES","	LEAVING CARE NORTH",BIRTHDAY ALLOWANCE,14/03/2018,7124470041,2.5,W M MORRISON PLC
OXFORDSHIRE CC,SOCIAL AND COMMUNITY SERVICES,CSS - BANBURY,CATERING PROVISIONS,28/03/2018,7179677675,2.5,TESCO STORE 2064
OXFORDSHIRE CC,"CHILDRENS, YOUNG PEOPLE AND FAMILIES",NORTH FSS- BANBURY,POSTAGE AND DELIVERY,17/08/2017,6382290905,2.51,POST OFFICE COUNTER
OXFORDSHIRE CC,"CHILDRENS, YOUNG PEOPLE AND FAMILIES",CNTL EARLY HELP-BRTN,POSTAGE AND DELIVERY,23/11/2017,6740618481,2.52,THE POST OFFICE
OXFORDSHIRE CC,"CHILDRENS, YOUNG PEOPLE AND FAMILIES","	LOOKED AFTER CITY 2",BIRTHDAY ALLOWANCE,27/04/2017,6003298249,2.54,CARD FACTORY
OXFORDSHIRE CC,"CHILDRENS, YOUNG PEOPLE AND FAMILIES",EYNSHAM,CATERING PROVISIONS,27/06/2017,6214535591,2.54,CO-OPERATIVE FOOD
OXFORDSHIRE CC,"CHILDRENS, YOUNG PEOPLE AND FAMILIES",NTH EARLY HELP-BNRBY,CATERING PROVISIONS,28/07/2017,6317793729,2.54,CO-OPERATIVE FOOD
OXFORDSHIRE CC,"CHILDRENS, YOUNG PEOPLE AND FAMILIES",EYNSHAM,VEHICLE FUEL,22/11/2017,6736518187,2.54,HOPCROFTS HOLT SER
OXFORDSHIRE CC,"CHILDRENS, YOUNG PEOPLE AND FAMILIES",EYNSHAM,ENTERTAINMENT EXPENSES,17/04/2017,5965992205,2.55,HOLLYWOOD BOWL
OXFORDSHIRE CC,"CHILDRENS, YOUNG PEOPLE AND FAMILIES","	40 THE MOORS",ENTERTAINMENT EXPENSES,01/05/2017,6012635511,2.55,BOWLPLEX
OXFORDSHIRE CC,"CHILDRENS, YOUNG PEOPLE AND FAMILIES",WITNEY,RESIDENTIAL ACTIVITIES,04/09/2017,6440788217,2.55,BURNHAM ON SEA HOL
OXFORDSHIRE CC,"CHILDRENS, YOUNG PEOPLE AND FAMILIES",THAME E&A HOME,CATERING,04/12/2017,6775093919,2.55,MILLETS FARM RESTAURAN
OXFORDSHIRE CC,SOCIAL AND COMMUNITY SERVICES,OXFORDSHIRE,CATERING PROVISIONS,05/01/2018,6871379743,2.55,MARKS&SPENCER PLC SF
OXFORDSHIRE CC,"CHILDRENS, YOUNG PEOPLE AND FAMILIES","	40 THE MOORS",ENTERTAINMENT EXPENSES,22/01/2018,6923958209,2.55,BOWLPLEX
OXFORDSHIRE CC,"CHILDRENS, YOUNG PEOPLE AND FAMILIES","	40 THE MOORS",ENTERTAINMENT EXPENSES,07/03/2018,7096171529,2.55,WHITELANDS FARM SPORTS
OXFORDSHIRE CC,"CHILDRENS, YOUNG PEOPLE AND FAMILIES","	LOOKED AFTER SOUTH",MATERIALS,09/11/2017,6685497375,2.57,CARD FACTORY
OXFORDSHIRE CC,"CHILDRENS, YOUNG PEOPLE AND FAMILIES",EYNSHAM,CATERING,17/04/2017,5965992163,2.58,MCDONALDS
OXFORDSHIRE CC,"CHILDRENS, YOUNG PEOPLE AND FAMILIES",WITNEY,CATERING PROVISIONS,25/05/2017,6103292595,2.58,MARKS&SPENCER PLC SACA
OXFORDSHIRE CC,"CHILDRENS, YOUNG PEOPLE AND FAMILIES",THAME E&A HOME,VEHICLE FUEL,05/06/2017,6133707889,2.58,THAME BP SF CONNECT
OXFORDSHIRE CC,"CHILDRENS, YOUNG PEOPLE AND FAMILIES",THAME E&A HOME,VEHICLE FUEL,29/06/2017,6222938947,2.58,THAME BP SF CONNECT
OXFORDSHIRE CC,"CHILDRENS, YOUNG PEOPLE AND FAMILIES","	LOOKED AFTER SOUTH",CATERING,19/10/2017,6606799901,2.58,MCDONALDS
OXFORDSHIRE CC,"CHILDRENS, YOUNG PEOPLE AND FAMILIES",THAME E&A HOME,VEHICLE FUEL,28/02/2018,7067704883,2.58,THAME BP SF CONNECT
OXFORDSHIRE CC,ENVIRONMENT AND ECONOMY,"	MUSEUM DEV OFFICER",CATERING,28/06/2017,6218937859,2.59,PRET A MANGER
OXFORDSHIRE CC,"CHILDRENS, YOUNG PEOPLE AND FAMILIES",NTH EARLY HELP-WITNY,"BOOKS, DVDS AND CDS",15/02/2018,7019987693,2.59,AMAZON UK MARKETPLACE
OXFORDSHIRE CC,"CHILDRENS, YOUNG PEOPLE AND FAMILIES","	NCS",CATERING PROVISIONS,06/04/2017,5933827577,2.6,TESCO STORES 6167
OXFORDSHIRE CC,"CHILDRENS, YOUNG PEOPLE AND FAMILIES","	LOOKED AFTER CITY 2",CATERING,27/04/2017,6003298221,2.6,COSTA COFFEE
OXFORDSHIRE CC,"CHILDRENS, YOUNG PEOPLE AND FAMILIES",DIDCOT MOVE-ON HOME,CATERING PROVISIONS,01/05/2017,6012635351,2.6,SAINSBURYS SACAT 2067
OXFORDSHIRE CC,"CHILDRENS, YOUNG PEOPLE AND FAMILIES","	LOOKED AFTER CITY 2",OTHER TRANSPORT ARRANGEMENTS,17/05/2017,6071895979,2.6,GWR READING GATES
OXFORDSHIRE CC,"CHILDRENS, YOUNG PEOPLE AND FAMILIES",THAME E&A HOME,CATERING PROVISIONS,30/06/2017,6228978725,2.6,SAINSBURYS SACAT 2096
OXFORDSHIRE CC,"CHILDRENS, YOUNG PEOPLE AND FAMILIES","	LOOKED AFTER NORTH",VEHICLE FUEL,18/07/2017,6281346363,2.6,W M MORRISON SPMKT
OXFORDSHIRE CC,"CHILDRENS, YOUNG PEOPLE AND FAMILIES",KINGFISHER,OTHER EXPENSES,04/08/2017,6342374429,2.6,COSTA COFFEE
OXFORDSHIRE CC,"CHILDRENS, YOUNG PEOPLE AND FAMILIES","	RESIDENTIAL STRATEGY",OTHER TRANSPORT ARRANGEMENTS,15/09/2017,6480231219,2.6,OXFORD BUS COMPANY
OXFORDSHIRE CC,"CHILDRENS, YOUNG PEOPLE AND FAMILIES","	LEAVING CARE NORTH",CATERING,03/10/2017,6546740515,2.6,COSTA COFFEE
OXFORDSHIRE CC,"CHILDRENS, YOUNG PEOPLE AND FAMILIES","	40 THE MOORS",CATERING PROVISIONS,12/10/2017,6580526517,2.6,TESCO STORES 2788
OXFORDSHIRE CC,SOCIAL AND COMMUNITY SERVICES,"	MTFC",ENTERTAINMENT EXPENSES,13/10/2017,6585342161,2.6,OCC OXFORDSHIRE MUSEUM
OXFORDSHIRE CC,"CHILDRENS, YOUNG PEOPLE AND FAMILIES","	LOOKED AFTER CITY 2",OTHER SERVICES,16/10/2017,6591417311,2.6,APCOA
OXFORDSHIRE CC,"CHILDRENS, YOUNG PEOPLE AND FAMILIES","	LEAVING CARE CITY 2",RESIDENTIAL ACTIVITIES,17/10/2017,6598747733,2.6,COSTA @NEXT 43040930
OXFORDSHIRE CC,"CHILDRENS, YOUNG PEOPLE AND FAMILIES",EYNSHAM,OTHER SERVICES,20/11/2017,6726202195,2.6,NCP PARK PASS
OXFORDSHIRE CC,"CHILDRENS, YOUNG PEOPLE AND FAMILIES",EYNSHAM,CATERING PROVISIONS,14/12/2017,6816074901,2.6,SAINSBURYS 0600
OXFORDSHIRE CC,SOCIAL AND COMMUNITY SERVICES,"	MTFC",CATERING PROVISIONS,31/01/2018,6961643837,2.6,SAINSBURYS 0600
OXFORDSHIRE CC,"CHILDRENS, YOUNG PEOPLE AND FAMILIES","	LEAVING CARE CITY 1",CATERING,09/02/2018,6998574947,2.6,COSTA COFFEE
OXFORDSHIRE CC,"CHILDRENS, YOUNG PEOPLE AND FAMILIES",DIDCOT MOVE-ON HOME,CATERING PROVISIONS,19/02/2018,7030642445,2.6,SAINSBURYS SACAT 2067
OXFORDSHIRE CC,"CHILDRENS, YOUNG PEOPLE AND FAMILIES",EYNSHAM,NON-STAFF SUBSISTENCE AND EXPENSES,19/02/2018,7030642509,2.6,NCP PARK PASS
OXFORDSHIRE CC,SOCIAL AND COMMUNITY SERVICES,LOOKED AFTER SOUTH,OTHER TRANSPORT ARRANGEMENTS,02/03/2018,7078733049,2.6,OXFORD BUS COMPANY
OXFORDSHIRE CC,"CHILDRENS, YOUNG PEOPLE AND FAMILIES","	LOOKED AFTER NORTH",OTHER EXPENSES,08/03/2018,7101044961,2.6,CAR PARKING CANNOCK
OXFORDSHIRE CC,"CHILDRENS, YOUNG PEOPLE AND FAMILIES","	LEAVING CARE CITY 1",,09/03/2018,7106427803,2.6,HEREFORD SHOPPING CEN
OXFORDSHIRE CC,"CHILDRENS, YOUNG PEOPLE AND FAMILIES",CNTL EARLY HELP-RHIL,CATERING PROVISIONS,23/03/2018,7161535481,2.6,SAINSBURYS SAC2305SAC
OXFORDSHIRE CC,"CHILDRENS, YOUNG PEOPLE AND FAMILIES",WITNEY,VEHICLE FUEL,20/10/2017,6612055841,2.61,TESCO PFS 3418
OXFORDSHIRE CC,"CHILDRENS, YOUNG PEOPLE AND FAMILIES",WITNEY,CATERING PROVISIONS,24/07/2017,6298965391,2.63,LIDL UK
OXFORDSHIRE CC,"CHILDRENS, YOUNG PEOPLE AND FAMILIES",CNTL EARLY HELP-RHIL,CATERING PROVISIONS,21/09/2017,6501548193,2.63,MARKS&SPENCER PLC SF
OXFORDSHIRE CC,"CHILDRENS, YOUNG PEOPLE AND FAMILIES",CNTL ERLY HELP-BBLEY,CATERING PROVISIONS,19/01/2018,6917833567,2.63,DELTEYS SUPERMARKE
OXFORDSHIRE CC,"CHILDRENS, YOUNG PEOPLE AND FAMILIES",WITNEY,CATERING PROVISIONS,12/06/2017,6159014569,2.64,CO-OP GROUP 070582
OXFORDSHIRE CC,"CHILDRENS, YOUNG PEOPLE AND FAMILIES",DIDCOT MOVE-ON HOME,CATERING,03/08/2017,6337100175,2.65,COSTA COFFEE
OXFORDSHIRE CC,"CHILDRENS, YOUNG PEOPLE AND FAMILIES","	MALTFIELD HOUSE",CATERING,07/08/2017,6346492401,2.65,GERRY'S OFFSHORE I
OXFORDSHIRE CC,"CHILDRENS, YOUNG PEOPLE AND FAMILIES",EYNSHAM,CATERING PROVISIONS,22/08/2017,6398417163,2.65,SAINSBURYS 0600
OXFORDSHIRE CC,"CHILDRENS, YOUNG PEOPLE AND FAMILIES",EYNSHAM,CATERING,15/09/2017,6480231049,2.65,COSTA COFFEE
OXFORDSHIRE CC,SOCIAL AND COMMUNITY SERVICES,"	OPERATIONAL COSTS",CATERING,16/10/2017,6591417547,2.65,COSTA
OXFORDSHIRE CC,SOCIAL AND COMMUNITY SERVICES,OXFORDSHIRE,CATERING PROVISIONS,08/12/2017,6792586803,2.65,MARKS&SPENCER PLC SF
OXFORDSHIRE CC,"CHILDRENS, YOUNG PEOPLE AND FAMILIES",CNTL EARLY HELP-RHIL,CATERING,04/01/2018,6868259851,2.65,COSTA TEMPLAR SQUARE O
OXFORDSHIRE CC,"CHILDRENS, YOUNG PEOPLE AND FAMILIES",WITNEY,CATERING PROVISIONS,08/01/2018,6876281223,2.65,SAINSBURYS 0632
OXFORDSHIRE CC,"CHILDRENS, YOUNG PEOPLE AND FAMILIES","	MALTFIELD HOUSE",CATERING PROVISIONS,12/02/2018,7004716897,2.65,COSTA EXPRESS  UK
OXFORDSHIRE CC,"CHILDRENS, YOUNG PEOPLE AND FAMILIES","	LEAVING CARE NORTH",CATERING,14/02/2018,7015357673,2.65,COSTA CARTERTON
OXFORDSHIRE CC,"CHILDRENS, YOUNG PEOPLE AND FAMILIES","	LEAVING CARE NORTH",CATERING,22/02/2018,7044893187,2.65,COSTA CARTERTON
OXFORDSHIRE CC,"CHILDRENS, YOUNG PEOPLE AND FAMILIES",DIDCOT MOVE-ON HOME,ENTERTAINMENT EXPENSES,12/03/2018,7113437961,2.65,CINEWORLD DID CP
OXFORDSHIRE CC,"CHILDRENS, YOUNG PEOPLE AND FAMILIES","	RIVERSIDE CENTRE",VEHICLE FUEL,02/06/2017,6129127133,2.67,MARLBOROUGH RD 395
OXFORDSHIRE CC,"CHILDRENS, YOUNG PEOPLE AND FAMILIES","	EDM",CATERING,23/01/2018,6931298493,2.67,ASDA SUPERSTORE
OXFORDSHIRE CC,"CHILDRENS, YOUNG PEOPLE AND FAMILIES",THAME E&A HOME,CATERING,15/06/2017,6172489189,2.68,MCDONALDS
OXFORDSHIRE CC,"CHILDRENS, YOUNG PEOPLE AND FAMILIES","	MALTFIELD HOUSE",CATERING,22/01/2018,6923958151,2.68,CO-OP GROUP 350035
OXFORDSHIRE CC,"CHILDRENS, YOUNG PEOPLE AND FAMILIES","	LEAVING CARE SOUTH",MATERIALS,26/05/2017,6108899645,2.69,WH SMITH
OXFORDSHIRE CC,"CHILDRENS, YOUNG PEOPLE AND FAMILIES",DIDCOT MOVE-ON HOME,CATERING PROVISIONS,19/06/2017,6183762965,2.69,CO-OPERATIVE FOOD
OXFORDSHIRE CC,"CHILDRENS, YOUNG PEOPLE AND FAMILIES","	40 THE MOORS",CATERING PROVISIONS,30/10/2017,6644531287,2.69,CO-OPERATIVE FOOD
OXFORDSHIRE CC,"CHILDRENS, YOUNG PEOPLE AND FAMILIES",DIDCOT MOVE-ON HOME,CATERING,07/04/2017,5938245447,2.7,GREGGS PLC
